Workbook

Sheet Cover
BS1: =COUNTA(BS3:BS50) -> 6 | BT1: =COUNTA(BT3:BT50) -> 9 | BU1: 7 | BV1: 8 | BW1: 5 | BX1: 6 | BY1: 6 | BZ1: 3 | CA1: 5 | CB1: 5 | CC1: 8 | CD1: 8 | CE1: =COUNTA(CE3:CE50) -> 8 | CF1: =COUNTA(CF3:CF50) -> 4 | CH1: =16-COUNTBLANK(CI3:CI22) -> 3 | CQ1: Once-off adjustments to base | DG1: Personnel | EZ1: Inflator | FA1: 0.056
AA2: 749 | AY2: SIP Category | AZ2: Econ Class for ODA | BA2: Year | BB2: Lookup ID | BC2: EconClass | BD2: Outcomes - fixed | BE2: InfraList1 | BF2: InfraList2 | BG2: InfraList3 | BH2: InfraList4 | BI2: ODAList1 | BJ2: ListedProgs | BL2: =MAX(BL3:BL18) -> 4 | BM2: ProgList | BO2: InfraS dropdown list | BQ2: DoR Cat | BS2: Outputs-1 | BT2: Outputs-2 | BU2: Outputs-3 | BV2: Outputs-4 | BW2: Outputs-5 | BX2: Outputs-6 | BY2: Outputs-7 | BZ2: Outputs-8 | CA2: Outputs-9 | CB2: Outputs-10 | CC2: Outputs-11 | CD2: Outputs-12 | CE2: Outputs-13 | CF2: Outputs-14 | CI2: Array Range to lock | CQ2: Department | CR2: Programme | CS2: Subprogramme | CT2: Econ1 | CU2: Econ5 | CV2: Empty1 | CW2: 2019/20 amount above 5.6% growth | CX2: Empty2 | CY2: Trans_Indi | CZ2: Sprog_Indi | DA2: Econc_Indi | DG2: Department | DH2: Programme | DI2: Salary Level | DJ2: 2015/16 - Number of posts on approved establishment as at 30 June 2015 | DK2: 2015/16 - Number of posts on funded establishment as at 30 June 2015 | DL2: 2015/16 - Number of posts additional to the establishment as at 30 June 2015 | DM2: 2014/15 - Number of posts filled | DN2: 2014/15 - Expenditure on posts filled | DO2: 2015/16 - Number of all posts to be filled | DP2: 2015/16 - Expenditure on all posts to be filled | DQ2: 2016/17 - Number of all posts to be filled | DR2: 2016/17 - Expenditure on all posts to be filled | DS2: 2017/18 - Number of all posts to be filled | DT2: 2017/18 - Expenditure on all posts to be filled | DU2: 2018/19 - Number of all posts to be filled | DV2: 2018/19 - Expenditure on all posts to be filled | DW2: Combo_DeptProg | DX2: DeptCode | DY2: ProgCode | DZ2: DeptProg_Combo_Code | ED2: Budgets - ENE 2019 | GK2: Sheet Names | GL2: Lock | GM2: Hide | GN2: Index | GR2: Transfers
AY3: Not related to SIPs | AZ3: Compensation of employees | BA3: 2016/17 | BB3: 111 | BC3: Provincial Revenue Funds | BD3: Priority 1: Economic transformation and job creation | BE3: Programme | BF3: New infrastructure assets | BG3: Site identification | BH3: Mega | BI3: Long term technical assistance | BJ3: =IF(Summary!F31=0,Direct_charges!$H$8,Summary!F31) -> Administration | BK3: 1 | BL3: =IF(BM3<>"",BK3,0) -> 1 | BM3: =IF(BK3>PListed,"",Cover!BJ3) -> Administration | BN3: 1 | BO3: =IF(ISERROR(INDEX(($BM$3:$BM$18),MATCH(BN3,$BL$3:$BL$18,0))),"",INDEX(($BM$3:$BM$18),MATCH(BN3,$BL$3:$BL$18,0))) -> Administration | BQ3: National | BS3: Improved quality of teaching and learning through development, supply and effective utilisation of teachers | BT3: Average male and female life expectancy at birth increased to 70 years | BU3: Reduced levels of contact crime | BV3: Productive investment is effectively crowded in through the infrastructure build programme | BW3: Establish a credible institutional mechanism for skills planning | BX3: Regulation, funding and investment improved | BY3: Improved land administration and spatial planning for integrated development in rural areas | BZ3: Adequate housing and improved quality living environments | CA3: Members of society have sustainable and reliable access to basic services. | CB3: Ecosystems are sustained and natural resources are used efficiently | CC3: SA’s national priorities advanced in bilateral engagements | CD3: A stable political-administrative interface | CE3: Current social welfare system reformed to deliver better results for vulnerable groups | CF3: Fostering Constitutional values | CH3: 1 | CI3: V185:W274,V276:W289 | CQ3: National Treasury | CR3: Direct charge against the National Revenue Fund | CS3: Provincial Equitable Share | CV3: 0 | CW3: 0 | CX3: 0 | CY3: =+CQ3&CR3&CS3&CT3&CU3 -> National TreasuryDirect charge against the National Revenue FundProvincial Equitable Share | CZ3: =+CQ3&CR3&CS3 -> National TreasuryDirect charge against the National Revenue FundProvincial Equitable Share | DA3: =+CQ3&CR3&CS3&CU3 -> National TreasuryDirect charge against the National Revenue FundProvincial Equitable Share | DG3: The Presidency | DH3: Administration | DI3: 1 | DJ3: 0 | DK3: 40 | DL3: 40 | DM3: 32 | DN3: 2302 | DO3: 40 | DP3: 2335 | DQ3: 40 | DR3: 2396 | DS3: 40 | DT3: 2559 | DU3: 40 | DV3: 2707 | DW3: =Cover!$DG3&"|"&Cover!$DH3 -> The Presidency|Administration | DX3: =INDEX(($FC$4:$FC$5030),MATCH(Cover!$DG3,$EF$4:$EF$5030,0)) -> 001 | DY3: =INDEX(($FD$4:$FD$5030),MATCH(Cover!$DH3,$EH$4:$EH$5030,0)) -> 001 | DZ3: =Cover!$DX3&Cover!$DY3 -> 001001 | ED3: Lookup_Lvl_No | EE3: Vote No. | EF3: Department | EG3: Programme No. | EH3: Programme | EI3: Subprogramme No. | EJ3: Subprogramme | EK3: Econ2 | EL3: Econ3 | EM3: Econ4 | EN3: 2016/17 | EO3: 2017/18 | EP3: 2018/19 MA | EQ3: 2018/19 AA | ER3: 2018/19 RE | ES3: 2019/20 | ET3: 2020/21 | EU3: 2021/22 | EV3: 2018_19_Pre-Audited | EW3: 2020_21 NR | EX3: 2021_22 NR | EY3: 2020_21 IB | EZ3: 2021_22 IB | FA3: 2022_23 IB | FB3: Combo_DeptProg | FC3: DeptCode | FD3: ProgCode | FE3: SProgCode | FF3: ItemCode | FG3: DeptProg_Combo_Code | FH3: DeptEcon_Combo_Code | FI3: Econ3/4 ID | FJ3: DPSP_Econ_Combo | FK3: Econ_Id | FL3: DeptProgEcon_Combo_Code | FS3: Lookup_Lvl_No | FT3: Vote No. | FU3: Department | FV3: Programme No. | FW3: Programme | FX3: Subprogramme No. | FY3: Subprogramme | FZ3: Econ2 | GA3: Econ3 | GB3: Econ4 | GK3: Settings | GL3: 1 | GM3: 1 | GN3: 1 | GR3: Department | GS3: Programme No# | GT3: Programme | GU3: Subprogramme No# | GV3: Subprogramme | GW3: Transfers and subsidies / Payments for financial assets detail | GX3: Econ5 | GY3: DOR | GZ3: Combo | HA3: 2020/21 Revised baseline | HB3: 2021/22 Revised baseline | HC3: 2022/23 Total baseline | HD3: Len | HE3: Cnt
AY4: SIP 1: Unlocking the northern mineral belt with Waterberg as Catalyst | AZ4: Goods and services | BA4: 2017/18 | BB4: 112 | BC4: Provincial agencies and funds | BD4: Priority 2: Education, skills and health | BE4: Project | BF4: Upgrading and additions | BG4: Pre-feasibility | BH4: Large | BI4: Short term technical assistance | BJ4: =IF(OR(BJ3="Direct_charges",BJ3=""),"",IF(Summary!F32=0,"Direct_charges",Summary!F32)) -> Citizen Affairs | BK4: 2 | BL4: =IF(BM4<>"",MAX(BL$3:BL3)+1,0) -> 2 | BM4: =IF(BK4>PListed,"",Cover!BJ4) -> Citizen Affairs | BN4: 2 | BO4: =IF(ISERROR(INDEX(($BM$3:$BM$18),MATCH(BN4,$BL$3:$BL$18,0))),"",INDEX(($BM$3:$BM$18),MATCH(BN4,$BL$3:$BL$18,0))) -> Citizen Affairs | BQ4: Provincial equitable share | BR4: =PM!F123 -> Provincial Revenue Funds | BS4: Improve the quality of teaching and learning through provision of Infrastructure and learning materials | BT4: Tuberculosis (TB) prevention and cure progressively improved | BU4: An efficient and effective criminal Justice system | BV4: The productive sectors account for a growing share of production and employment, exports are diversified, African regional development is accelerated, the carbon intensity of growth is reduced, knowledge and technology support increasingly inclusive and dynamic growth, and the organs of the state improve their alignment in support of employment-creating growth | BW4: Increase access to programmes leading to intermediate and high level learning | BX4: Reliable generation, transmission and distribution of energy ensured | BY4: Sustainable Land Reform (agrarian transformation) | BZ4: A functionally equitable residential property market | CA4: Intergovernmental and democratic governance arrangements for a functional system of cooperative governance strengthened. | CB4: An effective climate change mitigation and adaptation response | CC4: An economically integrated Southern Africa | CD4: A public service that is a career of choice | CE4: Improved monitoring, evaluation, accountability and quality assurance | CF4: Equal opportunities, inclusion and redress | CH4: 2 | CI4: AE185:AF274,AE276:AF289 | CQ4: Cooperative Governance And Traditional Affairs | CR4: Institutional Development | CS4: Local government equitable share | CT4: Current | CU4: Municipal bank accounts | CV4: 0 | CW4: 0 | CX4: 0 | CY4: =+CQ4&CR4&CS4&CT4&CU4 -> Cooperative Governance And Traditional AffairsInstitutional DevelopmentLocal government equitable shareCurrentMunicipal bank accounts | CZ4: =+CQ4&CR4&CS4 -> Cooperative Governance And Traditional AffairsInstitutional DevelopmentLocal government equitable share | DA4: =+CQ4&CR4&CS4&CU4 -> Cooperative Governance And Traditional AffairsInstitutional DevelopmentLocal government equitable shareMunicipal bank accounts | DG4: The Presidency | DH4: Administration | DI4: 2 | DJ4: 51 | DK4: 51 | DL4: 0 | DM4: 49 | DN4: 6488 | DO4: 45 | DP4: 7235 | DQ4: 45 | DR4: 7758 | DS4: 45 | DT4: 8148 | DU4: 50 | DV4: 9496 | DW4: The Presidency|Administration | DX4: 001 | DY4: 001 | DZ4: 001001 | EC4: 111 | ED4: =+INDEX(($FS$4:$FS$27),MATCH(EM4,$GB$4:$GB$27,0)) -> 1 | EE4: 1 | EF4: The Presidency | EG4: 1 | EH4: Administration | EI4: 1 | EJ4: Management | EK4: Current payments | EL4: Compensation of employees | EM4: Compensation of employees | EN4: 209875 | EO4: 213995 | EP4: 225123 | EQ4: 224280 | ER4: 226336 | ES4: 243787 | ET4: 260617 | EU4: 279650 | EW4: 0 | EX4: 0 | EY4: =+ET4+EW4 -> 260617 | EZ4: =+EU4+EX4 -> 279650 | FA4: 290071 | FB4: =+EF4&"|"&EH4 -> The Presidency|Administration | FC4: =REPT("0",3-LEN(EE4))&EE4 -> 001 | FD4: =REPT("0",3-LEN(EG4))&EG4 -> 001 | FE4: =REPT("0",3-LEN(EI4))&EI4 -> 001 | FF4: =REPT("0",3-LEN(ED4))&ED4 -> 001 | FG4: =+FC4&FD4 -> 001001 | FH4: =+FC4&FF4 -> 001001 | FI4: =+FF4*1 -> 1 | FJ4: =FG4&FE4&REPT("0",3-LEN(FI4))&FI4 -> 001001001001 | FL4: =LEFT(FJ4,6)&FF4 -> 001001001 | FS4: 1 | FT4: 1 | FU4: The Presidency | FV4: 1 | FW4: Administration | FX4: 1 | FY4: Management | FZ4: Current payments | GA4: Compensation of employees | GB4: Compensation of employees | GK4: Summary | GL4: 1 | GM4: 0 | GN4: 2 | GR4: The Presidency | GS4: 1 | GT4: Administration | GU4: 1 | GV4: Management | GW4: Communications | GX4: Departmental agencies (non-business entities) | GY4: NAT | GZ4: The Presidency|Administration|Management|Departmental agencies (non-business entities)|Communications|1 | HA4: 42 | HB4: 44 | HC4: 46 | HD4: 101 | HE4: 0
AY5: SIP 2: Durban-Free State Gauteng Logistics and Industrial Corridor | AZ5: Provinces and municipalities | BA5: 2018/19 | BB5: 113 | BC5: Municipal bank accounts | BD5: Priority 3: Consolidating the social wage through reliable and quality basic services | BF5: Rehabilitation and refurbishment | BG5: Feasibility | BH5: Small | BI5: Conferences / workshops | BJ5: =IF(OR(BJ4="Direct_charges",BJ4=""),"",IF(Summary!F33=0,"Direct_charges",Summary!F33)) -> Immigration Affairs | BK5: 3 | BL5: =IF(BM5<>"",MAX(BL$3:BL4)+1,0) -> 3 | BM5: =IF(BK5>PListed,"",Cover!BJ5) -> Immigration Affairs | BN5: 3 | BO5: =IF(ISERROR(INDEX(($BM$3:$BM$18),MATCH(BN5,$BL$3:$BL$18,0))),"",INDEX(($BM$3:$BM$18),MATCH(BN5,$BL$3:$BL$18,0))) -> Immigration Affairs | BQ5: Provincial conditional grants (Direct) | BR5: =PM!F123 -> Provincial Revenue Funds | BS5: Regular annual national assessments to track improvements in the quality of teaching and learning (ANA) | BT5: Maternal, Infant and Child Mortality reduced | BU5: South Africa’s borders effectively defended, protected, secured and well-managed | BV5: The elimination of unnecessary regulatory burdens and lower price increases for key inputs and wage goods fosters investment and economic growth | BW5: Increase access to occupationally-directed programmes in needed areas and thereby expand the availability of intermediate level skills (with special focus on artisan skills) | BX5: Maintenance, strategic expansion, operational efficiency, capacity and competitiveness of our logistics and transport infrastructure ensured | BY5: Improved food security | BZ5: Enhanced institutional capabilities for effective coordination of spatial investment decisions | CA5: Sound financial and administrative management. | CB5: An environmentally sustainable, low-carbon economy resulting from a well-managed just transition | CC5: Political cohesion within Southern Africa to ensure a peaceful, secure and stable Southern African region | CD5: Sufficient technical and specialist professional skills | CE5: Development of more sustainable model of funding social development | CF5: Using sport and recreation to promote social cohesion | CH5: 3 | CI5: AN185:AO274,AN276:AO289 | CQ5: Cooperative Governance And Traditional Affairs | CR5: Local Government Support and Intervention Management | CS5: Municipal Infrastructure Support Agency | CT5: Current | CU5: Departmental agencies and accounts | CV5: 0 | CW5: 0 | CX5: 0 | CY5: Cooperative Governance And Traditional AffairsLocal Government Support and Intervention ManagementMunicipal Infrastructure Support AgencyCurrentDepartmental agencies and accounts | CZ5: Cooperative Governance And Traditional AffairsLocal Government Support and Intervention ManagementMunicipal Infrastructure Support Agency | DA5: Cooperative Governance And Traditional AffairsLocal Government Support and Intervention ManagementMunicipal Infrastructure Support AgencyDepartmental agencies and accounts | DG5: The Presidency | DH5: Administration | DI5: 3 | DJ5: 9 | DK5: 9 | DL5: 0 | DM5: 14 | DN5: 1845 | DO5: 9 | DP5: 1607 | DQ5: 9 | DR5: 1705 | DS5: 9 | DT5: 1798 | DU5: 9 | DV5: 1901 | DW5: The Presidency|Administration | DX5: 001 | DY5: 001 | DZ5: 001001 | EC5: 111 | ED5: =+INDEX(($FS$4:$FS$27),MATCH(EM5,$GB$4:$GB$27,0)) -> 2 | EE5: 1 | EF5: The Presidency | EG5: 1 | EH5: Administration | EI5: 1 | EJ5: Management | EK5: Current payments | EL5: Goods and services | EM5: Goods and services | EN5: 113356 | EO5: 102113 | EP5: 100585 | EQ5: 101802 | ER5: 101802 | ES5: 241125 | ET5: 124217 | EU5: 137651 | EW5: 0 | EX5: 0 | EY5: =+ET5+EW5 -> 124217 | EZ5: =+EU5+EX5 -> 137651 | FA5: 142806 | FB5: =+EF5&"|"&EH5 -> The Presidency|Administration | FC5: =REPT("0",3-LEN(EE5))&EE5 -> 001 | FD5: =REPT("0",3-LEN(EG5))&EG5 -> 001 | FE5: =REPT("0",3-LEN(EI5))&EI5 -> 001 | FF5: =REPT("0",3-LEN(ED5))&ED5 -> 002 | FG5: =+FC5&FD5 -> 001001 | FH5: =+FC5&FF5 -> 001002 | FI5: =+FF5*1 -> 2 | FJ5: =FG5&FE5&REPT("0",3-LEN(FI5))&FI5 -> 001001001002 | FL5: =LEFT(FJ5,6)&FF5 -> 001001002 | FS5: 2 | FT5: 1 | FU5: The Presidency | FV5: 1 | FW5: Administration | FX5: 2 | FY5: Support Services to the President | FZ5: Transfers and subsidies | GA5: Goods and services | GB5: Goods and services | GK5: 1 | GL5: 1 | GM5: 0 | GN5: 3 | GR5: Parliament | GS5: 5 | GT5: Associated Services | GU5: 2 | GV5: Political Party Support | GW5: Political Party Support | GX5: Non-profit institutions | GY5: NAT | GZ5: Parliament|Associated Services|Political Party Support |Non-profit institutions|Political Party Support |1 | HA5: 114438 | HB5: 121304 | HC5: 125817 | HD5: 104 | HE5: 0
B6: Department | AY6: Sip 3: South eastern note and corridor development | AZ6: Departmental agencies and accounts | BA6: 2019/20 | BB6: 114 | BC6: Municipal agencies and funds | BD6: Priority 4: Spatial integration, human settlements and local government | BF6: Maintenance and repair | BG6: Design | BI6: Study tours | BJ6: =IF(OR(BJ5="Direct_charges",BJ5=""),"",IF(Summary!F34=0,"Direct_charges",Summary!F34)) ->  | BK6: 4 | BL6: =IF(BM6<>"",MAX(BL$3:BL5)+1,0) -> 0 | BM6: =IF(BK6>PListed,"",Cover!BJ6) ->  | BN6: 4 | BO6: Multiple programmes | BQ6: Local government equitable share | BR6: =PM!F126 -> Municipal bank accounts | BS6: Improved Grade R and planning for extension of ECD | BT6: Prevalence of Non-Communicable Diseases reduced by 28% | BU6: Secure cyber space | BV6: Workers’ education and skills increasingly meet economic needs | BW6: Increase access to high-level occupationally directed programmes in needed areas | BX6: Maintenance and supply availability of our bulk water resources infrastructure ensured | BY6: Smallholder producers' development and support (technical, financial, infrastructure) for agrarian transformation | CA6: Promotion of social and economic development. | CB6: Enhanced governance systems and capacity | CC6: A Peaceful, secure and stable Africa | CD6: Efficient and effective management and operations systems | CE6: Increased human resource capacity in the social development sector | CF6: Promoting active citizenry and leadership | CH6: 4 | CI6: V298:W310,AE298:AF310,AN298:AO310 | CQ6: Social Development | CR6: Social Assistance | CS6: Old Age | CT6: Current | CU6: Social benefits | CV6: 0 | CW6: 0 | CX6: 0 | CY6: Social DevelopmentSocial AssistanceOld AgeCurrentSocial benefits | CZ6: Social DevelopmentSocial AssistanceOld Age | DA6: Social DevelopmentSocial AssistanceOld AgeSocial benefits | DG6: The Presidency | DH6: Administration | DI6: 4 | DJ6: 84 | DK6: 90 | DL6: 6 | DM6: 85 | DN6: 18683 | DO6: 88 | DP6: 18324 | DQ6: 88 | DR6: 19443 | DS6: 88 | DT6: 20503 | DU6: 90 | DV6: 22148 | DW6: The Presidency|Administration | DX6: 001 | DY6: 001 | DZ6: 001001 | EC6: 111 | ED6: 3 | EE6: 1 | EF6: The Presidency | EG6: 1 | EH6: Administration | EI6: 1 | EJ6: Management | EK6: Current payments | EL6: Interest and rent on land | EM6: Interest and rent on land | EN6: 46 | EO6: 0 | EP6: 0 | EQ6: 0 | ER6: 0 | ES6: 0 | ET6: 0 | EU6: 0 | EW6: 0 | EX6: 0 | EY6: 0 | EZ6: 0 | FA6: 0 | FB6: The Presidency|Administration | FC6: 001 | FD6: 001 | FE6: 001 | FF6: 003 | FG6: 001001 | FH6: 001003 | FI6: 3 | FJ6: 001001001003 | FL6: 001001003 | FS6: 3 | FT6: 1 | FU6: The Presidency | FV6: 1 | FW6: Administration | FX6: 3 | FY6: Support Services to the Deputy President | FZ6: Payments for capital assets | GA6: Interest and rent on land | GB6: Interest and rent on land | GK6: 2 | GL6: 1 | GM6: 0 | GN6: 4 | GR6: Parliament | GS6: 5 | GT6: Associated Services | GU6: 3 | GV6: Constituency Support | GW6: Constituency Support | GX6: Non-profit institutions | GY6: NAT | GZ6: Parliament|Associated Services|Constituency Support |Non-profit institutions|Constituency Support |1 | HA6: 366370 | HB6: 388352 | HC6: 402798 | HD6: 98 | HE6: 0
B7: Home Affairs | AY7: SIP 4: Unlocking the economic opportunities in the Both West Province | AZ7: Higher education institutions | BA7: 2020/21 | BB7: 115 | BC7: Social security funds | BD7: Priority 5: Social cohesion and safe communities | BG7: Tender | BI7: Training | BJ7: =IF(OR(BJ6="Direct_charges",BJ6=""),"",IF(Summary!F35=0,"Direct_charges",Summary!F35)) ->  | BK7: 5 | BL7: =IF(BM7<>"",MAX(BL$3:BL6)+1,0) -> 0 | BM7: =IF(BK7>PListed,"",Cover!BJ7) ->  | BN7: 5 | BQ7: Local government conditional grants (Direct) | BR7: =PM!F126 -> Municipal bank accounts | BS7: A credible, outcomes-focused planning and accountability system (building the capacity of the state to intervene and support quality education) | BT7: Injury, accidents and violence reduced by 50% from 2010 levels | BU7: Ensure Domestic Stability | BV7: Macroeconomic conditions support employment-creating growth | BW7: Strengthen the governance, management and student support in post school education and training institutions | BX7: Expansion, modernisation, access and affordability of our Information and communications infrastructure ensured | BY7: Increased access to quality infrastructure and services, particularly in education, healthcare and public transport in rural areas | CA7: Local public employment programmes expanded through the Community Work Programme. | CB7: Sustainable human communities | CC7: A sustainable developed and economically integrated Africa | CD7: Procurement systems that deliver value for money | CE7: Deepening social assistance and expanding access to social security | CH7: 5 | CI7: V356:W365,V370:W371,V373:W410,V412:W413,V440:W441,V443:W449 | CQ7: Social Development | CR7: Social Assistance | CS7: War Veterans | CT7: Current | CU7: Social benefits | CV7: 0 | CW7: 0 | CX7: 0 | CY7: Social DevelopmentSocial AssistanceWar VeteransCurrentSocial benefits | CZ7: Social DevelopmentSocial AssistanceWar Veterans | DA7: Social DevelopmentSocial AssistanceWar VeteransSocial benefits | DG7: The Presidency | DH7: Administration | DI7: 5 | DJ7: 20 | DK7: 20 | DL7: 0 | DM7: 17 | DN7: 3320 | DO7: 19 | DP7: 4359 | DQ7: 19 | DR7: 4625 | DS7: 19 | DT7: 4878 | DU7: 20 | DV7: 5417 | DW7: The Presidency|Administration | DX7: 001 | DY7: 001 | DZ7: 001001 | EC7: 111 | ED7: 57 | EE7: 1 | EF7: The Presidency | EG7: 1 | EH7: Administration | EI7: 1 | EJ7: Management | EK7: Payments for capital assets | EL7: Machinery and equipment | EM7: Other machinery and equipment | EN7: 9366 | EO7: 16066 | EP7: 8440 | EQ7: 8440 | ER7: 8440 | ES7: 8964 | ET7: 9390 | EU7: 9864 | EW7: 0 | EX7: 0 | EY7: 9390 | EZ7: 9864 | FA7: 10426 | FB7: The Presidency|Administration | FC7: 001 | FD7: 001 | FE7: 001 | FF7: 057 | FG7: 001001 | FH7: 001057 | FI7: =+FF7*1 -> 57 | FJ7: =FG7&FE7&REPT("0",3-LEN(FI7))&FI7 -> 001001001057 | FL7: 001001057 | FS7: 44 | FT7: 1 | FU7: The Presidency | FV7: 2 | FW7: Executive Support | FX7: 1 | FY7: Cabinet Services | FZ7: Payments for financial assets | GA7: Provinces and municipalities | GB7: Municipalities | GK7: 3 | GL7: 1 | GM7: 0 | GN7: 5 | GR7: Parliament | GS7: 5 | GT7: Associated Services | GU7: 4 | GV7: Party Leadership Support | GW7: Party Leadership Support | GX7: Non-profit institutions | GY7: NAT | GZ7: Parliament|Associated Services|Party Leadership Support|Non-profit institutions|Party Leadership Support|1 | HA7: 10303 | HB7: 10921 | HC7: 11326 | HD7: 104 | HE7: 0
B8: Enquires: | E8: Department Contact Details: | AY8: SIP 5: Saldanha-Northern Cape Development Corridor | AZ8: Foreign governments and international organisations | BA8: 2021/22 | BB8: 116 | BC8: Departmental agencies (non-business entities) | BD8: Priority 6: A capable, ethical and developmental state | BE8: InfraList5 | BG8: Construction | BI8: Equipment | BJ8: =IF(OR(BJ7="Direct_charges",BJ7=""),"",IF(Summary!F36=0,"Direct_charges",Summary!F36)) ->  | BK8: 6 | BL8: =IF(BM8<>"",MAX(BL$3:BL7)+1,0) -> 0 | BM8: =IF(BK8>PListed,"",Cover!BJ8) ->  | BN8: 6 | BQ8: General Fuel Levy sharing with Metropolitan Municipalities | BR8: =PM!F126 -> Municipal bank accounts | BS8: Partnerships for a Strong Education System | BT8: Health Systems Reforms Completed | BU8: Identity of all persons in South Africa known and secured | BV8: Reduced workplace conflict and improved collaboration between government, organised business and organised labour | BX8: Coordination, planning, integration and monitoring implementation of strategic integrated projects in the National Infrastructure Plan | BY8: Growth of sustainable rural enterprises and industries, characterised by strong rural-urban linkages, increased investment in agro-processing, trade development and access to local markets and financial services – resulting in rural job creation | CC8: An equitable and just System of Global Governance | CD8: Strengthened accountability to citizens | CE8: Early childhood development provision | CH8: 6 | CI8: AE356:AF365,AE370:AF371,AE373:AF410,AE412:AF413,AE440:AF441,AE443:AF449 | CQ8: Social Development | CR8: Social Assistance | CS8: Disability | CT8: Current | CU8: Social benefits | CV8: 0 | CW8: 0 | CX8: 0 | CY8: Social DevelopmentSocial AssistanceDisabilityCurrentSocial benefits | CZ8: Social DevelopmentSocial AssistanceDisability | DA8: Social DevelopmentSocial AssistanceDisabilitySocial benefits | DG8: The Presidency | DH8: Administration | DI8: 6 | DJ8: 79 | DK8: 85 | DL8: 6 | DM8: 86 | DN8: 19337 | DO8: 83 | DP8: 22896 | DQ8: 83 | DR8: 24293 | DS8: 83 | DT8: 25618 | DU8: 85 | DV8: 27673 | DW8: The Presidency|Administration | DX8: 001 | DY8: 001 | DZ8: 001001 | EC8: 111 | ED8: 56 | EE8: 1 | EF8: The Presidency | EG8: 1 | EH8: Administration | EI8: 1 | EJ8: Management | EK8: Payments for capital assets | EL8: Machinery and equipment | EM8: Transport equipment | EN8: 821 | EO8: 0 | EP8: 1254 | EQ8: 1254 | ER8: 1254 | ES8: 1228 | ET8: 1255 | EU8: 1367 | EW8: 0 | EX8: 0 | EY8: 1255 | EZ8: 1367 | FA8: 1418 | FB8: The Presidency|Administration | FC8: 001 | FD8: 001 | FE8: 001 | FF8: 056 | FG8: 001001 | FH8: 001056 | FI8: 56 | FJ8: 001001001056 | FL8: 001001056 | FS8: 46 | FT8: 1 | FU8: The Presidency | FV8: 3 | FW8: Direct charge against the National Revenue Fund | FX8: 1 | FY8: Salary of the president | GA8: Departmental agencies and accounts | GB8: Departmental agencies (non-business entities) | GK8: 4 | GL8: 1 | GM8: 0 | GN8: 6 | GR8: Communications | GS8: 4 | GT8: Entity Oversight | GU8: 2 | GV8: Broadcasting and Community Media | GW8: Media Development and Diversity Agency | GX8: Departmental agencies (non-business entities) | GY8: NAT | GZ8: Communications|Entity Oversight|Broadcasting and Community Media|Departmental agencies (non-business entities)|Media Development and Diversity Agency|1 | HA8: 33557 | HB8: 35402 | HC8: 36717 | HD8: 149 | HE8: 0
B9: =+$AF$23 -> Timothy Murwa | E9: Name: | AY9: SIP 6: Integrated municipal infrastructure project | AZ9: Public corporations and private enterprises | BA9: 2022/23 | BB9: 117 | BC9: Higher education institutions | BD9: Priority 7: A better Africa and world | BE9: Provinces and municipalities | BF9: InfraList6 | BG9: Hand over | BI9: Other | BJ9: =IF(OR(BJ8="Direct_charges",BJ8=""),"",IF(Summary!F37=0,"Direct_charges",Summary!F37)) ->  | BK9: 7 | BL9: =IF(BM9<>"",MAX(BL$3:BL8)+1,0) -> 0 | BM9: =IF(BK9>PListed,"",Cover!BJ9) ->  | BN9: 7 | BT9: Primary health care teams deployed to provide care to families and communities | BU9: Corruption in the public and private sectors reduced | BV9: Expanded economic opportunities for historically excluded and vulnerable groups | CC9: Strong, mutually beneficial South-South cooperation | CD9: Improved inter-departmental coordination and institutionalisation of long-term planning | CE9: Improve household food and nutrition security | CH9: 7 | CI9: AN356:AO365,AN370:AO371,AN373:AO410,AN412:AO413,AN440:AO441,AN443:AO449 | CQ9: Social Development | CR9: Social Assistance | CS9: Foster Care | CT9: Current | CU9: Social benefits | CV9: 0 | CW9: 0 | CX9: 0 | CY9: Social DevelopmentSocial AssistanceFoster CareCurrentSocial benefits | CZ9: Social DevelopmentSocial AssistanceFoster Care | DA9: Social DevelopmentSocial AssistanceFoster CareSocial benefits | DG9: The Presidency | DH9: Administration | DI9: 7 | DJ9: 72 | DK9: 77 | DL9: 5 | DM9: 77 | DN9: 21458 | DO9: 70 | DP9: 22702 | DQ9: 71 | DR9: 24436 | DS9: 71 | DT9: 25769 | DU9: 77 | DV9: 29439 | DW9: The Presidency|Administration | DX9: 001 | DY9: 001 | DZ9: 001001 | EC9: 111 | ED9: 62 | EE9: 1 | EF9: The Presidency | EG9: 1 | EH9: Administration | EI9: 1 | EJ9: Management | EK9: Payments for capital assets | EL9: Software and other intangible assets | EM9: Software and other intangible assets | EN9: 0 | EO9: 144 | EP9: 0 | EQ9: 0 | ER9: 0 | ES9: 0 | ET9: 0 | EU9: 0 | EW9: 0 | EX9: 0 | EY9: 0 | EZ9: 0 | FA9: 0 | FB9: The Presidency|Administration | FC9: 001 | FD9: 001 | FE9: 001 | FF9: 062 | FG9: 001001 | FH9: 001062 | FI9: 62 | FJ9: 001001001062 | FL9: 001001062 | FS9: 53 | FT9: 1 | FU9: The Presidency | FV9: 3 | FW9: Direct charge against the National Revenue Fund | FX9: 2 | FY9: Salary of the deputy president | GA9: Households | GB9: Other transfers to households | GK9: 5 | GL9: 1 | GM9: 0 | GN9: 7 | GR9: Communications | GS9: 4 | GT9: Entity Oversight | GU9: 2 | GV9: Broadcasting and Community Media | GW9: South African Broadcasting Corporation: Channel Africa | GX9: Other transfers to public corporations | GY9: NAT | GZ9: Communications|Entity Oversight|Broadcasting and Community Media|Other transfers to public corporations|South African Broadcasting Corporation: Channel Africa|1 | HA9: 64693 | HB9: 68251 | HC9: 70787 | HD9: 158 | HE9: 0
B10: =+$AG$23 -> (012) 315 5002 | E10: Email: | AY10: SIP 7: Integrated urban space and public transport programme | AZ10: Non-profit institutions | BB10: 118 | BC10: Foreign governments and international organisations | BD10: Departmental mandate | BE10: Departmental agencies and accounts | BF10: Residential buildings | BG10: Handed over | BJ10: =IF(OR(BJ9="Direct_charges",BJ9=""),"",IF(Summary!F38=0,"Direct_charges",Summary!F38)) ->  | BK10: 8 | BL10: =IF(BM10<>"",MAX(BL$3:BL9)+1,0) -> 0 | BM10: =IF(BK10>PListed,"",Cover!BJ10) ->  | BN10: 8 | BT10: Universal health coverage achieved | BV10: Public employment schemes provide short-term relief for the unemployed and build community solidarity and agency | CC10: Beneficial relations with strategic formations of the North | CD10: Improved mechanisms to prevent corruption in the public service (refer to the chapter on Outcome 3 for further elements of fighting corruption effectively) | CE10: Strengthening of community development interventions to strengthen coordination, integration, planning, monitoring and evaluation of services | CH10: 8 | CQ10: Social Development | CR10: Social Assistance | CS10: Care Dependency | CT10: Current | CU10: Social benefits | CV10: 0 | CW10: 0 | CX10: 0 | CY10: Social DevelopmentSocial AssistanceCare DependencyCurrentSocial benefits | CZ10: Social DevelopmentSocial AssistanceCare Dependency | DA10: Social DevelopmentSocial AssistanceCare DependencySocial benefits | DG10: The Presidency | DH10: Administration | DI10: 8 | DJ10: 53 | DK10: 53 | DL10: 0 | DM10: 50 | DN10: 16902 | DO10: 49 | DP10: 18749 | DQ10: 49 | DR10: 19893 | DS10: 50 | DT10: 21388 | DU10: 52 | DV10: 23546 | DW10: The Presidency|Administration | DX10: 001 | DY10: 001 | DZ10: 001001 | EC10: 111 | ED10: 63 | EE10: 1 | EF10: The Presidency | EG10: 1 | EH10: Administration | EI10: 1 | EJ10: Management | EK10: Payments for financial assets | EL10: Payments for financial assets | EM10: Payments for financial assets | EN10: 799 | EO10: 783 | EP10: 0 | EQ10: 0 | ER10: 0 | ES10: 0 | ET10: 0 | EU10: 0 | EW10: 0 | EX10: 0 | EY10: 0 | EZ10: 0 | FA10: 0 | FB10: The Presidency|Administration | FC10: 001 | FD10: 001 | FE10: 001 | FF10: 063 | FG10: 001001 | FH10: 001063 | FI10: 63 | FJ10: 001001001063 | FL10: 001001063 | FS10: 52 | FT10: 2 | FU10: Parliament | FV10: 1 | FW10: Strategic Leadership and Governance | FX10: 1 | FY10: Office of the Speaker | GA10: Machinery and equipment | GB10: Social benefits | GK10: 6 | GL10: 1 | GM10: 0 | GN10: 8 | GR10: Communications | GS10: 4 | GT10: Entity Oversight | GU10: 2 | GV10: Broadcasting and Community Media | GW10: South African Broadcasting Corporation: Programme productions | GX10: Other transfers to public corporations | GY10: NAT | GZ10: Communications|Entity Oversight|Broadcasting and Community Media|Other transfers to public corporations|South African Broadcasting Corporation: Programme productions|1 | HA10: 15245 | HB10: 16083 | HC10: 16681 | HD10: 165 | HE10: 0
B11: =+$AH$23 -> Timothy.Murwa@treasury.gov.za | E11: Telephone number: | AY11: SIP 8: Green energy in support of the South African economy | AZ11: Households | BB11: 119 | BC11: Subsidies on products and production (pc) | BE11: Higher education institutions | BF11: Non-residential buildings | BG11: On hold | BJ11: =IF(OR(BJ10="Direct_charges",BJ10=""),"",IF(Summary!F39=0,"Direct_charges",Summary!F39)) ->  | BK11: 9 | BL11: =IF(BM11<>"",MAX(BL$3:BL10)+1,0) -> 0 | BM11: =IF(BK11>PListed,"",Cover!BJ11) ->  | BN11: 9 | BT11: Posts filled with skilled, committed and competent individuals | CH11: 9 | CQ11: Social Development | CR11: Social Assistance | CS11: Child Support | CT11: Current | CU11: Social benefits | CV11: 0 | CW11: 0 | CX11: 0 | CY11: Social DevelopmentSocial AssistanceChild SupportCurrentSocial benefits | CZ11: Social DevelopmentSocial AssistanceChild Support | DA11: Social DevelopmentSocial AssistanceChild SupportSocial benefits | DG11: The Presidency | DH11: Administration | DI11: 9 | DJ11: 43 | DK11: 49 | DL11: 6 | DM11: 43 | DN11: 18415 | DO11: 48 | DP11: 22309 | DQ11: 48 | DR11: 23671 | DS11: 48 | DT11: 24962 | DU11: 49 | DV11: 26893 | DW11: The Presidency|Administration | DX11: 001 | DY11: 001 | DZ11: 001001 | EC11: 111 | ED11: 46 | EE11: 1 | EF11: The Presidency | EG11: 1 | EH11: Administration | EI11: 1 | EJ11: Management | EK11: Transfers and subsidies | EL11: Departmental agencies and accounts | EM11: Departmental agencies (non-business entities) | EN11: 0 | EO11: 0 | EP11: 38 | EQ11: 38 | ER11: 38 | ES11: 40 | ET11: 42 | EU11: 44 | EW11: 0 | EX11: 0 | EY11: =+ET11+EW11 -> 42 | EZ11: =+EU11+EX11 -> 44 | FA11: 46 | FB11: The Presidency|Administration | FC11: 001 | FD11: 001 | FE11: 001 | FF11: 046 | FG11: 001001 | FH11: 001046 | FI11: 46 | FJ11: 001001001046 | FL11: 001001046 | FS11: 57 | FT11: 2 | FU11: Parliament | FV11: 1 | FW11: Strategic Leadership and Governance | FX11: 2 | FY11: Office of the Chairperson | GA11: Software and other intangible assets | GB11: Other machinery and equipment | GK11: 7 | GL11: 1 | GM11: 0 | GN11: 9 | GR11: Communications | GS11: 4 | GT11: Entity Oversight | GU11: 2 | GV11: Broadcasting and Community Media | GW11: South African Broadcasting Corporation: Public broadcaster | GX11: Other transfers to public corporations | GY11: NAT | GZ11: Communications|Entity Oversight|Broadcasting and Community Media|Other transfers to public corporations|South African Broadcasting Corporation: Public broadcaster|1 | HA11: 130025 | HB11: 137176 | HC11: 142275 | HD11: 162 | HE11: 0
E12: Mobile (optional): | AJ12: =AA13 -> Data file ENE 2019 | AY12: SIP 9: Electricity generations to support socio-economic development | AZ12: Buildings and other fixed structures | BA12: Donation | BB12: 116 | BC12: Other transfers to public corporations | BE12: Foreign governments and international organisations | BF12: Investment property | BG12: Complete | BJ12: =IF(OR(BJ11="Direct_charges",BJ11=""),"",IF(Summary!F40=0,"Direct_charges",Summary!F40)) ->  | BK12: 10 | BL12: =IF(BM12<>"",MAX(BL$3:BL11)+1,0) -> 0 | BM12: =IF(BK12>PListed,"",Cover!BJ12) ->  | BN12: 10 | CH12: 10 | CQ12: Social Development | CR12: Social Assistance | CS12: Grant-in-Aid | CT12: Current | CU12: Social benefits | CV12: 0 | CW12: 0 | CX12: 0 | CY12: Social DevelopmentSocial AssistanceGrant-in-AidCurrentSocial benefits | CZ12: Social DevelopmentSocial AssistanceGrant-in-Aid | DA12: Social DevelopmentSocial AssistanceGrant-in-AidSocial benefits | DG12: The Presidency | DH12: Administration | DI12: 10 | DJ12: 16 | DK12: 18 | DL12: 2 | DM12: 20 | DN12: 10371 | DO12: 18 | DP12: 10063 | DQ12: 18 | DR12: 10677 | DS12: 18 | DT12: 11260 | DU12: 18 | DV12: 11903 | DW12: The Presidency|Administration | DX12: 001 | DY12: 001 | DZ12: 001001 | EC12: 111 | ED12: 53 | EE12: 1 | EF12: The Presidency | EG12: 1 | EH12: Administration | EI12: 1 | EJ12: Management | EK12: Transfers and subsidies | EL12: Households | EM12: Other transfers to households | EN12: 204 | EO12: 40 | EP12: 0 | EQ12: 31 | ER12: 31 | ES12: 0 | ET12: 0 | EU12: 0 | EW12: 0 | EX12: 0 | EY12: 0 | EZ12: 0 | FA12: 0 | FB12: The Presidency|Administration | FC12: 001 | FD12: 001 | FE12: 001 | FF12: 053 | FG12: 001001 | FH12: 001053 | FI12: 53 | FJ12: 001001001053 | FL12: 001001053 | FS12: 56 | FT12: 2 | FU12: Parliament | FV12: 1 | FW12: Strategic Leadership and Governance | FX12: 3 | FY12: Treasury Advise Office | GA12: Payments for financial assets | GB12: Transport equipment | GK12: 8 | GL12: 1 | GM12: 0 | GN12: 10 | GR12: Communications | GS12: 4 | GT12: Entity Oversight | GU12: 3 | GV12: Communication and Branding | GW12: Brand South Africa | GX12: Departmental agencies (non-business entities) | GY12: NAT | GZ12: Communications|Entity Oversight|Communication and Branding|Departmental agencies (non-business entities)|Brand South Africa|1 | HA12: 219397 | HB12: 231546 | HC12: 240154 | HD12: 123 | HE12: 0
B13: =IF(B15="","","OR") -> OR | E13: CFO Contact Details: | AA13: Data file ENE 2019 | AY13: SIP 10: Electricity transmission and distribution for all | AZ13: Machinery and equipment | BA13: Foreign | BB13: 121 | BC13: Subsidies on products and production (pe) | BE13: Public corporations and private enterprises | BF13: Heritage assets | BG13: On-going | BJ13: =IF(OR(BJ12="Direct_charges",BJ12=""),"",IF(Summary!F41=0,"Direct_charges",Summary!F41)) ->  | BK13: 11 | BL13: =IF(BM13<>"",MAX(BL$3:BL12)+1,0) -> 0 | BM13: =IF(BK13>PListed,"",Cover!BJ13) ->  | BN13: 11 | BO13: =IF(ISERROR(INDEX(($BM$3:$BM$18),MATCH(BN13,$BL$3:$BL$18,0))),"",INDEX(($BM$3:$BM$18),MATCH(BN13,$BL$3:$BL$18,0))) ->  | CH13: 11 | CQ13: Social Development | CR13: Social Assistance | CS13: Social Relief of Distress | CT13: Current | CU13: Social benefits | CV13: 0 | CW13: 0 | CX13: 0 | CY13: Social DevelopmentSocial AssistanceSocial Relief of DistressCurrentSocial benefits | CZ13: Social DevelopmentSocial AssistanceSocial Relief of Distress | DA13: Social DevelopmentSocial AssistanceSocial Relief of DistressSocial benefits | DG13: The Presidency | DH13: Administration | DI13: 11 | DJ13: 60 | DK13: 62 | DL13: 2 | DM13: 57 | DN13: 38212 | DO13: 57 | DP13: 38898 | DQ13: 56 | DR13: 40618 | DS13: 58 | DT13: 44211 | DU13: 62 | DV13: 49651 | DW13: The Presidency|Administration | DX13: 001 | DY13: 001 | DZ13: 001001 | EC13: 111 | ED13: 52 | EE13: 1 | EF13: The Presidency | EG13: 1 | EH13: Administration | EI13: 1 | EJ13: Management | EK13: Transfers and subsidies | EL13: Households | EM13: Social benefits | EN13: 2240 | EO13: 3430 | EP13: 0 | EQ13: 812 | ER13: 812 | ES13: 0 | ET13: 0 | EU13: 0 | EW13: 0 | EX13: 0 | EY13: 0 | EZ13: 0 | FA13: 0 | FB13: The Presidency|Administration | FC13: 001 | FD13: 001 | FE13: 001 | FF13: 052 | FG13: 001001 | FH13: 001052 | FI13: 52 | FJ13: 001001001052 | FL13: 001001052 | FS13: 62 | FT13: 2 | FU13: Parliament | FV13: 1 | FW13: Strategic Leadership and Governance | FX13: 4 | FY13: Parliamentary Budget Office | GA13: Non-profit institutions | GB13: Software and other intangible assets | GK13: 9 | GL13: 1 | GM13: 0 | GN13: 11 | GR13: Communications | GS13: 4 | GT13: Entity Oversight | GU13: 3 | GV13: Communication and Branding | GW13: Government Communication and Information System | GX13: Departmental agencies (non-business entities) | GY13: NAT | GZ13: Communications|Entity Oversight|Communication and Branding|Departmental agencies (non-business entities)|Government Communication and Information System|1 | HA13: 471442 | HB13: 500309 | HC13: 518997 | HD13: 152 | HE13: 0
E14: Name: | AY14: SIP 11: Agri-logistics and rural infrastructure | AZ14: Heritage assets | BA14: Local | BB14: 122 | BC14: Other transfers to private enterprises | BE14: Non-profit institutions | BF14: Other fixed structures | BJ14: =IF(OR(BJ13="Direct_charges",BJ13=""),"",IF(Summary!F42=0,"Direct_charges",Summary!F42)) ->  | BK14: 12 | BL14: =IF(BM14<>"",MAX(BL$3:BL13)+1,0) -> 0 | BM14: =IF(BK14>PListed,"",Cover!BJ14) ->  | BN14: 12 | CH14: 12 | DG14: The Presidency | DH14: Administration | DI14: 12 | DJ14: 41 | DK14: 41 | DL14: 0 | DM14: 34 | DN14: 21233 | DO14: 39 | DP14: 32732 | DQ14: 39 | DR14: 34729 | DS14: 40 | DT14: 37398 | DU14: 41 | DV14: 40354 | DW14: The Presidency|Administration | DX14: 001 | DY14: 001 | DZ14: 001001 | EC14: 111 | ED14: 44 | EE14: 1 | EF14: The Presidency | EG14: 1 | EH14: Administration | EI14: 1 | EJ14: Management | EK14: Transfers and subsidies | EL14: Provinces and municipalities | EM14: Municipalities | EN14: 3 | EO14: 10 | EP14: 0 | EQ14: 0 | ER14: 0 | ES14: 0 | ET14: 0 | EU14: 0 | EW14: 0 | EX14: 0 | EY14: 0 | EZ14: 0 | FA14: 0 | FB14: The Presidency|Administration | FC14: 001 | FD14: 001 | FE14: 001 | FF14: 044 | FG14: 001001 | FH14: 001044 | FI14: 44 | FJ14: 001001001044 | FL14: 001001044 | FS14: 63 | FT14: 2 | FU14: Parliament | FV14: 1 | FW14: Strategic Leadership and Governance | FX14: 5 | FY14: Office of Institutions Supporting Democracy | GA14: Public corporations and private enterprises | GB14: Payments for financial assets | GK14: 10 | GL14: 1 | GM14: 0 | GN14: 12 | GR14: Communications | GS14: 4 | GT14: Entity Oversight | GU14: 4 | GV14: Regulatory Institutions | GW14: Film and Publication Board | GX14: Departmental agencies (non-business entities) | GY14: NAT | GZ14: Communications|Entity Oversight|Regulatory Institutions|Departmental agencies (non-business entities)|Film and Publication Board|1 | HA14: 104833 | HB14: 110599 | HC14: 114710 | HD14: 128 | HE14: 0
B15: =+$AI$23 -> Isaac Mabena | E15: Email: | AY15: SIP 12: Revitalisation of public hospitals and other health facilities | AZ15: Specialised military assets | BB15: 123 | BC15: Non-profit institutions | BE15: Households | BJ15: =IF(OR(BJ14="Direct_charges",BJ14=""),"",IF(Summary!F43=0,"Direct_charges",Summary!F43)) ->  | BK15: 13 | BL15: =IF(BM15<>"",MAX(BL$3:BL14)+1,0) -> 0 | BM15: =IF(BK15>PListed,"",Cover!BJ15) ->  | BN15: 13 | CH15: 13 | DG15: The Presidency | DH15: Administration | DI15: 13 | DJ15: 37 | DK15: 38 | DL15: 1 | DM15: 34 | DN15: 33037 | DO15: 35 | DP15: 34920 | DQ15: 37 | DR15: 39240 | DS15: 38 | DT15: 42425 | DU15: 38 | DV15: 44849 | DW15: The Presidency|Administration | DX15: 001 | DY15: 001 | DZ15: 001001 | EC15: 112 | ED15: 50 | EE15: 1 | EF15: The Presidency | EG15: 1 | EH15: Administration | EI15: 1 | EJ15: Management | EK15: Transfers and subsidies | EL15: Public corporations and private enterprises | EM15: Private enterprises | EN15: 42 | EO15: 0 | EP15: 0 | EQ15: 0 | ER15: 0 | ES15: 0 | ET15: 0 | EU15: 0 | EW15: 0 | EX15: 0 | EY15: 0 | EZ15: 0 | FA15: 0 | FB15: The Presidency|Administration | FC15: 001 | FD15: 001 | FE15: 001 | FF15: 050 | FG15: 001001 | FH15: 001050 | FI15: 50 | FJ15: 001001001050 | FL15: 001001050 | FS15: 51 | FT15: 2 | FU15: Parliament | FV15: 2 | FW15: Administration | FX15: 1 | FY15: Secretary's Office | GA15: Foreign governments and international organisations | GB15: Non-profit institutions | GK15: 11 | GL15: 1 | GM15: 0 | GN15: 13 | GR15: Communications | GS15: 4 | GT15: Entity Oversight | GU15: 4 | GV15: Regulatory Institutions | GW15: Independent Communications Authority of South Africa | GX15: Departmental agencies (non-business entities) | GY15: NAT | GZ15: Communications|Entity Oversight|Regulatory Institutions|Departmental agencies (non-business entities)|Independent Communications Authority of South Africa|1 | HA15: 477721 | HB15: 504186 | HC15: 522929 | HD15: 154 | HE15: 0
B16: =+$AJ$23 -> (012) 315 5582 | E16: Telephone number: | AY16: SIP 13: National school build programme | AZ16: Biological assets | BB16: 124 | BC16: Social benefits | BJ16: =IF(OR(BJ15="Direct_charges",BJ15=""),"",IF(Summary!F44=0,"Direct_charges",Summary!F44)) ->  | BK16: 14 | BL16: =IF(BM16<>"",MAX(BL$3:BL15)+1,0) -> 0 | BM16: =IF(BK16>PListed,"",Cover!BJ16) ->  | BN16: 14 | CH16: 14 | DG16: The Presidency | DH16: Administration | DI16: 14 | DJ16: 17 | DK16: 19 | DL16: 2 | DM16: 21 | DN16: 18999 | DO16: 18 | DP16: 21581 | DQ16: 19 | DR16: 24094 | DS16: 19 | DT16: 25408 | DU16: 19 | DV16: 26860 | DW16: The Presidency|Administration | DX16: 001 | DY16: 001 | DZ16: 001001 | EC16: 112 | ED16: 1 | EE16: 1 | EF16: The Presidency | EG16: 1 | EH16: Administration | EI16: 2 | EJ16: Support Services to the President | EK16: Current payments | EL16: Compensation of employees | EM16: Compensation of employees | EN16: 42628 | EO16: 40112 | EP16: 41588 | EQ16: 40979 | ER16: 40979 | ES16: 44748 | ET16: 48104 | EU16: 51231 | EW16: 0 | EX16: 0 | EY16: 48104 | EZ16: 51231 | FA16: 53138 | FB16: The Presidency|Administration | FC16: 001 | FD16: 001 | FE16: 002 | FF16: 001 | FG16: 001001 | FH16: 001001 | FI16: 1 | FJ16: 001001002001 | FL16: 001001001 | FS16: 49 | FT16: 2 | FU16: Parliament | FV16: 2 | FW16: Administration | FX16: 2 | FY16: Finance Management Office | GA16: Heritage assets | GB16: Public corporations | GK16: 12 | GL16: 1 | GM16: 0 | GN16: 14 | GR16: Cooperative Governance and Traditional Affairs | GS16: 1 | GT16: Administration | GU16: 3 | GV16: Corporate Services | GW16: Vehicle licences | GX16: Municipal bank accounts | GY16: NAT | GZ16: Cooperative Governance and Traditional Affairs|Administration|Corporate Services|Municipal bank accounts|Vehicle licences|1 | HA16: 118 | HB16: 124 | HC16: 128 | HD16: 121 | HE16: 0
B17: =+$AK$23 -> Isaac.Mabena@treasury.gov.za | E17: Mobile (optional): | AY17: SIP 14: Higher education infrastructure | AZ17: Land and sub-soil assets | BB17: 124 | BC17: Other transfers to households | BJ17: =IF(OR(BJ16="Direct_charges",BJ16=""),"",IF(Summary!F45=0,"Direct_charges",Summary!F45)) ->  | BK17: 15 | BL17: =IF(BM17<>"",MAX(BL$3:BL16)+1,0) -> 0 | BM17: =IF(BK17>PListed,"",Cover!BJ17) ->  | BN17: 15 | CH17: 15 | DG17: The Presidency | DH17: Administration | DI17: 15 | DJ17: 5 | DK17: 8 | DL17: 3 | DM17: 5 | DN17: 8463 | DO17: 5 | DP17: 7101 | DQ17: 8 | DR17: 12221 | DS17: 8 | DT17: 12887 | DU17: 8 | DV17: 13623 | DW17: The Presidency|Administration | DX17: 001 | DY17: 001 | DZ17: 001001 | EC17: 112 | ED17: 2 | EE17: 1 | EF17: The Presidency | EG17: 1 | EH17: Administration | EI17: 2 | EJ17: Support Services to the President | EK17: Current payments | EL17: Goods and services | EM17: Goods and services | EN17: 19294 | EO17: 16070 | EP17: 23415 | EQ17: 23339 | ER17: 23339 | ES17: 24679 | ET17: 26033 | EU17: 27465 | EW17: 0 | EX17: 0 | EY17: 26033 | EZ17: 27465 | FA17: 28483 | FB17: The Presidency|Administration | FC17: 001 | FD17: 001 | FE17: 002 | FF17: 002 | FG17: 001001 | FH17: 001002 | FI17: 2 | FJ17: 001001002002 | FL17: 001001002 | FS17: 48 | FT17: 2 | FU17: Parliament | FV17: 2 | FW17: Administration | FX17: 3 | FY17: Internal Audit | GA17: Buildings and other fixed structures | GB17: Foreign governments and international organisations | GK17: 13 | GL17: 1 | GM17: 0 | GN17: 15 | GR17: Cooperative Governance and Traditional Affairs | GS17: 2 | GT17: Regional and Urban Development and Legislative Support | GU17: 7 | GV17: Municipal Demarcation Board | GW17: Municipal Demarcation Board | GX17: Departmental agencies (non-business entities) | GY17: NAT | GZ17: Cooperative Governance and Traditional Affairs|Regional and Urban Development and Legislative Support|Municipal Demarcation Board|Departmental agencies (non-business entities)|Municipal Demarcation Board|1 | HA17: 59679 | HB17: 62961 | HC17: 65302 | HD17: 203 | HE17: 0
AY18: SIP 15: Expanding access to communication technology | AZ18: Software and other intangible assets | BA18: Currency | BL18: =IF(BM18<>"",MAX(BL$3:BL17)+1,0) -> 4 | BM18: Multiple programmes | BN18: 16 | CH18: 16 | DG18: The Presidency | DH18: Administration | DI18: 16 | DJ18: 2 | DK18: 7 | DL18: 5 | DM18: 7 | DN18: 11830 | DO18: 7 | DP18: 13142 | DQ18: 7 | DR18: 13944 | DS18: 7 | DT18: 14704 | DU18: 7 | DV18: 15544 | DW18: The Presidency|Administration | DX18: 001 | DY18: 001 | DZ18: 001001 | EC18: 112 | ED18: 57 | EE18: 1 | EF18: The Presidency | EG18: 1 | EH18: Administration | EI18: 2 | EJ18: Support Services to the President | EK18: Payments for capital assets | EL18: Machinery and equipment | EM18: Other machinery and equipment | EN18: 875 | EO18: 537 | EP18: 689 | EQ18: 689 | ER18: 689 | ES18: 723 | ET18: 754 | EU18: 795 | EW18: 0 | EX18: 0 | EY18: 754 | EZ18: 795 | FA18: 840 | FB18: The Presidency|Administration | FC18: 001 | FD18: 001 | FE18: 002 | FF18: 057 | FG18: 001001 | FH18: 001057 | FI18: 57 | FJ18: 001001002057 | FL18: 001001057 | FS18: 58 | FT18: 2 | FU18: Parliament | FV18: 2 | FW18: Administration | FX18: 4 | FY18: Strategic Management and Governance | GA18: Land and sub-soil assets | GB18: Heritage assets | GK18: 14 | GL18: 1 | GM18: 0 | GN18: 16 | GR18: Cooperative Governance and Traditional Affairs | GS18: 2 | GT18: Regional and Urban Development and Legislative Support | GU18: 8 | GV18: South African Cities Network | GW18: South African Cities Network | GX18: Non-profit institutions | GY18: NAT | GZ18: Cooperative Governance and Traditional Affairs|Regional and Urban Development and Legislative Support|South African Cities Network|Non-profit institutions|South African Cities Network|1 | HA18: 8192 | HB18: 8806 | HC18: 9134 | HD18: 183 | HE18: 0
AY19: SIP 16: SKA and Meerkat | BA19: In Cash | CH19: 17 | DG19: The Presidency | DH19: Executive Support | DI19: 6 | DJ19: 8 | DK19: 8 | DL19: 0 | DM19: 8 | DN19: 1497 | DO19: 8 | DP19: 2562 | DQ19: 8 | DR19: 2870 | DS19: 8 | DT19: 3009 | DU19: 8 | DV19: 3200 | DW19: The Presidency|Executive Support | DX19: 001 | DY19: 002 | DZ19: 001002 | EC19: 112 | ED19: 63 | EE19: 1 | EF19: The Presidency | EG19: 1 | EH19: Administration | EI19: 2 | EJ19: Support Services to the President | EK19: Payments for financial assets | EL19: Payments for financial assets | EM19: Payments for financial assets | EN19: 146 | EO19: 93 | EP19: 0 | EQ19: 0 | ER19: 0 | ES19: 0 | ET19: 0 | EU19: 0 | EW19: 0 | EX19: 0 | EY19: 0 | EZ19: 0 | FA19: 0 | FB19: The Presidency|Administration | FC19: 001 | FD19: 001 | FE19: 002 | FF19: 063 | FG19: 001001 | FH19: 001063 | FI19: 63 | FJ19: 001001002063 | FL19: 001001063 | FS19: 43 | FT19: 2 | FU19: Parliament | FV19: 2 | FW19: Administration | FX19: 5 | FY19: Legislative Sector Support | GA19: Higher education institutions | GB19: Provinces | GK19: 15 | GL19: 1 | GM19: 0 | GN19: 17 | GR19: Cooperative Governance and Traditional Affairs | GS19: 2 | GT19: Regional and Urban Development and Legislative Support | GU19: 9 | GV19: Integrated Urban Development Grant | GW19: Integrated Urban Development Grant | GX19: Municipal bank accounts | GY19: LCG | GZ19: Cooperative Governance and Traditional Affairs|Regional and Urban Development and Legislative Support|Integrated Urban Development Grant|Municipal bank accounts|Integrated Urban Development Grant|1 | HA19: 939163 | HB19: 1013203 | HC19: 1071046 | HD19: 195 | HE19: 0
B20: Data file to be submitted to: | AY20: SIP 17: Regional integration for African Cooperation and development | BA20: In Kind | CH20: 18 | DG20: The Presidency | DH20: Executive Support | DI20: 7 | DJ20: 3 | DK20: 3 | DL20: 0 | DM20: 2 | DN20: 755 | DO20: 3 | DP20: 1172 | DQ20: 3 | DR20: 1314 | DS20: 3 | DT20: 1377 | DU20: 3 | DV20: 1464 | DW20: The Presidency|Executive Support | DX20: 001 | DY20: 002 | DZ20: 001002 | EC20: 112 | ED20: 52 | EE20: 1 | EF20: The Presidency | EG20: 1 | EH20: Administration | EI20: 2 | EJ20: Support Services to the President | EK20: Transfers and subsidies | EL20: Households | EM20: Social benefits | EN20: 43 | EO20: 256 | EP20: 0 | EQ20: 609 | ER20: 609 | ES20: 0 | ET20: 0 | EU20: 0 | EW20: 0 | EX20: 0 | EY20: 0 | EZ20: 0 | FA20: 0 | FB20: The Presidency|Administration | FC20: 001 | FD20: 001 | FE20: 002 | FF20: 052 | FG20: 001001 | FH20: 001052 | FI20: 52 | FJ20: 001001002052 | FL20: 001001052 | FS20: 55 | FT20: 2 | FU20: Parliament | FV20: 2 | FW20: Administration | FX20: 6 | FY20: Registrar of Member's Interest | GA20: Biological assets | GB20: Other fixed structures | GK20: Direct_charges | GL20: 1 | GM20: 0 | GN20: 18 | GR20: Cooperative Governance and Traditional Affairs | GS20: 3 | GT20: Institutional Development | GU20: 4 | GV20: Citizen Engagement | GW20: Commonwealth Local Government Forum | GX20: Foreign governments and international organisations | GY20: NAT | GZ20: Cooperative Governance and Traditional Affairs|Institutional Development|Citizen Engagement|Foreign governments and international organisations|Commonwealth Local Government Forum|1 | HA20: 640 | HB20: 675 | HC20: 701 | HD20: 179 | HE20: 0
B21: DatafileNAT@treasury.gov.za | AY21: SIP 18. Water and sanitation master plan | CH21: 19 | DG21: The Presidency | DH21: Executive Support | DI21: 9 | DJ21: 2 | DK21: 2 | DL21: 0 | DM21: 2 | DN21: 554 | DO21: 2 | DP21: 850 | DQ21: 2 | DR21: 952 | DS21: 2 | DT21: 998 | DU21: 2 | DV21: 1062 | DW21: The Presidency|Executive Support | DX21: 001 | DY21: 002 | DZ21: 001002 | EC21: 112 | ED21: 1 | EE21: 1 | EF21: The Presidency | EG21: 1 | EH21: Administration | EI21: 3 | EJ21: Support Services to the Deputy President | EK21: Current payments | EL21: Compensation of employees | EM21: Compensation of employees | EN21: 36225 | EO21: 36029 | EP21: 38250 | EQ21: 38152 | ER21: 38152 | ES21: 41155 | ET21: 44242 | EU21: 47118 | EW21: 0 | EX21: 0 | EY21: 44242 | EZ21: 47118 | FA21: 48873 | FB21: The Presidency|Administration | FC21: 001 | FD21: 001 | FE21: 003 | FF21: 001 | FG21: 001001 | FH21: 001001 | FI21: 1 | FJ21: 001001003001 | FL21: 001001001 | FS21: 54 | FT21: 2 | FU21: Parliament | FV21: 2 | FW21: Administration | FX21: 7 | FY21: Projects | GA21: Specialised military assets | GB21: Buildings | GK21: PM | GL21: 0 | GM21: 1 | GN21: 19 | GR21: Cooperative Governance and Traditional Affairs | GS21: 3 | GT21: Institutional Development | GU21: 7 | GV21: Local Government Equitable Share | GW21: Local government equitable share | GX21: Municipal bank accounts | GY21: LES | GZ21: Cooperative Governance and Traditional Affairs|Institutional Development|Local Government Equitable Share |Municipal bank accounts|Local government equitable share |1 | HA21: 75683326 | HB21: 82161819 | HC21: 88312717 | HD21: 164 | HE21: 0
AA22: 27 | AB22: =+MATCH(AC22,$AB$25:$AB$71,0) -> 16 | AC22: 5 | BA22: CurCap | CH22: 20 | DG22: The Presidency | DH22: Executive Support | DI22: 11 | DJ22: 1 | DK22: 1 | DL22: 0 | DM22: 1 | DN22: 569 | DO22: 1 | DP22: 742 | DQ22: 1 | DR22: 832 | DS22: 1 | DT22: 872 | DU22: 1 | DV22: 927 | DW22: The Presidency|Executive Support | DX22: 001 | DY22: 002 | DZ22: 001002 | EC22: 113 | ED22: 2 | EE22: 1 | EF22: The Presidency | EG22: 1 | EH22: Administration | EI22: 3 | EJ22: Support Services to the Deputy President | EK22: Current payments | EL22: Goods and services | EM22: Goods and services | EN22: 11007 | EO22: 9034 | EP22: 15972 | EQ22: 15972 | ER22: 15972 | ES22: 16838 | ET22: 17753 | EU22: 18729 | EW22: 0 | EX22: 0 | EY22: 17753 | EZ22: 18729 | FA22: 19430 | FB22: The Presidency|Administration | FC22: 001 | FD22: 001 | FE22: 003 | FF22: 002 | FG22: 001001 | FH22: 001002 | FI22: 2 | FJ22: 001001003002 | FL22: 001001002 | FS22: 61 | FT22: 2 | FU22: Parliament | FV22: 2 | FW22: Administration | FX22: 8 | FY22: State of the Nation Address | GB22: Land and sub-soil assets | GK22: Expend Trends | GL22: 1 | GM22: 0 | GN22: 20 | GR22: Cooperative Governance and Traditional Affairs | GS22: 3 | GT22: Institutional Development | GU22: 8 | GV22: South African Local Government Association | GW22: South African Local Government Association | GX22: Departmental agencies (non-business entities) | GY22: NAT | GZ22: Cooperative Governance and Traditional Affairs|Institutional Development|South African Local Government Association|Departmental agencies (non-business entities)|South African Local Government Association|1 | HA22: 35724 | HB22: 37689 | HC22: 39089 | HD22: 204 | HE22: 0
Z23: =IF(AI23="",1,2) -> 2 | AA23: =INDEX(($AA$25:$AA$71),MATCH(DeptName,$AC$25:$AC$71,0)) -> 16 | AB23: =INDEX(($AB$25:$AB$71),MATCH(DeptName,$AC$25:$AC$71,0)) -> 5 | AC23: =+B7 -> Home Affairs | AD23: =INDEX((AD$25:AD$71),MATCH($AA$23,$AA$25:$AA$71,1)) -> 0 | AE23: =INDEX((AE$25:AE$71),MATCH($AA$23,$AA$25:$AA$71,1)) -> 0 | AF23: =INDEX((AF$25:AF$71),MATCH($AA$23,$AA$25:$AA$71,1)) -> Timothy Murwa | AG23: (012) 315 5002 | AH23: Timothy.Murwa@treasury.gov.za | AI23: Isaac Mabena | AJ23: (012) 315 5582 | AK23: =INDEX((AK$25:AK$71),MATCH($AA$23,$AA$25:$AA$71,1)) -> Isaac.Mabena@treasury.gov.za | AL23: 0 | AM23: 0 | AN23: 0 | AO23: 0 | AP23: =INDEX((AP$25:AP$71),MATCH($AA$23,$AA$25:$AA$71,1)) -> 8743497 | AQ23: 9612736 | AR23: =INDEX((AR$25:AR$71),MATCH($AA$23,$AA$25:$AA$71,1)) -> 9973857 | AT23: Revised Baseline | AV23: =IFERROR(INDEX((AV$25:AV$71),MATCH($AB$23,$AT$25:$AT$71,0)),0) -> 8774629 | AW23: =IFERROR(INDEX((AW$25:AW$71),MATCH($AB$23,$AT$25:$AT$71,0)),0) -> 9659936 | AX23: =IFERROR(INDEX((AX$25:AX$71),MATCH($AB$23,$AT$25:$AT$71,0)),0) -> 10041490 | BA23: Current | DG23: The Presidency | DH23: Executive Support | DI23: 12 | DJ23: 4 | DK23: 4 | DL23: 0 | DM23: 4 | DN23: 1983 | DO23: 4 | DP23: 3152 | DQ23: 4 | DR23: 3532 | DS23: 4 | DT23: 3702 | DU23: 4 | DV23: 3938 | DW23: The Presidency|Executive Support | DX23: 001 | DY23: 002 | DZ23: 001002 | EC23: 113 | ED23: 57 | EE23: 1 | EF23: The Presidency | EG23: 1 | EH23: Administration | EI23: 3 | EJ23: Support Services to the Deputy President | EK23: Payments for capital assets | EL23: Machinery and equipment | EM23: Other machinery and equipment | EN23: 583 | EO23: 303 | EP23: 649 | EQ23: 649 | ER23: 649 | ES23: 681 | ET23: 710 | EU23: 749 | EW23: 0 | EX23: 0 | EY23: 710 | EZ23: 749 | FA23: 791 | FB23: The Presidency|Administration | FC23: 001 | FD23: 001 | FE23: 003 | FF23: 057 | FG23: 001001 | FH23: 001057 | FI23: 57 | FJ23: 001001003057 | FL23: 001001057 | FS23: 47 | FT23: 2 | FU23: Parliament | FV23: 3 | FW23: Core Business | FX23: 1 | FY23: Office of the Deputy Secretary | GB23: Higher education institutions | GK23: Significant Spending | GL23: 0 | GM23: 1 | GN23: 21 | GR23: Cooperative Governance and Traditional Affairs | GS23: 3 | GT23: Institutional Development | GU23: 10 | GV23: Department of Traditional Affairs | GW23: Department of Traditional Affairs | GX23: Departmental agencies (non-business entities) | GY23: NAT | GZ23: Cooperative Governance and Traditional Affairs|Institutional Development|Department of Traditional Affairs|Departmental agencies (non-business entities)|Department of Traditional Affairs|1 | HA23: 173912 | HB23: 185286 | HC23: 192301 | HD23: 186 | HE23: 0
AA24: Dept Index No. | AB24: Vote No. | AC24: Department | AD24: Category | AE24: ID1 | AF24: Contact Person | AG24: Tel | AH24: email | AI24: Contact Person | AJ24: Tel | AK24: email | AL24: ID2 | AM24: Contact Person | AN24: Tel | AO24: email | AP24: =MyYearP1 -> 2020/21 | AQ24: =MyYearP2 -> 2021/22 | AR24: =MyYearP3 -> 2022/23 | AT24: Vote No. | AU24: Dept | AV24: =+AP24 -> 2020/21 | AW24: =+AQ24 -> 2021/22 | AX24: 2022/23 | BA24: Capital | BC24: Payments for Financial Assets | DG24: The Presidency | DH24: Executive Support | DI24: 13 | DJ24: 1 | DK24: 2 | DL24: 1 | DM24: 2 | DN24: 1833 | DO24: 2 | DP24: 2008 | DQ24: 2 | DR24: 2250 | DS24: 2 | DT24: 2358 | DU24: 2 | DV24: 2508 | DW24: The Presidency|Executive Support | DX24: 001 | DY24: 002 | DZ24: 001002 | EC24: 113 | ED24: 63 | EE24: 1 | EF24: The Presidency | EG24: 1 | EH24: Administration | EI24: 3 | EJ24: Support Services to the Deputy President | EK24: Payments for financial assets | EL24: Payments for financial assets | EM24: Payments for financial assets | EN24: 36 | EO24: 14 | EP24: 0 | EQ24: 0 | ER24: 0 | ES24: 0 | ET24: 0 | EU24: 0 | EW24: 0 | EX24: 0 | EY24: 0 | EZ24: 0 | FA24: 0 | FB24: The Presidency|Administration | FC24: 001 | FD24: 001 | FE24: 003 | FF24: 063 | FG24: 001001 | FH24: 001063 | FI24: 63 | FJ24: 001001003063 | FL24: 001001063 | FS24: 50 | FT24: 2 | FU24: Parliament | FV24: 3 | FW24: Core Business | FX24: 2 | FY24: National Assembly | GB24: Private enterprises | GK24: Prov_Cond_Grants | GL24: 1 | GM24: 0 | GN24: 22 | GR24: Cooperative Governance and Traditional Affairs | GS24: 3 | GT24: Institutional Development | GU24: 11 | GV24: United Cities and Local Government of Africa | GW24: United Cities and Local Governments of Africa - South African Regional Office | GX24: Non-profit institutions | GY24: NAT | GZ24: Cooperative Governance and Traditional Affairs|Institutional Development|United Cities and Local Government of Africa|Non-profit institutions|United Cities and Local Governments of Africa - South African Regional Office|1 | HA24: 6045 | HB24: 6498 | HC24: 6740 | HD24: 219 | HE24: 0
Y25: 1 | AA25: 1 | AB25: 24 | AC25: Agriculture, Forestry and Fisheries | AF25: Bothwell Deka | AG25: (012) 395 6784 | AH25: Bothwell.Deka@treasury.gov.za | AI25: Humbelani Ramuedzisi | AJ25: (012) 315 5585 | AK25: Humbelani.Ramuedzisi@treasury.gov.za | AP25: 7923242 | AQ25: 8425618 | AR25: 8632533 | AT25: 1 | AU25: The Presidency | AV25: 611185 | AW25: 648387 | AX25: 675366 | BC25: Forex losses | DG25: The Presidency | DH25: Executive Support | DI25: 14 | DJ25: 3 | DK25: 4 | DL25: 1 | DM25: 4 | DN25: 4800 | DO25: 4 | DP25: 5280 | DQ25: 4 | DR25: 5917 | DS25: 4 | DT25: 6201 | DU25: 4 | DV25: 6596 | DW25: The Presidency|Executive Support | DX25: 001 | DY25: 002 | DZ25: 001002 | EC25: 113 | ED25: 52 | EE25: 1 | EF25: The Presidency | EG25: 1 | EH25: Administration | EI25: 3 | EJ25: Support Services to the Deputy President | EK25: Transfers and subsidies | EL25: Households | EM25: Social benefits | EN25: 120 | EO25: 1095 | EP25: 0 | EQ25: 98 | ER25: 98 | ES25: 0 | ET25: 0 | EU25: 0 | EW25: 0 | EX25: 0 | EY25: 0 | EZ25: 0 | FA25: 0 | FB25: The Presidency|Administration | FC25: 001 | FD25: 001 | FE25: 003 | FF25: 052 | FG25: 001001 | FH25: 001052 | FI25: 52 | FJ25: 001001003052 | FL25: 001001052 | FS25: 45 | FT25: 2 | FU25: Parliament | FV25: 3 | FW25: Core Business | FX25: 3 | FY25: National Council of Provinces | GB25: Social security funds | GK25: Grants Admin | GL25: 1 | GM25: 0 | GN25: 23 | GR25: Cooperative Governance and Traditional Affairs | GS25: 3 | GT25: Institutional Development | GU25: 11 | GV25: United Cities and Local Government of Africa | GW25: United Cities and Local Governments of Africa - Moroccan Office | GX25: Foreign governments and international organisations | GY25: NAT | GZ25: Cooperative Governance and Traditional Affairs|Institutional Development|United Cities and Local Government of Africa|Foreign governments and international organisations|United Cities and Local Governments of Africa - Moroccan Office|1 | HA25: 1511 | HB25: 1594 | HC25: 1653 | HD25: 233 | HE25: 0
Y26: 2 | AA26: 2 | AB26: 37 | AC26: Arts and Culture | AF26: Judy Naidoo | AG26: (012) 315 5269 | AH26: Judy.Naidoo@treasury.gov.za | AI26: Siphamandla Khumalo | AJ26: (012) 315 5759 | AK26: Siphamandla.Khumalo@treasury.gov.za | AP26: 4877088 | AQ26: 5160119 | AR26: 5360821 | AT26: 2 | AU26: Parliament | AV26: 2687610 | AW26: 2872573 | AX26: 2990596 | BC26: Thefts and losses | DG26: The Presidency | DH26: Executive Support | DI26: 15 | DJ26: 1 | DK26: 1 | DL26: 0 | DM26: 1 | DN26: 1321 | DO26: 1 | DP26: 1384 | DQ26: 1 | DR26: 1551 | DS26: 1 | DT26: 1626 | DU26: 1 | DV26: 1730 | DW26: The Presidency|Executive Support | DX26: 001 | DY26: 002 | DZ26: 001002 | EC26: 113 | ED26: 1 | EE26: 1 | EF26: The Presidency | EG26: 2 | EH26: Executive Support | EI26: 1 | EJ26: Cabinet Services | EK26: Current payments | EL26: Compensation of employees | EM26: Compensation of employees | EN26: 14287 | EO26: 13314 | EP26: 17232 | EQ26: 17232 | ER26: 14662 | ES26: 27148 | ET26: 28562 | EU26: 30810 | EW26: 0 | EX26: 0 | EY26: 28562 | EZ26: 30810 | FA26: 31958 | FB26: The Presidency|Executive Support | FC26: 001 | FD26: 002 | FE26: 001 | FF26: 001 | FG26: 001002 | FH26: 001001 | FI26: 1 | FJ26: 001002001001 | FL26: 001002001 | FS26: 60 | FT26: 2 | FU26: Parliament | FV26: 3 | FW26: Core Business | FX26: 4 | FY26: Core Business Support | GB26: Biological assets | GK26: Budget Tracking | GL26: 1 | GM26: 0 | GN26: 24 | GR26: Cooperative Governance and Traditional Affairs | GS26: 4 | GT26: National Disaster Management Centre | GU26: 7 | GV26: Disaster Relief Grant | GW26: Municipal disaster relief grant | GX26: Municipal bank accounts | GY26: LCG | GZ26: Cooperative Governance and Traditional Affairs|National Disaster Management Centre|Disaster Relief Grant|Municipal bank accounts|Municipal disaster relief grant|1 | HA26: 353940 | HB26: 373407 | HC26: 390985 | HD26: 160 | HE26: 0
Y27: 3 | AA27: 3 | AB27: 14 | AC27: Basic Education | AF27: Spencer Janari | AG27: (012) 315 5436 | AH27: Spencer.Janari@treasury.gov.za | AI27: Pindi Masiso | AJ27: (012) 315 5722 | AK27: Pindi.Masiso@treasury.gov.za | AP27: 25987648 | AQ27: 28189376 | AR27: 29643169 | AT27: 3 | AU27: Communications | AV27: 1188019 | AW27: 1226942 | AX27: 1273245 | BC27: Extension of loans for policy purposes | DG27: The Presidency | DH27: Direct charge against the National Revenue Fund | DI27: Salary of the President | DJ27: 1 | DK27: 1 | DL27: 0 | DM27: 1 | DN27: 2622 | DO27: 1 | DP27: 3109 | DQ27: 1 | DR27: 3274 | DS27: 1 | DT27: 3438 | DU27: 1 | DV27: 3637 | DW27: The Presidency|Direct charge against the National Revenue Fund | DX27: 001 | DY27: 016 | DZ27: 001016 | EC27: 113 | ED27: 2 | EE27: 1 | EF27: The Presidency | EG27: 2 | EH27: Executive Support | EI27: 1 | EJ27: Cabinet Services | EK27: Current payments | EL27: Goods and services | EM27: Goods and services | EN27: 12334 | EO27: 26376 | EP27: 31190 | EQ27: 30049 | ER27: 30049 | ES27: 38921 | ET27: 47233 | EU27: 40359 | EW27: 0 | EX27: 0 | EY27: 47233 | EZ27: 40359 | FA27: 41879 | FB27: The Presidency|Executive Support | FC27: 001 | FD27: 002 | FE27: 001 | FF27: 002 | FG27: 001002 | FH27: 001002 | FI27: 2 | FJ27: 001002001002 | FL27: 001002002 | FS27: 59 | FT27: 2 | FU27: Parliament | FV27: 3 | FW27: Core Business | FX27: 5 | FY27: Knowledge and Information Services | GB27: Specialised military assets | GK27: NMOG | GL27: 1 | GM27: 0 | GN27: 25 | GR27: Cooperative Governance and Traditional Affairs | GS27: 4 | GT27: National Disaster Management Centre | GU27: 7 | GV27: Disaster Relief Grant | GW27: Provincial disaster relief grant | GX27: Provincial Revenue Funds | GY27: PCG | GZ27: Cooperative Governance and Traditional Affairs|National Disaster Management Centre|Disaster Relief Grant|Provincial Revenue Funds|Provincial disaster relief grant|1 | HA27: 138489 | HB27: 146106 | HC27: 152984 | HD27: 162 | HE27: 0
Y28: 4 | AA28: 4 | AB28: 47 | AC28: Centre for Public Service Innovation | AF28: George Tembo | AG28: (012) 315 5514 | AH28: George.Tembo@treasury.gov.za | AI28: Uvadhya Singh | AJ28: (012) 315 9030 | AK28: Uvadhya.Singh@treasury.gov.za | AP28: 40969 | AQ28: 43446 | AR28: 45090 | AT28: 4 | AU28: Cooperative Governance And Traditional Affairs | AV28: 96233988 | AW28: 104262107 | AX28: 111656639 | BC28: Purchase of equity | CI28: Array Range to print | DG28: The Presidency | DH28: Direct charge against the National Revenue Fund | DI28: Salary of the Deputy President | DJ28: 1 | DK28: 1 | DL28: 0 | DM28: 1 | DN28: 2208 | DO28: 1 | DP28: 2617 | DQ28: 1 | DR28: 2761 | DS28: 1 | DT28: 2935 | DU28: 1 | DV28: 3105 | DW28: The Presidency|Direct charge against the National Revenue Fund | DX28: 001 | DY28: 016 | DZ28: 001016 | EC28: 114 | ED28: 57 | EE28: 1 | EF28: The Presidency | EG28: 2 | EH28: Executive Support | EI28: 1 | EJ28: Cabinet Services | EK28: Payments for capital assets | EL28: Machinery and equipment | EM28: Other machinery and equipment | EN28: 407 | EO28: 103 | EP28: 1155 | EQ28: 1155 | ER28: 1155 | ES28: 1317 | ET28: 1386 | EU28: 1462 | EW28: 0 | EX28: 0 | EY28: 1386 | EZ28: 1462 | FA28: 1546 | FB28: The Presidency|Executive Support | FC28: 001 | FD28: 002 | FE28: 001 | FF28: 057 | FG28: 001002 | FH28: 001057 | FI28: 57 | FJ28: 001002001057 | FL28: 001002057 | FT28: 2 | FU28: Parliament | FV28: 3 | FW28: Core Business | FX28: 6 | FY28: International Relations and Protocol | GK28: Function shifts | GL28: 1 | GM28: 0 | GN28: 26 | GR28: Cooperative Governance and Traditional Affairs | GS28: 5 | GT28: Local Government Support and Intervention Management | GU28: 6 | GV28: Municipal Infrastructure Grant | GW28: Municipal infrastructure grant | GX28: Municipal bank accounts | GY28: LCG | GZ28: Cooperative Governance and Traditional Affairs|Local Government Support and Intervention Management|Municipal Infrastructure Grant|Municipal bank accounts|Municipal infrastructure grant|1 | HA28: 15659923 | HB28: 16830814 | HC28: 17791350 | HD28: 185 | HE28: 0
Y29: 5 | AA29: 5 | AB29: 41 | AC29: Civilian Secretariat | AF29: Nompumelelo Radebe | AG29: (012) 315 5957 | AH29: Nompumelelo.Radebe@treasury.gov.za | AI29: Mmathapelo Maphangela | AJ29: (012) 406 9013 | AK29: Mmathapelo.Maphangela@treasury.gov.za | AP29: 156988 | AQ29: 167050 | AR29: 173321 | AT29: 5 | AU29: Home Affairs | AV29: 8774629 | AW29: 9659936 | AX29: 10041490 | BC29: Debt take overs | CH29: 1 | CI29: F26:J143,L26:L143,R26:R143,AB26:AB143,AK26:AK143,AT26:AT143 | DG29: Parliament | DH29: Direct charge against the National Revenue Fund | DI29: Members of Parliament | DJ29: 0 | DK29: 0 | DL29: 0 | DM29: 0 | DN29: 479803 | DO29: 0 | DP29: 503132 | DQ29: 0 | DR29: 529798 | DS29: 0 | DT29: 556288 | DU29: 0 | DV29: 588553 | DW29: Parliament|Direct charge against the National Revenue Fund | DX29: 002 | DY29: 016 | DZ29: 002016 | EC29: 114 | ED29: 63 | EE29: 1 | EF29: The Presidency | EG29: 2 | EH29: Executive Support | EI29: 1 | EJ29: Cabinet Services | EK29: Payments for financial assets | EL29: Payments for financial assets | EM29: Payments for financial assets | EN29: 5 | EO29: 282 | EP29: 0 | EQ29: 0 | ER29: 0 | ES29: 0 | ET29: 0 | EU29: 0 | EW29: 0 | EX29: 0 | EY29: 0 | EZ29: 0 | FA29: 0 | FB29: The Presidency|Executive Support | FC29: 001 | FD29: 002 | FE29: 001 | FF29: 063 | FG29: 001002 | FH29: 001063 | FI29: 63 | FJ29: 001002001063 | FL29: 001002063 | FT29: 2 | FU29: Parliament | FV29: 3 | FW29: Core Business | FX29: 7 | FY29: Youth Parliament | GK29: Performance Indicators | GL29: 1 | GM29: 0 | GN29: 27 | GR29: Cooperative Governance and Traditional Affairs | GS29: 5 | GT29: Local Government Support and Intervention Management | GU29: 7 | GV29: Municipal Infrastructure Support Agent | GW29: Municipal Infrastructure Support Agent | GX29: Departmental agencies (non-business entities) | GY29: NAT | GZ29: Cooperative Governance and Traditional Affairs|Local Government Support and Intervention Management|Municipal Infrastructure Support Agent|Departmental agencies (non-business entities)|Municipal Infrastructure Support Agent|1 | HA29: 362691 | HB29: 382285 | HC29: 396495 | HD29: 223 | HE29: 0
Y30: 6 | AA30: 6 | AB30: 3 | AC30: Communications | AF30: Mokgatla Tema | AG30: (012) 315 5948 | AH30: Mokgatla.Tema@treasury.gov.za | AI30: Viwe Sobudula | AJ30: (0)12 315 5015 | AK30: Viwe.Sobudula@treasury.gov.za | AP30: 1198661 | AQ30: 1237577 | AR30: 1283623 | AT30: 6 | AU30: International Relations and Cooperation | AV30: 6850179 | AW30: 7038531 | AX30: 7328850 | BC30: Losses on GFECRA | CH30: 2 | DG30: Parliament | DH30: Strategic Leadership and Governance | DI30: 8 | DJ30: 0 | DK30: 0 | DL30: 0 | DM30: 2 | DN30: 324 | DO30: 1 | DP30: 157 | DQ30: 1 | DR30: 166 | DS30: 1 | DT30: 174 | DU30: 1 | DV30: 183 | DW30: Parliament|Strategic Leadership and Governance | DX30: 002 | DY30: 001 | DZ30: 002001 | EC30: 114 | ED30: 52 | EE30: 1 | EF30: The Presidency | EG30: 2 | EH30: Executive Support | EI30: 1 | EJ30: Cabinet Services | EK30: Transfers and subsidies | EL30: Households | EM30: Social benefits | EN30: 591 | EO30: 1326 | EP30: 0 | EQ30: 0 | ER30: 0 | ES30: 0 | ET30: 0 | EU30: 0 | EW30: 0 | EX30: 0 | EY30: 0 | EZ30: 0 | FA30: 0 | FB30: The Presidency|Executive Support | FC30: 001 | FD30: 002 | FE30: 001 | FF30: 052 | FG30: 001002 | FH30: 001052 | FI30: 52 | FJ30: 001002001052 | FL30: 001002052 | FT30: 2 | FU30: Parliament | FV30: 3 | FW30: Core Business | FX30: 8 | FY30: Women's Parliament | GK30: Reprioritisation | GL30: 0 | GM30: 1 | GN30: 28 | GR30: Home Affairs | GS30: 1 | GT30: Administration | GU30: 1 | GV30: Ministry | GW30: Employee social benefits | GX30: Social benefits | GY30: NAT | GZ30: Home Affairs|Administration|Ministry|Social benefits|Employee social benefits|1 | HA30: 4 | HB30: 4 | HC30: 4 | HD30: 77 | HE30: 0
Y31: 7 | AA31: 7 | AB31: 4 | AC31: Cooperative Governance And Traditional Affairs | AF31: Misaveni Ngobeni | AG31: (012) 315 5305 | AH31: misaveni.ngobeni@treasury.gov.za | AI31: Millicent Mulaudzi | AJ31: (012) 395 6576 | AK31: Millicent.Mulaudzi@treasury.gov.za | AP31: 98320071 | AQ31: 106407426 | AR31: 113820204 | AT31: 7 | AU31: National Treasury | AV31: 818719440 | AW31: 889608342 | AX31: 955731697 | BC31: Premiums on loan transactions | CH31: 3 | DG31: Parliament | DH31: Strategic Leadership and Governance | DI31: 9 | DJ31: 1 | DK31: 1 | DL31: 0 | DM31: 2 | DN31: 356 | DO31: 1 | DP31: 159 | DQ31: 1 | DR31: 167 | DS31: 1 | DT31: 175 | DU31: 1 | DV31: 185 | DW31: Parliament|Strategic Leadership and Governance | DX31: 002 | DY31: 001 | DZ31: 002001 | EC31: 121 | ED31: 1 | EE31: 1 | EF31: The Presidency | EG31: 16 | EH31: Direct charge against the National Revenue Fund | EI31: 1 | EJ31: Salary of the president | EK31: Current payments | EL31: Compensation of employees | EM31: Compensation of employees | EN31: 2996 | EO31: 3106 | EP31: 3637 | EQ31: 3637 | ER31: 3637 | ES31: 3913 | ET31: 4206 | EU31: 4479 | EW31: 0 | EX31: 0 | EY31: 4206 | EZ31: 4479 | FA31: 0 | FB31: The Presidency|Direct charge against the National Revenue Fund | FC31: 001 | FD31: 016 | FE31: 001 | FF31: 001 | FG31: 001016 | FH31: 001001 | FI31: 1 | FJ31: 001016001001 | FL31: 001016001 | FT31: 2 | FU31: Parliament | FV31: 4 | FW31: Support Services | FX31: 1 | FY31: Office of the Deputy Secretary | GK31: Personnel | GL31: 1 | GM31: 0 | GN31: 29 | GR31: Home Affairs | GS31: 1 | GT31: Administration | GU31: 2 | GV31: Management Support Services | GW31: Employee social benefits | GX31: Municipal bank accounts | GY31: NAT | GZ31: Home Affairs|Administration|Management Support Services|Municipal bank accounts|Employee social benefits|1 | HA31: 281 | HB31: 296 | HC31: 308 | HD31: 104 | HE31: 0
Y32: 8 | AA32: 8 | AB32: 18 | AC32: Correctional Services | AF32: Elvis Ramafamba | AG32: (012) 315 5204 | AH32: elvis.ramafamba@treasury.gov.za | AI32: Keabetswe Matlwa | AJ32: (012) 395 6678 | AK32: Keabetswe.Matlwa@treasury.gov.za | AP32: 27177128 | AQ32: 28962560 | AR32: 30063279 | AT32: 8 | AU32: Planning, Monitoring and Evaluation | AV32: 999500 | AW32: 1050308 | AX32: 1094001 | BC32: Other | CH32: 4 | DG32: Parliament | DH32: Strategic Leadership and Governance | DI32: 10 | DJ32: 6 | DK32: 6 | DL32: 0 | DM32: 25 | DN32: 6923 | DO32: 18 | DP32: 3196 | DQ32: 18 | DR32: 3375 | DS32: 18 | DT32: 3543 | DU32: 18 | DV32: 3745 | DW32: Parliament|Strategic Leadership and Governance | DX32: 002 | DY32: 001 | DZ32: 002001 | EC32: 121 | ED32: 1 | EE32: 1 | EF32: The Presidency | EG32: 16 | EH32: Direct charge against the National Revenue Fund | EI32: 2 | EJ32: Salary of the deputy president | EK32: Current payments | EL32: Compensation of employees | EM32: Compensation of employees | EN32: 2717 | EO32: 2606 | EP32: 3105 | EQ32: 3105 | ER32: 3105 | ES32: 3341 | ET32: 3592 | EU32: 3825 | EW32: 0 | EX32: 0 | EY32: 3592 | EZ32: 3825 | FA32: 0 | FB32: The Presidency|Direct charge against the National Revenue Fund | FC32: 001 | FD32: 016 | FE32: 002 | FF32: 001 | FG32: 001016 | FH32: 001001 | FI32: 1 | FJ32: 001016002001 | FL32: 001016001 | FT32: 2 | FU32: Parliament | FV32: 4 | FW32: Support Services | FX32: 2 | FY32: Parliamentary Communication Services | GK32: Receipts | GL32: 1 | GM32: 0 | GN32: 30 | GR32: Home Affairs | GS32: 1 | GT32: Administration | GU32: 2 | GV32: Management Support Services | GW32: Employee social benefits | GX32: Social benefits | GY32: NAT | GZ32: Home Affairs|Administration|Management Support Services|Social benefits|Employee social benefits|1 | HA32: 906 | HB32: 956 | HC32: 1001 | HD32: 96 | HE32: 0
Y33: 9 | AA33: 9 | AB33: 19 | AC33: Defence And Military Veterans | AF33: Mashudu Bidzha | AG33: (012) 315 5344 | AH33: Mashudu.Bidzha@treasury.gov.za | AI33: Lesiba Ledwaba | AJ33: (012) 315 6660 | AK33: Lesiba.Ledwaba@treasury.gov.za | AP33: 53123334 | AQ33: 51533797 | AR33: 53492061 | AT33: 9 | AU33: Public Enterprises | AV33: 37849355 | AW33: 4128373 | AX33: 3941954 | CH33: 5 | DG33: Parliament | DH33: Strategic Leadership and Governance | DI33: 11 | DJ33: 23 | DK33: 23 | DL33: 0 | DM33: 17 | DN33: 7487 | DO33: 12 | DP33: 3590 | DQ33: 12 | DR33: 3791 | DS33: 12 | DT33: 3981 | DU33: 12 | DV33: 4208 | DW33: Parliament|Strategic Leadership and Governance | DX33: 002 | DY33: 001 | DZ33: 002001 | EC33: 121 | ED33: 1 | EE33: 2 | EF33: Parliament | EG33: 1 | EH33: Strategic Leadership and Governance | EI33: 1 | EJ33: Office of the Speaker | EK33: Current payments | EL33: Compensation of employees | EM33: Compensation of employees | EN33: 33326 | EO33: 27933 | EP33: 40292 | EQ33: 40292 | ER33: 40292 | ES33: 29943 | ET33: 33094 | EU33: 36072 | EW33: 0 | EX33: 0 | EY33: 33094 | EZ33: 36072 | FA33: 37420 | FB33: Parliament|Strategic Leadership and Governance | FC33: 002 | FD33: 001 | FE33: 001 | FF33: 001 | FG33: 002001 | FH33: 002001 | FI33: 1 | FJ33: 002001001001 | FL33: 002001001 | FT33: 2 | FU33: Parliament | FV33: 4 | FW33: Support Services | FX33: 3 | FY33: Human Resources Management | GK33: Analysis | GL33: 1 | GM33: 0 | GN33: 31 | GR33: Home Affairs | GS33: 1 | GT33: Administration | GU33: 2 | GV33: Management Support Services | GW33: Communication | GX33: Departmental agencies (non-business entities) | GY33: NAT | GZ33: Home Affairs|Administration|Management Support Services|Departmental agencies (non-business entities)|Communication|1 | HA33: 4 | HB33: 4 | HC33: 4 | HD33: 115 | HE33: 0
Y34: 10 | AA34: 10 | AB34: 25 | AC34: Economic Development | AF34: Isaac Kurasha | AG34: (012) 315 5213 | AH34: isaac.kurasha@treasury.gov.za | AI34: Millicent Movare | AJ34: (012) 315 5279 | AK34: Millicent.Movare@treasury.gov.za | AP34: 1095367 | AQ34: 1186459 | AR34: 1230843 | AT34: 10 | AU34: Public Service and Administration | AV34: 565706 | AW34: 606624 | AX34: 627507 | AY34: Funding Pressures | AZ34: Type of request | BA34: Compensation of employees | DG34: Parliament | DH34: Strategic Leadership and Governance | DI34: 12 | DJ34: 23 | DK34: 23 | DL34: 0 | DM34: 26 | DN34: 12332 | DO34: 20 | DP34: 8112 | DQ34: 20 | DR34: 8563 | DS34: 20 | DT34: 8991 | DU34: 20 | DV34: 9503 | DW34: Parliament|Strategic Leadership and Governance | DX34: 002 | DY34: 001 | DZ34: 002001 | EC34: 121 | ED34: 2 | EE34: 2 | EF34: Parliament | EG34: 1 | EH34: Strategic Leadership and Governance | EI34: 1 | EJ34: Office of the Speaker | EK34: Current payments | EL34: Goods and services | EM34: Goods and services | EN34: 11545 | EO34: 11177 | EP34: 11856 | EQ34: 11856 | ER34: 11856 | ES34: 14751 | ET34: 15352 | EU34: 16449 | EW34: 0 | EX34: 0 | EY34: 15352 | EZ34: 16449 | FA34: 17104 | FB34: Parliament|Strategic Leadership and Governance | FC34: 002 | FD34: 001 | FE34: 001 | FF34: 002 | FG34: 002001 | FH34: 002002 | FI34: 2 | FJ34: 002001001002 | FL34: 002001002 | FT34: 2 | FU34: Parliament | FV34: 4 | FW34: Support Services | FX34: 4 | FY34: Information Communication and Technology | GK34: InfraS Summary | GL34: 1 | GM34: 0 | GN34: 32 | GR34: Home Affairs | GS34: 1 | GT34: Administration | GU34: 3 | GV34: Corporate Services | GW34: Vehicle licences | GX34: Municipal bank accounts | GY34: NAT | GZ34: Home Affairs|Administration|Corporate Services|Municipal bank accounts|Vehicle licences|1 | HA34: 630 | HB34: 665 | HC34: 690 | HD34: 87 | HE34: 0
Y35: 11 | AA35: 11 | AB35: 26 | AC35: Energy | AF35: Rezah Atcha | AG35: (012) 315 5287 | AH35: Rezah.Atcha@treasury.gov.za | AI35: Nomagugu Madikane | AJ35: (012) 315 5312 | AK35: Nomagugu.Madikane@treasury.gov.za | AP35: 7374744 | AQ35: 8408778 | AR35: 8774286 | AT35: 11 | AU35: Public Works | AV35: 8009996 | AW35: 8665664 | AX35: 8994608 | AY35: Current payments - Compensation of employees | AZ35: New project | BA35: Goods and services | DG35: Parliament | DH35: Strategic Leadership and Governance | DI35: 13 | DJ35: 20 | DK35: 20 | DL35: 0 | DM35: 9 | DN35: 6882 | DO35: 21 | DP35: 11577 | DQ35: 21 | DR35: 12226 | DS35: 21 | DT35: 12837 | DU35: 21 | DV35: 13569 | DW35: Parliament|Strategic Leadership and Governance | DX35: 002 | DY35: 001 | DZ35: 002001 | EC35: 121 | ED35: 57 | EE35: 2 | EF35: Parliament | EG35: 1 | EH35: Strategic Leadership and Governance | EI35: 1 | EJ35: Office of the Speaker | EK35: Payments for capital assets | EL35: Machinery and equipment | EM35: Other machinery and equipment | EN35: 32 | EO35: 292 | EP35: 309 | EQ35: 309 | ER35: 309 | ES35: 26 | ET35: 28 | EU35: 30 | EW35: 0 | EX35: 0 | EY35: 28 | EZ35: 30 | FA35: 32 | FB35: Parliament|Strategic Leadership and Governance | FC35: 002 | FD35: 001 | FE35: 001 | FF35: 057 | FG35: 002001 | FH35: 002057 | FI35: 57 | FJ35: 002001001057 | FL35: 002001057 | FT35: 2 | FU35: Parliament | FV35: 4 | FW35: Support Services | FX35: 5 | FY35: Institutional Support Services | GK35: InfraS 1.1 | GL35: 1 | GM35: 0 | GN35: 33 | GR35: Home Affairs | GS35: 1 | GT35: Administration | GU35: 3 | GV35: Corporate Services | GW35: Employee social benefits | GX35: Social benefits | GY35: NAT | GZ35: Home Affairs|Administration|Corporate Services|Social benefits|Employee social benefits|1 | HA35: 856 | HB35: 903 | HC35: 946 | HD35: 87 | HE35: 0
Y36: 12 | AA36: 12 | AB36: 27 | AC36: Environmental Affairs | AF36: Gcobisa Magazi | AG36: (012) 315 5320 | AH36: Gcobisa.Magazi@treasury.gov.za | AI36: Ashley Ramasimu | AJ36: (012) 315 5166 | AK36: Ashley.Ramasimu@treasury.gov.za | AP36: 7961254 | AQ36: 8243569 | AR36: 8554101 | AT36: 12 | AU36: Statistics South Africa | AV36: 3407173 | AW36: 4843879 | AX36: 2862574 | AY36: Current payments - Goods and services | AZ36: Urgent cost pressure | BA36: Interest and rent on land | CI36: Array Range to lock (Cond Grants sheet) | DG36: Parliament | DH36: Strategic Leadership and Governance | DI36: 14 | DJ36: 34 | DK36: 34 | DL36: 0 | DM36: 8 | DN36: 6610 | DO36: 9 | DP36: 5375 | DQ36: 9 | DR36: 5676 | DS36: 9 | DT36: 5959 | DU36: 9 | DV36: 6299 | DW36: Parliament|Strategic Leadership and Governance | DX36: 002 | DY36: 001 | DZ36: 002001 | EC36: 121 | ED36: 1 | EE36: 2 | EF36: Parliament | EG36: 1 | EH36: Strategic Leadership and Governance | EI36: 2 | EJ36: Office of the Chairperson | EK36: Current payments | EL36: Compensation of employees | EM36: Compensation of employees | EN36: 27837 | EO36: 16946 | EP36: 28668 | EQ36: 28668 | ER36: 28668 | ES36: 26815 | ET36: 29577 | EU36: 31860 | EW36: 0 | EX36: 0 | EY36: 29577 | EZ36: 31860 | FA36: 33048 | FB36: Parliament|Strategic Leadership and Governance | FC36: 002 | FD36: 001 | FE36: 002 | FF36: 001 | FG36: 002001 | FH36: 002001 | FI36: 1 | FJ36: 002001002001 | FL36: 002001001 | FT36: 2 | FU36: Parliament | FV36: 4 | FW36: Support Services | FX36: 6 | FY36: Member's Support Services | GK36: InfraS 1.2 | GL36: 1 | GM36: 0 | GN36: 34 | GR36: Home Affairs | GS36: 1 | GT36: Administration | GU36: 4 | GV36: Transversal Information Technology Management | GW36: Employee social benefits | GX36: Social benefits | GY36: NAT | GZ36: Home Affairs|Administration|Transversal Information Technology Management|Social benefits|Employee social benefits|1 | HA36: 142 | HB36: 150 | HC36: 157 | HD36: 114 | HE36: 0
Y37: 13 | AA37: 13 | AB37: 46 | AC37: Government Communication and Information System | AF37: Mokgatla Tema | AG37: (012) 315 5948 | AH37: Mokgatla.Tema@treasury.gov.za | AI37: Viwe Sobudula | AJ37: (0)12 315 5015 | AK37: Viwe.Sobudula@treasury.gov.za | AP37: 471442 | AQ37: 500309 | AR37: 518997 | AT37: 13 | AU37: Women | AV37: 262147 | AW37: 277288 | AX37: 288173 | AY37: Current payments - Interest and rent on land | AZ37: Expansion of existing project | BA37: Provinces and municipalities | CH37: 1 | CI37: V57:W66,AE57:AF66,AN57:AO66,V79:W88,AE79:AF88,AN79:AO88,V101:W110,AE101:AF110,AN101:AO110 | DG37: Parliament | DH37: Strategic Leadership and Governance | DI37: 15 | DJ37: 10 | DK37: 10 | DL37: 0 | DM37: 9 | DN37: 9208 | DO37: 16 | DP37: 10338 | DQ37: 16 | DR37: 10916 | DS37: 16 | DT37: 11461 | DU37: 16 | DV37: 12114 | DW37: Parliament|Strategic Leadership and Governance | DX37: 002 | DY37: 001 | DZ37: 002001 | EC37: 1161 | ED37: 2 | EE37: 2 | EF37: Parliament | EG37: 1 | EH37: Strategic Leadership and Governance | EI37: 2 | EJ37: Office of the Chairperson | EK37: Current payments | EL37: Goods and services | EM37: Goods and services | EN37: 8873 | EO37: 14733 | EP37: 15683 | EQ37: 15683 | ER37: 15683 | ES37: 12563 | ET37: 13121 | EU37: 14445 | EW37: 0 | EX37: 0 | EY37: 13121 | EZ37: 14445 | FA37: 15000 | FB37: Parliament|Strategic Leadership and Governance | FC37: 002 | FD37: 001 | FE37: 002 | FF37: 002 | FG37: 002001 | FH37: 002002 | FI37: 2 | FJ37: 002001002002 | FL37: 002001002 | FT37: 2 | FU37: Parliament | FV37: 5 | FW37: Associated Services | FX37: 1 | FY37: Members Support Services | GK37: ODA Summary | GL37: 1 | GM37: 0 | GN37: 35 | GR37: Home Affairs | GS37: 2 | GT37: Citizen Affairs | GU37: 5 | GV37: Service Delivery to Provinces | GW37: Vehicle licences | GX37: Municipal bank accounts | GY37: NAT | GZ37: Home Affairs|Citizen Affairs|Service Delivery to Provinces|Municipal bank accounts|Vehicle licences|1 | HA37: 1188 | HB37: 1253 | HC37: 1300 | HD37: 99 | HE37: 0
Y38: 14 | AA38: 14 | AB38: 16 | AC38: Health | AF38: Refiloe Thokoa | AG38: (012) 395 6559 | AH38: Refiloe.thokoa@treasury.gov.za | AI38: Jonatan Daven | AJ38: (012) 315 6711 | AK38: Jonatan.Daven@treasury.gov.za | AP38: 56686251 | AQ38: 61939920 | AR38: 64908553 | AT38: 14 | AU38: Basic Education | AV38: 25328232 | AW38: 27332964 | AX38: 28592395 | AY38: Current Transfers and subsidies - Provinces and municipalities | BA38: Departmental agencies and accounts | BC38: Transfer Type | CH38: 2 | CI38: V123:W132,AE123:AF132,AN123:AO132,V145:W154,AE145:AF154,AN145:AO154,V167:W176,AE167:AF176,AN167:AO176 | DG38: Parliament | DH38: Strategic Leadership and Governance | DI38: 16 | DJ38: 27 | DK38: 27 | DL38: 0 | DM38: 1 | DN38: 1635 | DO38: 1 | DP38: 1611 | DQ38: 1 | DR38: 1730 | DS38: 1 | DT38: 1819 | DU38: 1 | DV38: 1969 | DW38: Parliament|Strategic Leadership and Governance | DX38: 002 | DY38: 001 | DZ38: 002001 | EC38: 1162 | ED38: 57 | EE38: 2 | EF38: Parliament | EG38: 1 | EH38: Strategic Leadership and Governance | EI38: 2 | EJ38: Office of the Chairperson | EK38: Payments for capital assets | EL38: Machinery and equipment | EM38: Other machinery and equipment | EN38: 80 | EO38: 112 | EP38: 118 | EQ38: 118 | ER38: 118 | ES38: 45 | ET38: 48 | EU38: 51 | EW38: 0 | EX38: 0 | EY38: 48 | EZ38: 51 | FA38: 54 | FB38: Parliament|Strategic Leadership and Governance | FC38: 002 | FD38: 001 | FE38: 002 | FF38: 057 | FG38: 002001 | FH38: 002057 | FI38: 57 | FJ38: 002001002057 | FL38: 002001057 | FT38: 2 | FU38: Parliament | FV38: 5 | FW38: Associated Services | FX38: 2 | FY38: Political Party Support | GK38: Deviations | GL38: 1 | GM38: 0 | GN38: 36 | GR38: Home Affairs | GS38: 2 | GT38: Citizen Affairs | GU38: 5 | GV38: Service Delivery to Provinces | GW38: Employee social benefits | GX38: Social benefits | GY38: NAT | GZ38: Home Affairs|Citizen Affairs|Service Delivery to Provinces|Social benefits|Employee social benefits|1 | HA38: 1533 | HB38: 1617 | HC38: 1694 | HD38: 99 | HE38: 0
Y39: 15 | AA39: 15 | AB39: 15 | AC39: Higher Education and Training | AF39: Letsepa Pakkies | AG39: (012) 315 6656 | AH39: Letsepa.Pakkies@treasury.gov.za | AI39: Barileng Sape | AJ39: (012) 406 9069 | AK39: barileng.sape@treasury.gov.za | AP39: 118152227 | AQ39: 124963890 | AR39: 130975157 | AT39: 15 | AU39: Higher Education and Training | AV39: 116879889 | AW39: 123362016 | AX39: 129368213 | AY39: Current Transfers and subsidies - Departmental agencies and accounts | BA39: Higher education institutions | BC39: Indirect Grant | CH39: 3 | CI39: V189:W198,AE189:AF198,AN189:AO198,V211:W220,AE211:AF220,AN211:AO220,V233:W242,AE233:AF242,AN233:AO242 | DG39: Parliament | DH39: Strategic Leadership and Governance | DI39: Other please specify | DJ39: 1 | DK39: 1 | DL39: 0 | DM39: 0 | DN39: 0 | DO39: 0 | DP39: 0 | DQ39: 0 | DR39: 0 | DS39: 0 | DT39: 0 | DU39: 0 | DV39: 0 | DW39: Parliament|Strategic Leadership and Governance | DX39: 002 | DY39: 001 | DZ39: 002001 | EC39: 211 | ED39: 1 | EE39: 2 | EF39: Parliament | EG39: 1 | EH39: Strategic Leadership and Governance | EI39: 3 | EJ39: Treasury Advise Office | EK39: Current payments | EL39: Compensation of employees | EM39: Compensation of employees | EN39: 0 | EO39: 0 | EP39: 0 | EQ39: 0 | ER39: 0 | ES39: 2721 | ET39: 2999 | EU39: 3233 | EW39: 0 | EX39: 0 | EY39: 2999 | EZ39: 3233 | FA39: 3354 | FB39: Parliament|Strategic Leadership and Governance | FC39: 002 | FD39: 001 | FE39: 003 | FF39: 001 | FG39: 002001 | FH39: 002001 | FI39: 1 | FJ39: 002001003001 | FL39: 002001001 | FT39: 2 | FU39: Parliament | FV39: 5 | FW39: Associated Services | FX39: 3 | FY39: Constituency Support | GK39: Dept specific info | GL39: 1 | GM39: 0 | GN39: 37 | GR39: Home Affairs | GS39: 2 | GT39: Citizen Affairs | GU39: 8 | GV39: Electoral Commission | GW39: Electoral Commission | GX39: Departmental agencies (non-business entities) | GY39: NAT | GZ39: Home Affairs|Citizen Affairs|Electoral Commission|Departmental agencies (non-business entities)|Electoral Commission|1 | HA39: 1984845 | HB39: 2411061 | HC39: 2502291 | HD39: 116 | HE39: 0
Y40: 16 | AA40: 16 | AB40: 5 | AC40: Home Affairs | AF40: Timothy Murwa | AG40: (012) 315 5002 | AH40: Timothy.Murwa@treasury.gov.za | AI40: Isaac Mabena | AJ40: (012) 315 5582 | AK40: Isaac.Mabena@treasury.gov.za | AP40: 8743497 | AQ40: 9612736 | AR40: 9973857 | AT40: 16 | AU40: Health | AV40: 55515997 | AW40: 60638309 | AX40: 63490984 | AY40: Current Transfers and subsidies - Higher education institutions | BA40: Foreign governments and international organisations | BC40: Budgetary allocation to entities | CH40: 4 | CI40: V255:W264,AE255:AF264,AN255:AO264,V277:W286,AE277:AF286,AN277:AO286,V299:W308,AE299:AF308,AN299:AO308 | DG40: Parliament | DH40: Administration | DI40: 8 | DJ40: 2 | DK40: 2 | DL40: 0 | DM40: 3 | DN40: 857 | DO40: 1 | DP40: 246 | DQ40: 1 | DR40: 307 | DS40: 1 | DT40: 333 | DU40: 1 | DV40: 361 | DW40: Parliament|Administration | DX40: 002 | DY40: 002 | DZ40: 002002 | EC40: 211 | ED40: 2 | EE40: 2 | EF40: Parliament | EG40: 1 | EH40: Strategic Leadership and Governance | EI40: 3 | EJ40: Treasury Advise Office | EK40: Current payments | EL40: Goods and services | EM40: Goods and services | EN40: 0 | EO40: 0 | EP40: 0 | EQ40: 0 | ER40: 0 | ES40: 1431 | ET40: 1500 | EU40: 1642 | EW40: 0 | EX40: 0 | EY40: 1500 | EZ40: 1642 | FA40: 1712 | FB40: Parliament|Strategic Leadership and Governance | FC40: 002 | FD40: 001 | FE40: 003 | FF40: 002 | FG40: 002001 | FH40: 002002 | FI40: 2 | FJ40: 002001003002 | FL40: 002001002 | FT40: 2 | FU40: Parliament | FV40: 5 | FW40: Associated Services | FX40: 4 | FY40: Party Leadership Support | GK40: Dept specific info-Own Format | GL40: 1 | GM40: 0 | GN40: 39 | GR40: Home Affairs | GS40: 2 | GT40: Citizen Affairs | GU40: 9 | GV40: Represented Political Parties’ Fund | GW40: Represented Political Parties’ Fund | GX40: Departmental agencies (non-business entities) | GY40: NAT | GZ40: Home Affairs|Citizen Affairs|Represented Political Parties’ Fund|Departmental agencies (non-business entities)|Represented Political Parties’ Fund|1 | HA40: 166437 | HB40: 175591 | HC40: 182119 | HD40: 146 | HE40: 0
Y41: 17 | AA41: 17 | AB41: 38 | AC41: Human Settlements | AF41: James Archer | AG41: (012) 395 6736 | AH41: James.Archer@treasury.gov.za | AI41: Lindiwe Ngcongwane | AJ41: (012) 315 5357 | AK41: Lindiwe.Ngcongwane@treasury.gov.za | AP41: 35132045 | AQ41: 36670847 | AR41: 38728312 | AT41: 17 | AU41: Social Development | AV41: 197743317 | AW41: 211837795 | AX41: 226918808 | AY41: Current Transfers and subsidies - Foreign governments and international organisations | BA41: Public corporations and private enterprises | BC41: Other | CH41: 5 | CI41: V321:W330,AE321:AF330,AN321:AO330,V343:W352,AE343:AF352,AN343:AO352,V365:W374,AE365:AF374,AN365:AO374 | DG41: Parliament | DH41: Administration | DI41: 9 | DJ41: 23 | DK41: 23 | DL41: 0 | DM41: 14 | DN41: 4356 | DO41: 17 | DP41: 5134 | DQ41: 17 | DR41: 6822 | DS41: 17 | DT41: 7415 | DU41: 17 | DV41: 7045 | DW41: Parliament|Administration | DX41: 002 | DY41: 002 | DZ41: 002002 | EC41: 211 | ED41: 57 | EE41: 2 | EF41: Parliament | EG41: 1 | EH41: Strategic Leadership and Governance | EI41: 3 | EJ41: Treasury Advise Office | EK41: Payments for capital assets | EL41: Machinery and equipment | EM41: Other machinery and equipment | EN41: 0 | EO41: 0 | EP41: 0 | EQ41: 0 | ER41: 0 | ES41: 88 | ET41: 93 | EU41: 98 | EW41: 0 | EX41: 0 | EY41: 93 | EZ41: 98 | FA41: 105 | FB41: Parliament|Strategic Leadership and Governance | FC41: 002 | FD41: 001 | FE41: 003 | FF41: 057 | FG41: 002001 | FH41: 002057 | FI41: 57 | FJ41: 002001003057 | FL41: 002001057 | FT41: 2 | FU41: Parliament | FV41: 5 | FW41: Associated Services | FX41: 5 | FY41: National Assembly Members’ Facilities | GK41: Training | GL41: 1 | GM41: 0 | GN41: 40 | GR41: Home Affairs | GS41: 3 | GT41: Immigration Affairs | GU41: 1 | GV41: Immigration Affairs Management | GW41: Employee social benefits | GX41: Social benefits | GY41: NAT | GZ41: Home Affairs|Immigration Affairs|Immigration Affairs Management|Social benefits|Employee social benefits|1 | HA41: 450 | HB41: 475 | HC41: 498 | HD41: 104 | HE41: 0
Y42: 18 | AA42: 18 | AB42: 20 | AC42: Independent Police Investigative Directorate | AF42: Nompumelelo Radebe | AG42: (012) 315 5957 | AH42: Nompumelelo.Radebe@treasury.gov.za | AI42: Mmathapelo Maphangela | AJ42: (012) 406 9013 | AK42: Mmathapelo.Maphangela@treasury.gov.za | AP42: 359386 | AQ42: 381615 | AR42: 395886 | AT42: 18 | AU42: Correctional Services | AV42: 26799970 | AW42: 28565638 | AX42: 29779159 | AY42: Current Transfers and subsidies - Public corporations and private enterprises | BA42: Non-profit institutions | DG42: Parliament | DH42: Administration | DI42: 10 | DJ42: 44 | DK42: 44 | DL42: 0 | DM42: 36 | DN42: 15393 | DO42: 41 | DP42: 13799 | DQ42: 41 | DR42: 16796 | DS42: 41 | DT42: 18240 | DU42: 41 | DV42: 19790 | DW42: Parliament|Administration | DX42: 002 | DY42: 002 | DZ42: 002002 | EC42: 212 | ED42: 1 | EE42: 2 | EF42: Parliament | EG42: 1 | EH42: Strategic Leadership and Governance | EI42: 4 | EJ42: Parliamentary Budget Office | EK42: Current payments | EL42: Compensation of employees | EM42: Compensation of employees | EN42: 12598 | EO42: 0 | EP42: 0 | EQ42: 0 | ER42: 0 | ES42: 5195 | ET42: 16779 | EU42: 18076 | EW42: 0 | EX42: 0 | EY42: 16779 | EZ42: 18076 | FA42: 18750 | FB42: Parliament|Strategic Leadership and Governance | FC42: 002 | FD42: 001 | FE42: 004 | FF42: 001 | FG42: 002001 | FH42: 002001 | FI42: 1 | FJ42: 002001004001 | FL42: 002001001 | FT42: 2 | FU42: Parliament | FV42: 5 | FW42: Associated Services | FX42: 6 | FY42: National Council of Provinces Members’ Facilities | GK42: PPP Projects | GL42: 1 | GM42: 0 | GN42: 41 | GR42: Home Affairs | GS42: 3 | GT42: Immigration Affairs | GU42: 2 | GV42: Admission Services | GW42: Communication | GX42: Departmental agencies (non-business entities) | GY42: NAT | GZ42: Home Affairs|Immigration Affairs|Admission Services|Departmental agencies (non-business entities)|Communication|1 | HA42: 2 | HB42: 2 | HC42: 2 | HD42: 111 | HE42: 0
Y43: 19 | AA43: 19 | AB43: 6 | AC43: International Relations and Cooperation | AF43: George Tembo | AG43: (012) 315 5514 | AH43: George.Tembo@treasury.gov.za | AI43: Mercy Mhlophe | AJ43: (012) 315 5598 | AK43: mercy.mhlope@treasury.gov.za | AP43: 6926126 | AQ43: 7118252 | AR43: 7391930 | AT43: 19 | AU43: Defence And Military Veterans | AV43: 52438621 | AW43: 50852491 | AX43: 52993577 | AY43: Current Transfers and subsidies - Non-profit institutions | BA43: Households | DG43: Parliament | DH43: Administration | DI43: 11 | DJ43: 15 | DK43: 15 | DL43: 0 | DM43: 19 | DN43: 8656 | DO43: 8 | DP43: 3324 | DQ43: 8 | DR43: 4985 | DS43: 8 | DT43: 5419 | DU43: 8 | DV43: 6854 | DW43: Parliament|Administration | DX43: 002 | DY43: 002 | DZ43: 002002 | EC43: 212 | ED43: 2 | EE43: 2 | EF43: Parliament | EG43: 1 | EH43: Strategic Leadership and Governance | EI43: 4 | EJ43: Parliamentary Budget Office | EK43: Current payments | EL43: Goods and services | EM43: Goods and services | EN43: 1038 | EO43: 0 | EP43: 0 | EQ43: 0 | ER43: 0 | ES43: 1881 | ET43: 3988 | EU43: 4531 | EW43: 0 | EX43: 0 | EY43: 3988 | EZ43: 4531 | FA43: 4700 | FB43: Parliament|Strategic Leadership and Governance | FC43: 002 | FD43: 001 | FE43: 004 | FF43: 002 | FG43: 002001 | FH43: 002002 | FI43: 2 | FJ43: 002001004002 | FL43: 002001002 | FT43: 2 | FU43: Parliament | FV43: 6 | FW43: Direct charge against the National Revenue Fund | FX43: 1 | FY43: Members' Remuneration | GK43: Outputs | GL43: 0 | GM43: 1 | GN43: 42 | GR43: Home Affairs | GS43: 3 | GT43: Immigration Affairs | GU43: 4 | GV43: Asylum Seekers | GW43: Communication | GX43: Departmental agencies (non-business entities) | GY43: NAT | GZ43: Home Affairs|Immigration Affairs|Asylum Seekers|Departmental agencies (non-business entities)|Communication|1 | HA43: 1 | HB43: 1 | HC43: 1 | HD43: 107 | HE43: 0
Y44: 20 | AA44: 20 | AB44: 21 | AC44: Justice and Constitutional Development | AF44: Werner Krause | AG44: (012) 315 5211 | AH44: werner.krause@treasury.gov.za | AI44: Maggy Mokoka | AJ44: (012) 315 5468 | AK44: Maggy.Mokoka@treasury.gov.za | AP44: 22216887 | AQ44: 23636567 | AR44: 24542975 | AT44: 20 | AU44: Independent Police Investigative Directorate | AV44: 355667 | AW44: 377708 | AX44: 393433 | AY44: Current Transfers and subsidies - Households | BA44: Buildings and other fixed structures | DG44: Parliament | DH44: Administration | DI44: 12 | DJ44: 17 | DK44: 17 | DL44: 0 | DM44: 19 | DN44: 13258 | DO44: 17 | DP44: 11162 | DQ44: 17 | DR44: 13908 | DS44: 17 | DT44: 15118 | DU44: 17 | DV44: 16503 | DW44: Parliament|Administration | DX44: 002 | DY44: 002 | DZ44: 002002 | EC44: 212 | ED44: 57 | EE44: 2 | EF44: Parliament | EG44: 1 | EH44: Strategic Leadership and Governance | EI44: 4 | EJ44: Parliamentary Budget Office | EK44: Payments for capital assets | EL44: Machinery and equipment | EM44: Other machinery and equipment | EN44: 57 | EO44: 0 | EP44: 0 | EQ44: 0 | ER44: 0 | ES44: 0 | ET44: 0 | EU44: 0 | EW44: 0 | EX44: 0 | EY44: 0 | EZ44: 0 | FA44: 0 | FB44: Parliament|Strategic Leadership and Governance | FC44: 002 | FD44: 001 | FE44: 004 | FF44: 057 | FG44: 002001 | FH44: 002057 | FI44: 57 | FJ44: 002001004057 | FL44: 002001057 | FT44: 3 | FU44: Communications | FV44: 1 | FW44: Administration | FX44: 1 | FY44: Ministry | GK44: Checks | GL44: 1 | GM44: 0 | GN44: 43 | GR44: International Relations and Cooperation | GS44: 1 | GT44: Administration | GU44: 3 | GV44: Audit Services | GW44: Employee social benefits | GX44: Social benefits | GY44: NAT | GZ44: International Relations and Cooperation|Administration|Audit Services|Social benefits|Employee social benefits|1 | HA44: 131 | HB44: 138 | HC44: 145 | HD44: 110 | HE44: 0
Y45: 21 | AA45: 21 | AB45: 28 | AC45: Labour | AF45: Judy Naidoo | AG45: (012) 315 5269 | AH45: Judy.Naidoo@treasury.gov.za | AI45: Kismore Mangondo | AJ45: (012) 315 5558 | AK45: kismore.mangondo@treasury.gov.za | AP45: 3670559 | AQ45: 3893376 | AR45: 4039525 | AT45: 21 | AU45: Justice and Constitutional Development | AV45: 22410848 | AW45: 23884423 | AX45: 24899934 | AY45: Capital Transfers and subsidies - Provinces and municipalities | BA45: Machinery and equipment | DG45: Parliament | DH45: Administration | DI45: 13 | DJ45: 23 | DK45: 23 | DL45: 0 | DM45: 8 | DN45: 7194 | DO45: 16 | DP45: 12920 | DQ45: 16 | DR45: 15983 | DS45: 16 | DT45: 17389 | DU45: 16 | DV45: 18967 | DW45: Parliament|Administration | DX45: 002 | DY45: 002 | DZ45: 002002 | EC45: 221 | ED45: 1 | EE45: 2 | EF45: Parliament | EG45: 1 | EH45: Strategic Leadership and Governance | EI45: 5 | EJ45: Office of Institutions Supporting Democracy | EK45: Current payments | EL45: Compensation of employees | EM45: Compensation of employees | EN45: 6101 | EO45: 0 | EP45: 0 | EQ45: 0 | ER45: 0 | ES45: 8259 | ET45: 9109 | EU45: 9812 | EW45: 0 | EX45: 0 | EY45: 9109 | EZ45: 9812 | FA45: 10177 | FB45: Parliament|Strategic Leadership and Governance | FC45: 002 | FD45: 001 | FE45: 005 | FF45: 001 | FG45: 002001 | FH45: 002001 | FI45: 1 | FJ45: 002001005001 | FL45: 002001001 | FT45: 3 | FU45: Communications | FV45: 1 | FW45: Administration | FX45: 2 | FY45: Departmental Management | GK45: Metadata | GL45: 0 | GM45: 1 | GN45: 44 | GR45: International Relations and Cooperation | GS45: 1 | GT45: Administration | GU45: 4 | GV45: Financial Management | GW45: Employee social benefits | GX45: Social benefits | GY45: NAT | GZ45: International Relations and Cooperation|Administration|Financial Management|Social benefits|Employee social benefits|1 | HA45: 138 | HB45: 146 | HC45: 153 | HD45: 116 | HE45: 0
Y46: 22 | AA46: 22 | AB46: 42 | AC46: Military Veterans | AF46: Mashudu Bidzha | AG46: (012) 315 5344 | AH46: Mashudu.Bidzha@treasury.gov.za | AI46: Lesiba Ledwaba | AJ46: (012) 315 6660 | AK46: Lesiba.Ledwaba@treasury.gov.za | AP46: 701771 | AQ46: 743716 | AR46: 772272 | AT46: 22 | AU46: Office of the Chief Justice and Judicial Administration | AV46: 2450778 | AW46: 2604607 | AX46: 2717255 | AY46: Capital Transfers and subsidies - Departmental agencies and accounts | BA46: Heritage assets | DG46: Parliament | DH46: Administration | DI46: 14 | DJ46: 8 | DK46: 8 | DL46: 0 | DM46: 7 | DN46: 6479 | DO46: 6 | DP46: 5021 | DQ46: 6 | DR46: 6475 | DS46: 6 | DT46: 7038 | DU46: 6 | DV46: 7736 | DW46: Parliament|Administration | DX46: 002 | DY46: 002 | DZ46: 002002 | EC46: 221 | ED46: 2 | EE46: 2 | EF46: Parliament | EG46: 1 | EH46: Strategic Leadership and Governance | EI46: 5 | EJ46: Office of Institutions Supporting Democracy | EK46: Current payments | EL46: Goods and services | EM46: Goods and services | EN46: 321 | EO46: 0 | EP46: 0 | EQ46: 0 | ER46: 0 | ES46: 2023 | ET46: 2084 | EU46: 2375 | EW46: 0 | EX46: 0 | EY46: 2084 | EZ46: 2375 | FA46: 2467 | FB46: Parliament|Strategic Leadership and Governance | FC46: 002 | FD46: 001 | FE46: 005 | FF46: 002 | FG46: 002001 | FH46: 002002 | FI46: 2 | FJ46: 002001005002 | FL46: 002001002 | FT46: 3 | FU46: Communications | FV46: 1 | FW46: Administration | FX46: 3 | FY46: Internal Audit | GL46: 0 | GM46: 0 | GN46: 45 | GR46: International Relations and Cooperation | GS46: 1 | GT46: Administration | GU46: 5 | GV46: Corporate Services | GW46: Employee social benefits | GX46: Social benefits | GY46: NAT | GZ46: International Relations and Cooperation|Administration|Corporate Services|Social benefits|Employee social benefits|1 | HA46: 1255 | HB46: 1324 | HC46: 1387 | HD46: 114 | HE46: 0
Y47: 23 | AA47: 23 | AB47: 29 | AC47: Mineral Resources | AF47: Bothwell Deka | AG47: (012) 395 6784 | AH47: Bothwell.Deka@treasury.gov.za | AI47: Nico Lekhethe | AJ47: (012) 315 5773 | AK47: Nico.Likhethe@treasury.gov.za | AP47: 2122992 | AQ47: 2042846 | AR47: 2119666 | AT47: 23 | AU47: Police | AV47: 101938374 | AW47: 108588781 | AX47: 113183604 | AY47: Capital Transfers and subsidies - Higher education institutions | BA47: Specialised military assets | DG47: Parliament | DH47: Administration | DI47: 15 | DJ47: 9 | DK47: 9 | DL47: 0 | DM47: 4 | DN47: 4241 | DO47: 7 | DP47: 6757 | DQ47: 7 | DR47: 8475 | DS47: 7 | DT47: 9154 | DU47: 7 | DV47: 9833 | DW47: Parliament|Administration | DX47: 002 | DY47: 002 | DZ47: 002002 | EC47: 221 | ED47: 57 | EE47: 2 | EF47: Parliament | EG47: 1 | EH47: Strategic Leadership and Governance | EI47: 5 | EJ47: Office of Institutions Supporting Democracy | EK47: Payments for capital assets | EL47: Machinery and equipment | EM47: Other machinery and equipment | EN47: 21 | EO47: 0 | EP47: 0 | EQ47: 0 | ER47: 0 | ES47: 0 | ET47: 0 | EU47: 0 | EW47: 0 | EX47: 0 | EY47: 0 | EZ47: 0 | FA47: 0 | FB47: Parliament|Strategic Leadership and Governance | FC47: 002 | FD47: 001 | FE47: 005 | FF47: 057 | FG47: 002001 | FH47: 002057 | FI47: 57 | FJ47: 002001005057 | FL47: 002001057 | FT47: 3 | FU47: Communications | FV47: 1 | FW47: Administration | FX47: 4 | FY47: Corporate Services | GL47: 0 | GM47: 0 | GN47: 46 | GR47: International Relations and Cooperation | GS47: 1 | GT47: Administration | GU47: 6 | GV47: Diplomatic Training, Research and Development | GW47: Employee social benefits | GX47: Social benefits | GY47: NAT | GZ47: International Relations and Cooperation|Administration|Diplomatic Training, Research and Development|Social benefits|Employee social benefits|1 | HA47: 215 | HB47: 227 | HC47: 238 | HD47: 141 | HE47: 0
Y48: 24 | AA48: 24 | AB48: 44 | AC48: National School of Government | AF48: George Tembo | AG48: (012) 315 5514 | AH48: George.Tembo@treasury.gov.za | AI48: Uvadhya Singh | AJ48: (012) 315 9030 | AK48: Uvadhya.Singh@treasury.gov.za | AP48: 208844 | AQ48: 229860 | AR48: 238532 | AT48: 24 | AU48: Agriculture, Forestry and Fisheries | AV48: 7772069 | AW48: 8265313 | AX48: 8512580 | AY48: Capital Transfers and subsidies - Foreign governments and international organisations | BA48: Biological assets | DG48: Parliament | DH48: Administration | DI48: 16 | DJ48: 1 | DK48: 1 | DL48: 0 | DM48: 1 | DN48: 2482 | DO48: 1 | DP48: 2300 | DQ48: 1 | DR48: 2785 | DS48: 1 | DT48: 3027 | DU48: 1 | DV48: 3184 | DW48: Parliament|Administration | DX48: 002 | DY48: 002 | DZ48: 002002 | EC48: 222 | ED48: 1 | EE48: 2 | EF48: Parliament | EG48: 2 | EH48: Administration | EI48: 1 | EJ48: Secretary's Office | EK48: Current payments | EL48: Compensation of employees | EM48: Compensation of employees | EN48: 12085 | EO48: 10418 | EP48: 17199 | EQ48: 17199 | ER48: 17199 | ES48: 9103 | ET48: 10040 | EU48: 10815 | EW48: 0 | EX48: 0 | EY48: 10040 | EZ48: 10815 | FA48: 11219 | FB48: Parliament|Administration | FC48: 002 | FD48: 002 | FE48: 001 | FF48: 001 | FG48: 002002 | FH48: 002001 | FI48: 1 | FJ48: 002002001001 | FL48: 002002001 | FT48: 3 | FU48: Communications | FV48: 1 | FW48: Administration | FX48: 5 | FY48: Financial Management | GL48: 0 | GM48: 0 | GN48: 47 | GR48: International Relations and Cooperation | GS48: 2 | GT48: International Relations | GU48: 1 | GV48: Africa | GW48: Employee social benefits | GX48: Social benefits | GY48: NAT | GZ48: International Relations and Cooperation|International Relations|Africa|Social benefits|Employee social benefits|1 | HA48: 2133 | HB48: 2250 | HC48: 2357 | HD48: 111 | HE48: 0
Y49: 25 | AA49: 25 | AB49: 7 | AC49: National Treasury | AF49: Mokgatla Tema | AG49: (012) 315 5948 | AH49: Mokgatla.Tema@treasury.gov.za | AI49: Rhoda Marais | AJ49: (012) 315 5906 | AK49: Rhoda.Marais@treasury.gov.za | AP49: 814634761 | AQ49: 879163462 | AR49: 942271462 | AT49: 25 | AU49: Economic Development | AV49: 1104674 | AW49: 1195266 | AX49: 1244873 | AY49: Capital Transfers and subsidies - Public corporations and private enterprises | BA49: Land and sub-soil assets | DG49: Parliament | DH49: Core Business | DI49: 7 | DJ49: 9 | DK49: 9 | DL49: 0 | DM49: 18 | DN49: 4967 | DO49: 5 | DP49: 1067 | DQ49: 5 | DR49: 1099 | DS49: 5 | DT49: 1291 | DU49: 5 | DV49: 1389 | DW49: Parliament|Core Business | DX49: 002 | DY49: 003 | DZ49: 002003 | EC49: 222 | ED49: 2 | EE49: 2 | EF49: Parliament | EG49: 2 | EH49: Administration | EI49: 1 | EJ49: Secretary's Office | EK49: Current payments | EL49: Goods and services | EM49: Goods and services | EN49: 15969 | EO49: 18746 | EP49: 19413 | EQ49: 19413 | ER49: 19413 | ES49: 4550 | ET49: 6595 | EU49: 5114 | EW49: 0 | EX49: 0 | EY49: 6595 | EZ49: 5114 | FA49: 5312 | FB49: Parliament|Administration | FC49: 002 | FD49: 002 | FE49: 001 | FF49: 002 | FG49: 002002 | FH49: 002002 | FI49: 2 | FJ49: 002002001002 | FL49: 002002002 | FT49: 3 | FU49: Communications | FV49: 2 | FW49: Communications Policy, Research and Development | FX49: 1 | FY49: Broadcasting Policy | GL49: 0 | GM49: 0 | GN49: 48 | GR49: International Relations and Cooperation | GS49: 2 | GT49: International Relations | GU49: 2 | GV49: Asia and Middle East | GW49: Employee social benefits | GX49: Social benefits | GY49: NAT | GZ49: International Relations and Cooperation|International Relations|Asia and Middle East|Social benefits|Employee social benefits|1 | HA49: 1650 | HB49: 1741 | HC49: 1824 | HD49: 125 | HE49: 0
Y50: 26 | AA50: 26 | AB50: 22 | AC50: Office of the Chief Justice and Judicial Administration | AF50: Elvis Ramafamba | AG50: (012) 315 5204 | AH50: elvis.ramafamba@treasury.gov.za | AI50: Keabetswe Matlwa | AJ50: (012) 395 6678 | AK50: Keabetswe.Matlwa@treasury.gov.za | AP50: 2462807 | AQ50: 2616828 | AR50: 2716107 | AT50: 26 | AU50: Energy | AV50: 7160027 | AW50: 7417988 | AX50: 8325439 | AY50: Capital Transfers and subsidies - Non-profit institutions | BA50: Software and other intangible assets | DG50: Parliament | DH50: Core Business | DI50: 8 | DJ50: 31 | DK50: 31 | DL50: 0 | DM50: 46 | DN50: 15234 | DO50: 17 | DP50: 4386 | DQ50: 17 | DR50: 4518 | DS50: 17 | DT50: 5308 | DU50: 17 | DV50: 5711 | DW50: Parliament|Core Business | DX50: 002 | DY50: 003 | DZ50: 002003 | EC50: 222 | ED50: 3 | EE50: 2 | EF50: Parliament | EG50: 2 | EH50: Administration | EI50: 1 | EJ50: Secretary's Office | EK50: Current payments | EL50: Interest and rent on land | EM50: Interest and rent on land | EN50: 59 | EO50: 0 | EP50: 0 | EQ50: 0 | ER50: 0 | ES50: 0 | ET50: 0 | EU50: 0 | EW50: 0 | EX50: 0 | EY50: 0 | EZ50: 0 | FA50: 0 | FB50: Parliament|Administration | FC50: 002 | FD50: 002 | FE50: 001 | FF50: 003 | FG50: 002002 | FH50: 002003 | FI50: 3 | FJ50: 002002001003 | FL50: 002002003 | FT50: 3 | FU50: Communications | FV50: 2 | FW50: Communications Policy, Research and Development | FX50: 2 | FY50: Media Policy | GL50: 0 | GM50: 0 | GN50: 49 | GR50: International Relations and Cooperation | GS50: 2 | GT50: International Relations | GU50: 3 | GV50: Americas and Caribbean | GW50: Employee social benefits | GX50: Social benefits | GY50: NAT | GZ50: International Relations and Cooperation|International Relations|Americas and Caribbean|Social benefits|Employee social benefits|1 | HA50: 134 | HB50: 141 | HC50: 148 | HD50: 127 | HE50: 0
Y51: 27 | AA51: 27 | AB51: 2 | AC51: Parliament | AF51: Timothy Murwa | AG51: (012) 315 5002 | AH51: Timothy.Murwa@treasury.gov.za | AI51: Isaac Mabena | AJ51: (012) 315 5582 | AK51: Isaac.Mabena@treasury.gov.za | AP51: 2720839 | AQ51: 2907948 | AR51: 3017492 | AT51: 27 | AU51: Environmental Affairs | AV51: 7705142 | AW51: 7962395 | AX51: 8260955 | AY51: Capital Transfers and subsidies - Households | BA51: Capitalised compensation of employees | DG51: Parliament | DH51: Core Business | DI51: 9 | DJ51: 100 | DK51: 100 | DL51: 0 | DM51: 158 | DN51: 65099 | DO51: 86 | DP51: 28029 | DQ51: 86 | DR51: 28869 | DS51: 86 | DT51: 33921 | DU51: 86 | DV51: 36499 | DW51: Parliament|Core Business | DX51: 002 | DY51: 003 | DZ51: 002003 | EC51: 223 | ED51: 57 | EE51: 2 | EF51: Parliament | EG51: 2 | EH51: Administration | EI51: 1 | EJ51: Secretary's Office | EK51: Payments for capital assets | EL51: Machinery and equipment | EM51: Other machinery and equipment | EN51: 249 | EO51: 420 | EP51: 481 | EQ51: 481 | ER51: 481 | ES51: 200 | ET51: 212 | EU51: 224 | EW51: 0 | EX51: 0 | EY51: 212 | EZ51: 224 | FA51: 237 | FB51: Parliament|Administration | FC51: 002 | FD51: 002 | FE51: 001 | FF51: 057 | FG51: 002002 | FH51: 002057 | FI51: 57 | FJ51: 002002001057 | FL51: 002002057 | FT51: 3 | FU51: Communications | FV51: 2 | FW51: Communications Policy, Research and Development | FX51: 3 | FY51: Technology and Engineering Services | GL51: 0 | GM51: 0 | GN51: 50 | GR51: International Relations and Cooperation | GS51: 2 | GT51: International Relations | GU51: 4 | GV51: Europe | GW51: Employee social benefits | GX51: Social benefits | GY51: NAT | GZ51: International Relations and Cooperation|International Relations|Europe|Social benefits|Employee social benefits|1 | HA51: 2181 | HB51: 2301 | HC51: 2410 | HD51: 111 | HE51: 0
Y52: 28 | AA52: 28 | AB52: 8 | AC52: Planning, Monitoring and Evaluation | AF52: Mokgatla Tema | AG52: (012) 315 5948 | AH52: Mokgatla.Tema@treasury.gov.za | AI52: Viwe Sobudula | AJ52: (0)12 315 5015 | AK52: Viwe.Sobudula@treasury.gov.za | AP52: 1015240 | AQ52: 1069712 | AR52: 1109675 | AT52: 28 | AU52: Labour | AV52: 3637749 | AW52: 3857152 | AX52: 4009847 | AY52: Payments for capital assets - Buildings and other fixed structures | BA52: Capitalised goods and services | DG52: Parliament | DH52: Core Business | DI52: 10 | DJ52: 313 | DK52: 313 | DL52: 0 | DM52: 262 | DN52: 130828 | DO52: 286 | DP52: 110072 | DQ52: 286 | DR52: 121080 | DS52: 286 | DT52: 142269 | DU52: 286 | DV52: 153081 | DW52: Parliament|Core Business | DX52: 002 | DY52: 003 | DZ52: 002003 | EC52: 223 | ED52: 1 | EE52: 2 | EF52: Parliament | EG52: 2 | EH52: Administration | EI52: 2 | EJ52: Finance Management Office | EK52: Current payments | EL52: Compensation of employees | EM52: Compensation of employees | EN52: 37918 | EO52: 36774 | EP52: 44071 | EQ52: 44071 | ER52: 44071 | ES52: 45738 | ET52: 50054 | EU52: 53917 | EW52: 0 | EX52: 0 | EY52: 50054 | EZ52: 53917 | FA52: 55927 | FB52: Parliament|Administration | FC52: 002 | FD52: 002 | FE52: 002 | FF52: 001 | FG52: 002002 | FH52: 002001 | FI52: 1 | FJ52: 002002002001 | FL52: 002002001 | FT52: 3 | FU52: Communications | FV52: 3 | FW52: Industry and Capacity Development | FX52: 1 | FY52: Enterprise Development | GL52: 0 | GM52: 0 | GN52: 51 | GR52: International Relations and Cooperation | GS52: 3 | GT52: International Cooperation | GU52: 1 | GV52: Global System of Governance | GW52: Employee social benefits | GX52: Social benefits | GY52: NAT | GZ52: International Relations and Cooperation|International Cooperation|Global System of Governance|Social benefits|Employee social benefits|1 | HA52: 1255 | HB52: 1324 | HC52: 1387 | HD52: 134 | HE52: 0
Y53: 29 | AA53: 29 | AB53: 23 | AC53: Police | AF53: Nompumelelo Radebe | AG53: (012) 315 5957 | AH53: Nompumelelo.Radebe@treasury.gov.za | AI53: Mmathapelo Maphangela | AJ53: (012) 406 9013 | AK53: Mmathapelo.Maphangela@treasury.gov.za | AP53: 104166267 | AQ53: 111013178 | AR53: 115188429 | AT53: 29 | AU53: Mineral Resources | AV53: 2177001 | AW53: 2151997 | AX53: 2257932 | AY53: Payments for capital assets - Machinery and equipment | BA53: Payments for financial assets | DG53: Parliament | DH53: Core Business | DI53: 11 | DJ53: 173 | DK53: 173 | DL53: 0 | DM53: 66 | DN53: 57897 | DO53: 154 | DP53: 90375 | DQ53: 154 | DR53: 93086 | DS53: 154 | DT53: 109668 | DU53: 154 | DV53: 118003 | DW53: Parliament|Core Business | DX53: 002 | DY53: 003 | DZ53: 002003 | EC53: 223 | ED53: 2 | EE53: 2 | EF53: Parliament | EG53: 2 | EH53: Administration | EI53: 2 | EJ53: Finance Management Office | EK53: Current payments | EL53: Goods and services | EM53: Goods and services | EN53: 8846 | EO53: 7483 | EP53: 5306 | EQ53: 5306 | ER53: 5306 | ES53: 3365 | ET53: 13116 | EU53: 4540 | EW53: 0 | EX53: 0 | EY53: 13116 | EZ53: 4540 | FA53: 4720 | FB53: Parliament|Administration | FC53: 002 | FD53: 002 | FE53: 002 | FF53: 002 | FG53: 002002 | FH53: 002002 | FI53: 2 | FJ53: 002002002002 | FL53: 002002002 | FT53: 3 | FU53: Communications | FV53: 3 | FW53: Industry and Capacity Development | FX53: 2 | FY53: Broadcasting Digital Migration | GL53: 0 | GM53: 0 | GN53: 52 | GR53: International Relations and Cooperation | GS53: 3 | GT53: International Cooperation | GU53: 2 | GV53: Continental Cooperation | GW53: Employee social benefits | GX53: Social benefits | GY53: NAT | GZ53: International Relations and Cooperation|International Cooperation|Continental Cooperation|Social benefits|Employee social benefits|1 | HA53: 39 | HB53: 41 | HC53: 43 | HD53: 130 | HE53: 0
Y54: 30 | AA54: 30 | AB54: 9 | AC54: Public Enterprises | AF54: Isaac Kurasha | AG54: (012) 315 5213 | AH54: isaac.kurasha@treasury.gov.za | AI54: Ntandokazi Makaula | AJ54: (012) 395 6667 | AK54: Ntandokazi.Makaula@treasury.gov.za | AP54: 312835 | AQ54: 332024 | AR54: 344462 | AT54: 30 | AU54: Science and Technology | AV54: 8574393 | AW54: 8853826 | AX54: 9156517 | AY54: Payments for capital assets - Heritage assets | DG54: Parliament | DH54: Core Business | DI54: 12 | DJ54: 9 | DK54: 9 | DL54: 0 | DM54: 67 | DN54: 75694 | DO54: 8 | DP54: 6682 | DQ54: 8 | DR54: 6882 | DS54: 8 | DT54: 8086 | DU54: 8 | DV54: 8701 | DW54: Parliament|Core Business | DX54: 002 | DY54: 003 | DZ54: 002003 | EC54: 224 | ED54: 57 | EE54: 2 | EF54: Parliament | EG54: 2 | EH54: Administration | EI54: 2 | EJ54: Finance Management Office | EK54: Payments for capital assets | EL54: Machinery and equipment | EM54: Other machinery and equipment | EN54: 1407 | EO54: 700 | EP54: 254 | EQ54: 254 | ER54: 254 | ES54: 261 | ET54: 275 | EU54: 292 | EW54: 0 | EX54: 0 | EY54: 275 | EZ54: 292 | FA54: 310 | FB54: Parliament|Administration | FC54: 002 | FD54: 002 | FE54: 002 | FF54: 057 | FG54: 002002 | FH54: 002057 | FI54: 57 | FJ54: 002002002057 | FL54: 002002057 | FT54: 3 | FU54: Communications | FV54: 3 | FW54: Industry and Capacity Development | FX54: 3 | FY54: Industry Research and Analysis | GL54: 0 | GM54: 0 | GN54: 53 | GR54: International Relations and Cooperation | GS54: 3 | GT54: International Cooperation | GU54: 4 | GV54: North-South Dialogue | GW54: Employee social benefits | GX54: Social benefits | GY54: NAT | GZ54: International Relations and Cooperation|International Cooperation|North-South Dialogue|Social benefits|Employee social benefits|1 | HA54: 56 | HB54: 59 | HC54: 62 | HD54: 127 | HE54: 0
Y55: 31 | AA55: 31 | AB55: 10 | AC55: Public Service and Administration | AF55: George Tembo | AG55: (012) 315 5514 | AH55: George.Tembo@treasury.gov.za | AI55: Uvadhya Singh | AJ55: (012) 315 9030 | AK55: Uvadhya.Singh@treasury.gov.za | AP55: 574821 | AQ55: 615814 | AR55: 638984 | AT55: 31 | AU55: Small Business Development | AV55: 1606783 | AW55: 1696131 | AX55: 1760701 | AY55: Payments for capital assets - Specialised military assets | DG55: Parliament | DH55: Core Business | DI55: 13 | DJ55: 111 | DK55: 111 | DL55: 0 | DM55: 31 | DN55: 65066 | DO55: 84 | DP55: 79035 | DQ55: 84 | DR55: 81406 | DS55: 84 | DT55: 95652 | DU55: 84 | DV55: 102560 | DW55: Parliament|Core Business | DX55: 002 | DY55: 003 | DZ55: 002003 | EC55: 224 | ED55: 62 | EE55: 2 | EF55: Parliament | EG55: 2 | EH55: Administration | EI55: 2 | EJ55: Finance Management Office | EK55: Payments for capital assets | EL55: Software and other intangible assets | EM55: Software and other intangible assets | EN55: 0 | EO55: 0 | EP55: 0 | EQ55: 0 | ER55: 0 | ES55: 250 | ET55: 0 | EU55: 0 | EW55: 0 | EX55: 0 | EY55: 0 | EZ55: 0 | FA55: 0 | FB55: Parliament|Administration | FC55: 002 | FD55: 002 | FE55: 002 | FF55: 062 | FG55: 002002 | FH55: 002062 | FI55: 62 | FJ55: 002002002062 | FL55: 002002062 | FT55: 3 | FU55: Communications | FV55: 3 | FW55: Industry and Capacity Development | FX55: 4 | FY55: Intergovernmental Relations and Stakeholder Management | GR55: International Relations and Cooperation | GS55: 4 | GT55: Public Diplomacy and Protocol Services | GU55: 1 | GV55: Public Diplomacy | GW55: Employee social benefits | GX55: Social benefits | GY55: NAT | GZ55: International Relations and Cooperation|Public Diplomacy and Protocol Services|Public Diplomacy|Social benefits|Employee social benefits|1 | HA55: 685 | HB55: 723 | HC55: 757 | HD55: 136 | HE55: 0
Y56: 32 | AA56: 32 | AB56: 45 | AC56: Public Service Commission | AF56: George Tembo | AG56: (012) 315 5514 | AH56: George.Tembo@treasury.gov.za | AI56: Uvadhya Singh | AJ56: (012) 315 9030 | AK56: Uvadhya.Singh@treasury.gov.za | AP56: 297627 | AQ56: 316330 | AR56: 328206 | AT56: 32 | AU56: Telecommunications and Postal Services | AV56: 2460085 | AW56: 2959220 | AX56: 1647594 | AY56: Payments for capital assets - Biological assets | DG56: Parliament | DH56: Core Business | DI56: 14 | DJ56: 32 | DK56: 32 | DL56: 0 | DM56: 17 | DN56: 42949 | DO56: 26 | DP56: 28120 | DQ56: 26 | DR56: 28963 | DS56: 26 | DT56: 34032 | DU56: 26 | DV56: 36993 | DW56: Parliament|Core Business | DX56: 002 | DY56: 003 | DZ56: 002003 | EC56: 224 | ED56: 1 | EE56: 2 | EF56: Parliament | EG56: 2 | EH56: Administration | EI56: 3 | EJ56: Internal Audit | EK56: Current payments | EL56: Compensation of employees | EM56: Compensation of employees | EN56: 7335 | EO56: 6671 | EP56: 8699 | EQ56: 8699 | ER56: 8699 | ES56: 8612 | ET56: 9500 | EU56: 10232 | EW56: 0 | EX56: 0 | EY56: 9500 | EZ56: 10232 | FA56: 10612 | FB56: Parliament|Administration | FC56: 002 | FD56: 002 | FE56: 003 | FF56: 001 | FG56: 002002 | FH56: 002001 | FI56: 1 | FJ56: 002002003001 | FL56: 002002001 | FT56: 3 | FU56: Communications | FV56: 4 | FW56: Entity Oversight | FX56: 1 | FY56: Programme Management for Entity Oversight | GR56: International Relations and Cooperation | GS56: 4 | GT56: Public Diplomacy and Protocol Services | GU56: 2 | GV56: Protocol Services | GW56: Employee social benefits | GX56: Social benefits | GY56: NAT | GZ56: International Relations and Cooperation|Public Diplomacy and Protocol Services|Protocol Services|Social benefits|Employee social benefits|1 | HA56: 1013 | HB56: 1069 | HC56: 1120 | HD56: 137 | HE56: 0
Y57: 33 | AA57: 33 | AB57: 11 | AC57: Public Works | AF57: George Tembo | AG57: (012) 315 5514 | AH57: George.Tembo@treasury.gov.za | AI57: Mercy Mhlophe | AJ57: (012) 315 5598 | AK57: mercy.mhlope@treasury.gov.za | AP57: 8237755 | AQ57: 8919042 | AR57: 9252358 | AT57: 33 | AU57: Tourism | AV57: 2480984 | AW57: 2586206 | AX57: 2687740 | AY57: Payments for capital assets - Land and sub-soil assets | DG57: Parliament | DH57: Core Business | DI57: 15 | DJ57: 11 | DK57: 11 | DL57: 0 | DM57: 6 | DN57: 16351 | DO57: 9 | DP57: 12152 | DQ57: 9 | DR57: 12516 | DS57: 9 | DT57: 14706 | DU57: 9 | DV57: 15986 | DW57: Parliament|Core Business | DX57: 002 | DY57: 003 | DZ57: 002003 | EC57: 224 | ED57: 2 | EE57: 2 | EF57: Parliament | EG57: 2 | EH57: Administration | EI57: 3 | EJ57: Internal Audit | EK57: Current payments | EL57: Goods and services | EM57: Goods and services | EN57: 4608 | EO57: 7085 | EP57: 7425 | EQ57: 7425 | ER57: 7425 | ES57: 7204 | ET57: 7573 | EU57: 6457 | EW57: 0 | EX57: 0 | EY57: 7573 | EZ57: 6457 | FA57: 6703 | FB57: Parliament|Administration | FC57: 002 | FD57: 002 | FE57: 003 | FF57: 002 | FG57: 002002 | FH57: 002002 | FI57: 2 | FJ57: 002002003002 | FL57: 002002002 | FT57: 3 | FU57: Communications | FV57: 4 | FW57: Entity Oversight | FX57: 2 | FY57: Broadcasting and Community Media | GR57: International Relations and Cooperation | GS57: 5 | GT57: International Transfers | GU57: 1 | GV57: Departmental agencies | GW57: African Renaissance and International Cooperation Fund | GX57: Departmental agencies (non-business entities) | GY57: NAT | GZ57: International Relations and Cooperation|International Transfers|Departmental agencies|Departmental agencies (non-business entities)|African Renaissance and International Cooperation Fund|1 | HA57: 48816 | HB57: 51452 | HC57: 53364 | HD57: 186 | HE57: 0
Y58: 34 | AA58: 34 | AB58: 39 | AC58: Rural Development and Land Reform | AF58: Bothwell Deka | AG58: (012) 395 6784 | AH58: Bothwell.Deka@treasury.gov.za | AI58: Nico Lekhethe | AJ58: (012) 315 5773 | AK58: nico.likhethe@treasury.gov.za | AP58: 10669914 | AQ58: 11355542 | AR58: 11793733 | AT58: 34 | AU58: Trade and Industry | AV58: 10038264 | AW58: 8994631 | AX58: 9339369 | AY58: Payments for capital assets - Software and other intangible assets | DG58: Parliament | DH58: Core Business | DI58: 16 | DJ58: 2 | DK58: 2 | DL58: 0 | DM58: 0 | DN58: 0 | DO58: 1 | DP58: 1399 | DQ58: 1 | DR58: 1785 | DS58: 1 | DT58: 2097 | DU58: 1 | DV58: 2278 | DW58: Parliament|Core Business | DX58: 002 | DY58: 003 | DZ58: 002003 | EC58: 231 | ED58: 57 | EE58: 2 | EF58: Parliament | EG58: 2 | EH58: Administration | EI58: 3 | EJ58: Internal Audit | EK58: Payments for capital assets | EL58: Machinery and equipment | EM58: Other machinery and equipment | EN58: 3 | EO58: 192 | EP58: 201 | EQ58: 201 | ER58: 201 | ES58: 212 | ET58: 224 | EU58: 32 | EW58: 0 | EX58: 0 | EY58: 224 | EZ58: 32 | FA58: 34 | FB58: Parliament|Administration | FC58: 002 | FD58: 002 | FE58: 003 | FF58: 057 | FG58: 002002 | FH58: 002057 | FI58: 57 | FJ58: 002002003057 | FL58: 002002057 | FT58: 3 | FU58: Communications | FV58: 4 | FW58: Entity Oversight | FX58: 3 | FY58: Communication and Branding | GR58: International Relations and Cooperation | GS58: 5 | GT58: International Transfers | GU58: 1 | GV58: Departmental agencies | GW58: South African Development Partnership Agency | GX58: Departmental agencies (non-business entities) | GY58: NAT | GZ58: International Relations and Cooperation|International Transfers|Departmental agencies|Departmental agencies (non-business entities)|South African Development Partnership Agency|1 | HA58: 10619 | HB58: 11252 | HC58: 11671 | HD58: 176 | HE58: 0
Y59: 35 | AA59: 35 | AB59: 30 | AC59: Science and Technology | AF59: Gcobisa Magazi | AG59: (012) 315 5320 | AH59: Gcobisa.Magazi@treasury.gov.za | AI59: Thabiso Molewa | AJ59: (012) 395 6780 | AK59: Thabiso.Molewa@treasury.gov.za | AP59: 8623242 | AQ59: 8903225 | AR59: 9234146 | AT59: 35 | AU59: Transport | AV59: 62547249 | AW59: 69046162 | AX59: 72240000 | AY59: Payments for financial assets | DG59: Parliament | DH59: Support Services | DI59: 7 | DJ59: 24 | DK59: 24 | DL59: 0 | DM59: 27 | DN59: 7246 | DO59: 0 | DP59: 0 | DQ59: 0 | DR59: 0 | DS59: 0 | DT59: 0 | DU59: 0 | DV59: 0 | DW59: Parliament|Support Services | DX59: 002 | DY59: 004 | DZ59: 002004 | EC59: 231 | ED59: 1 | EE59: 2 | EF59: Parliament | EG59: 2 | EH59: Administration | EI59: 4 | EJ59: Strategic Management and Governance | EK59: Current payments | EL59: Compensation of employees | EM59: Compensation of employees | EN59: 12415 | EO59: 22550 | EP59: 24855 | EQ59: 24855 | ER59: 24855 | ES59: 25837 | ET59: 28498 | EU59: 30697 | EW59: 0 | EX59: 0 | EY59: 28498 | EZ59: 30697 | FA59: 31840 | FB59: Parliament|Administration | FC59: 002 | FD59: 002 | FE59: 004 | FF59: 001 | FG59: 002002 | FH59: 002001 | FI59: 1 | FJ59: 002002004001 | FL59: 002002001 | FT59: 3 | FU59: Communications | FV59: 4 | FW59: Entity Oversight | FX59: 4 | FY59: Regulatory Institutions | GR59: International Relations and Cooperation | GS59: 5 | GT59: International Transfers | GU59: 2 | GV59: Membership contribution | GW59: African peer review mechanism | GX59: Foreign governments and international organisations | GY59: NAT | GZ59: International Relations and Cooperation|International Transfers|Membership contribution|Foreign governments and international organisations|African peer review mechanism |1 | HA59: 3613 | HB59: 3812 | HC59: 3955 | HD59: 170 | HE59: 0
Y60: 36 | AA60: 36 | AB60: 31 | AC60: Small Business Development | AF60: Isaac Kurasha | AG60: (012) 315 5213 | AH60: isaac.kurasha@treasury.gov.za | AI60: Rudzani Sikhwari | AJ60: (012) 315 5823 | AK60: rudzani.sikhwari@treasury.gov.za | AP60: 2713263 | AQ60: 2863333 | AR60: 2969980 | AT60: 36 | AU60: Water and Sanitation | AV60: 17216227 | AW60: 17270403 | AX60: 17924884 | DG60: Parliament | DH60: Support Services | DI60: 8 | DJ60: 209 | DK60: 209 | DL60: 0 | DM60: 180 | DN60: 49088 | DO60: 184 | DP60: 42155 | DQ60: 184 | DR60: 46032 | DS60: 184 | DT60: 49489 | DU60: 184 | DV60: 52996 | DW60: Parliament|Support Services | DX60: 002 | DY60: 004 | DZ60: 002004 | EC60: 232 | ED60: 2 | EE60: 2 | EF60: Parliament | EG60: 2 | EH60: Administration | EI60: 4 | EJ60: Strategic Management and Governance | EK60: Current payments | EL60: Goods and services | EM60: Goods and services | EN60: 706 | EO60: 4904 | EP60: 5139 | EQ60: 5139 | ER60: 5139 | ES60: 5624 | ET60: 5774 | EU60: 787 | EW60: 0 | EX60: 0 | EY60: 5774 | EZ60: 787 | FA60: 816 | FB60: Parliament|Administration | FC60: 002 | FD60: 002 | FE60: 004 | FF60: 002 | FG60: 002002 | FH60: 002002 | FI60: 2 | FJ60: 002002004002 | FL60: 002002002 | FT60: 4 | FU60: Cooperative Governance and Traditional Affairs | FV60: 1 | FW60: Administration | FX60: 1 | FY60: Ministry | GR60: International Relations and Cooperation | GS60: 5 | GT60: International Transfers | GU60: 2 | GV60: Membership contribution | GW60: African Union | GX60: Foreign governments and international organisations | GY60: NAT | GZ60: International Relations and Cooperation|International Transfers|Membership contribution|Foreign governments and international organisations|African Union|1 | HA60: 464297 | HB60: 265053 | HC60: 275441 | HD60: 153 | HE60: 0
Y61: 37 | AA61: 37 | AB61: 17 | AC61: Social Development | AF61: Pebetse Maleka | AG61: (012) 315 5566 | AH61: Pebetse.Maleka@treasury.gov.za | AI61: Yusuf Mayet | AJ61: (012) 315 5189 | AK61: Yusuf.Mayet@treasury.gov.za | AP61: 199471525 | AQ61: 213693105 | AR61: 228507908 | AT61: 37 | AU61: Arts and Culture | AV61: 4597141 | AW61: 4860613 | AX61: 5060163 | DG61: Parliament | DH61: Support Services | DI61: 9 | DJ61: 91 | DK61: 91 | DL61: 0 | DM61: 70 | DN61: 21817 | DO61: 78 | DP61: 22713 | DQ61: 78 | DR61: 24741 | DS61: 78 | DT61: 26506 | DU61: 78 | DV61: 28509 | DW61: Parliament|Support Services | DX61: 002 | DY61: 004 | DZ61: 002004 | EC61: 232 | ED61: 57 | EE61: 2 | EF61: Parliament | EG61: 2 | EH61: Administration | EI61: 4 | EJ61: Strategic Management and Governance | EK61: Payments for capital assets | EL61: Machinery and equipment | EM61: Other machinery and equipment | EN61: 149 | EO61: 249 | EP61: 261 | EQ61: 261 | ER61: 261 | ES61: 0 | ET61: 0 | EU61: 3 | EW61: 0 | EX61: 0 | EY61: 0 | EZ61: 3 | FA61: 3 | FB61: Parliament|Administration | FC61: 002 | FD61: 002 | FE61: 004 | FF61: 057 | FG61: 002002 | FH61: 002057 | FI61: 57 | FJ61: 002002004057 | FL61: 002002057 | FT61: 4 | FU61: Cooperative Governance and Traditional Affairs | FV61: 1 | FW61: Administration | FX61: 2 | FY61: Management | GR61: International Relations and Cooperation | GS61: 5 | GT61: International Transfers | GU61: 2 | GV61: Membership contribution | GW61: African, Caribbean and Pacific Group of States | GX61: Foreign governments and international organisations | GY61: NAT | GZ61: International Relations and Cooperation|International Transfers|Membership contribution|Foreign governments and international organisations|African, Caribbean and Pacific Group of States|1 | HA61: 7921 | HB61: 8357 | HC61: 8667 | HD61: 186 | HE61: 0
Y62: 38 | AA62: 38 | AB62: 40 | AC62: Sport and Recreation South Africa | AF62: Spencer Janari | AG62: (012) 315 5436 | AH62: Spencer.Janari@treasury.gov.za | AI62: Nkosana Mphafa | AJ62: (012) 315 1620 | AK62: Nkosana.Mphafa@treasury.gov.za | AP62: 1219329 | AQ62: 1291677 | AR62: 1339828 | AT62: 38 | AU62: Human Settlements | AV62: 31324916 | AW62: 31788559 | AX62: 32790834 | DG62: Parliament | DH62: Support Services | DI62: 10 | DJ62: 98 | DK62: 98 | DL62: 0 | DM62: 61 | DN62: 32161 | DO62: 91 | DP62: 31097 | DQ62: 91 | DR62: 34020 | DS62: 91 | DT62: 36470 | DU62: 91 | DV62: 39278 | DW62: Parliament|Support Services | DX62: 002 | DY62: 004 | DZ62: 002004 | EC62: 232 | ED62: 1 | EE62: 2 | EF62: Parliament | EG62: 2 | EH62: Administration | EI62: 5 | EJ62: Legislative Sector Support | EK62: Current payments | EL62: Compensation of employees | EM62: Compensation of employees | EN62: 13215 | EO62: 0 | EP62: 0 | EQ62: 0 | ER62: 0 | ES62: 0 | ET62: 0 | EU62: 0 | EW62: 0 | EX62: 0 | EY62: 0 | EZ62: 0 | FA62: 0 | FB62: Parliament|Administration | FC62: 002 | FD62: 002 | FE62: 005 | FF62: 001 | FG62: 002002 | FH62: 002001 | FI62: 1 | FJ62: 002002005001 | FL62: 002002001 | FT62: 4 | FU62: Cooperative Governance and Traditional Affairs | FV62: 1 | FW62: Administration | FX62: 3 | FY62: Corporate Services | GR62: International Relations and Cooperation | GS62: 5 | GT62: International Transfers | GU62: 2 | GV62: Membership contribution | GW62: Asian-Africa Legal Consultative Organisation | GX62: Foreign governments and international organisations | GY62: NAT | GZ62: International Relations and Cooperation|International Transfers|Membership contribution|Foreign governments and international organisations|Asian-Africa Legal Consultative Organisation|1 | HA62: 399 | HB62: 421 | HC62: 437 | HD62: 184 | HE62: 0
Y63: 39 | AA63: 39 | AB63: 12 | AC63: Statistics South Africa | AF63: Mokgatla Tema | AG63: (012) 315 5948 | AH63: Mokgatla.Tema@treasury.gov.za | AI63: Viwe Sobudula | AJ63: (0)12 315 5015 | AK63: Viwe.Sobudula@treasury.gov.za | AP63: 3304131 | AQ63: 4912824 | AR63: 2824077 | AT63: 39 | AU63: Rural Development and Land Reform | AV63: 10287514 | AW63: 11006996 | AX63: 11387875 | DG63: Parliament | DH63: Support Services | DI63: 11 | DJ63: 36 | DK63: 36 | DL63: 0 | DM63: 54 | DN63: 36740 | DO63: 29 | DP63: 14541 | DQ63: 29 | DR63: 15836 | DS63: 29 | DT63: 16974 | DU63: 29 | DV63: 18238 | DW63: Parliament|Support Services | DX63: 002 | DY63: 004 | DZ63: 002004 | EC63: 233 | ED63: 2 | EE63: 2 | EF63: Parliament | EG63: 2 | EH63: Administration | EI63: 5 | EJ63: Legislative Sector Support | EK63: Current payments | EL63: Goods and services | EM63: Goods and services | EN63: 5793 | EO63: 0 | EP63: 0 | EQ63: 0 | ER63: 0 | ES63: 0 | ET63: 0 | EU63: 0 | EW63: 0 | EX63: 0 | EY63: 0 | EZ63: 0 | FA63: 0 | FB63: Parliament|Administration | FC63: 002 | FD63: 002 | FE63: 005 | FF63: 002 | FG63: 002002 | FH63: 002002 | FI63: 2 | FJ63: 002002005002 | FL63: 002002002 | FT63: 4 | FU63: Cooperative Governance and Traditional Affairs | FV63: 1 | FW63: Administration | FX63: 4 | FY63: Financial Services | GR63: International Relations and Cooperation | GS63: 5 | GT63: International Transfers | GU63: 2 | GV63: Membership contribution | GW63: Biological and Toxin Weapons Convention | GX63: Foreign governments and international organisations | GY63: NAT | GZ63: International Relations and Cooperation|International Transfers|Membership contribution|Foreign governments and international organisations|Biological and Toxin Weapons Convention|1 | HA63: 723 | HB63: 763 | HC63: 791 | HD63: 179 | HE63: 0
Y64: 40 | AA64: 40 | AB64: 32 | AC64: Telecommunications and Postal Services | AF64: Rezah Atcha | AG64: (012) 315 5287 | AH64: Rezah.Atcha@treasury.gov.za | AI64: Keitumetse Motshegwe | AJ64: (012) 395 6750 | AK64: keitumetse.motshegwe@treasury.gov.za | AP64: 1782961 | AQ64: 1673771 | AR64: 1736602 | AT64: 40 | AU64: Sport and Recreation South Africa | AV64: 1123023 | AW64: 1174930 | AX64: 1209408 | DG64: Parliament | DH64: Support Services | DI64: 12 | DJ64: 70 | DK64: 70 | DL64: 0 | DM64: 18 | DN64: 19093 | DO64: 58 | DP64: 41180 | DQ64: 58 | DR64: 45886 | DS64: 58 | DT64: 49181 | DU64: 58 | DV64: 52873 | DW64: Parliament|Support Services | DX64: 002 | DY64: 004 | DZ64: 002004 | EC64: 233 | ED64: 57 | EE64: 2 | EF64: Parliament | EG64: 2 | EH64: Administration | EI64: 5 | EJ64: Legislative Sector Support | EK64: Payments for capital assets | EL64: Machinery and equipment | EM64: Other machinery and equipment | EN64: 295 | EO64: 0 | EP64: 0 | EQ64: 0 | ER64: 0 | ES64: 0 | ET64: 0 | EU64: 0 | EW64: 0 | EX64: 0 | EY64: 0 | EZ64: 0 | FA64: 0 | FB64: Parliament|Administration | FC64: 002 | FD64: 002 | FE64: 005 | FF64: 057 | FG64: 002002 | FH64: 002057 | FI64: 57 | FJ64: 002002005057 | FL64: 002002057 | FT64: 4 | FU64: Cooperative Governance and Traditional Affairs | FV64: 1 | FW64: Administration | FX64: 5 | FY64: Internal Audit and Risk Management | GR64: International Relations and Cooperation | GS64: 5 | GT64: International Transfers | GU64: 2 | GV64: Membership contribution | GW64: Commonwealth of Nations | GX64: Foreign governments and international organisations | GY64: NAT | GZ64: International Relations and Cooperation|International Transfers|Membership contribution|Foreign governments and international organisations|Commonwealth of Nations|1 | HA64: 12252 | HB64: 12926 | HC64: 13406 | HD64: 163 | HE64: 0
Y65: 41 | AA65: 41 | AB65: 1 | AC65: The Presidency | AF65: Timothy Murwa | AG65: (012) 315 5002 | AH65: Timothy.Murwa@treasury.gov.za | AI65: Yamkela Ngewu | AJ65: (012) 406 9078 | AK65: Yamkela.Ngewu@treasury.gov.za | AP65: 618096 | AQ65: 655598 | AR65: 680318 | AT65: 41 | AU65: Civilian Secretariat | AV65: 156312 | AW65: 166330 | AX65: 173321 | DG65: Parliament | DH65: Support Services | DI65: 13 | DJ65: 17 | DK65: 17 | DL65: 0 | DM65: 27 | DN65: 34494 | DO65: 13 | DP65: 10604 | DQ65: 13 | DR65: 11601 | DS65: 13 | DT65: 12436 | DU65: 13 | DV65: 13394 | DW65: Parliament|Support Services | DX65: 002 | DY65: 004 | DZ65: 002004 | EC65: 233 | ED65: 1 | EE65: 2 | EF65: Parliament | EG65: 2 | EH65: Administration | EI65: 6 | EJ65: Registrar of Member's Interest | EK65: Current payments | EL65: Compensation of employees | EM65: Compensation of employees | EN65: 2119 | EO65: 0 | EP65: 2658 | EQ65: 2658 | ER65: 2658 | ES65: 1696 | ET65: 1870 | EU65: 2014 | EW65: 0 | EX65: 0 | EY65: 1870 | EZ65: 2014 | FA65: 2088 | FB65: Parliament|Administration | FC65: 002 | FD65: 002 | FE65: 006 | FF65: 001 | FG65: 002002 | FH65: 002001 | FI65: 1 | FJ65: 002002006001 | FL65: 002002001 | FT65: 4 | FU65: Cooperative Governance and Traditional Affairs | FV65: 1 | FW65: Administration | FX65: 6 | FY65: Office Accommodation | GR65: International Relations and Cooperation | GS65: 5 | GT65: International Transfers | GU65: 2 | GV65: Membership contribution | GW65: Comprehensive Nuclear-Test-Ban Treaty | GX65: Foreign governments and international organisations | GY65: NAT | GZ65: International Relations and Cooperation|International Transfers|Membership contribution|Foreign governments and international organisations|Comprehensive Nuclear-Test-Ban Treaty|1 | HA65: 7531 | HB65: 7945 | HC65: 8239 | HD65: 177 | HE65: 0
Y66: 42 | AA66: 42 | AB66: 33 | AC66: Tourism | AF66: Gcobisa Magazi | AG66: (012) 315 5320 | AH66: Gcobisa.Magazi@treasury.gov.za | AI66: Ashley Ramasimu | AJ66: (012) 315 5166 | AK66: Ashley.Ramasimu@treasury.gov.za | AP66: 2536163 | AQ66: 2648518 | AR66: 2750177 | AT66: 42 | AU66: Military Veterans | AV66: 683073 | AW66: 710950 | AX66: 734951 | DG66: Parliament | DH66: Support Services | DI66: 14 | DJ66: 18 | DK66: 18 | DL66: 0 | DM66: 9 | DN66: 21494 | DO66: 18 | DP66: 18926 | DQ66: 18 | DR66: 20902 | DS66: 18 | DT66: 22335 | DU66: 18 | DV66: 23478 | DW66: Parliament|Support Services | DX66: 002 | DY66: 004 | DZ66: 002004 | EC66: 234 | ED66: 2 | EE66: 2 | EF66: Parliament | EG66: 2 | EH66: Administration | EI66: 6 | EJ66: Registrar of Member's Interest | EK66: Current payments | EL66: Goods and services | EM66: Goods and services | EN66: 213 | EO66: 0 | EP66: 342 | EQ66: 342 | ER66: 342 | ES66: 501 | ET66: 519 | EU66: 201 | EW66: 0 | EX66: 0 | EY66: 519 | EZ66: 201 | FA66: 209 | FB66: Parliament|Administration | FC66: 002 | FD66: 002 | FE66: 006 | FF66: 002 | FG66: 002002 | FH66: 002002 | FI66: 2 | FJ66: 002002006002 | FL66: 002002002 | FT66: 4 | FU66: Cooperative Governance and Traditional Affairs | FV66: 2 | FW66: Regional and Urban Development and Legislative Support | FX66: 1 | FY66: Management: Regional and Urban Development and Legislative Support | GR66: International Relations and Cooperation | GS66: 5 | GT66: International Transfers | GU66: 2 | GV66: Membership contribution | GW66: Group of 77 Countries | GX66: Foreign governments and international organisations | GY66: NAT | GZ66: International Relations and Cooperation|International Transfers|Membership contribution|Foreign governments and international organisations|Group of 77 Countries|1 | HA66: 222 | HB66: 234 | HC66: 243 | HD66: 161 | HE66: 0
Y67: 43 | AA67: 43 | AB67: 34 | AC67: Trade and Industry | AF67: Isaac Kurasha | AG67: (012) 315 5213 | AH67: isaac.kurasha@treasury.gov.za | AI67: Rudzani Sikhwari | AJ67: (012) 315 5823 | AK67: rudzani.sikhwari@treasury.gov.za | AP67: 10627914 | AQ67: 9505896 | AR67: 9866377 | AT67: 43 | AU67: Traditional Affairs | AV67: 173399 | AW67: 184740 | AX67: 192301 | CY67: =+CQ67&CR67&CS67&CT67&CU67 ->  | DG67: Parliament | DH67: Support Services | DI67: 15 | DJ67: 14 | DK67: 14 | DL67: 0 | DM67: 2 | DN67: 5191 | DO67: 11 | DP67: 14256 | DQ67: 11 | DR67: 14771 | DS67: 11 | DT67: 15789 | DU67: 11 | DV67: 17603 | DW67: Parliament|Support Services | DX67: 002 | DY67: 004 | DZ67: 002004 | EC67: 234 | ED67: 57 | EE67: 2 | EF67: Parliament | EG67: 2 | EH67: Administration | EI67: 6 | EJ67: Registrar of Member's Interest | EK67: Payments for capital assets | EL67: Machinery and equipment | EM67: Other machinery and equipment | EN67: 5 | EO67: 0 | EP67: 0 | EQ67: 0 | ER67: 0 | ES67: 0 | ET67: 0 | EU67: 0 | EW67: 0 | EX67: 0 | EY67: 0 | EZ67: 0 | FA67: 0 | FB67: Parliament|Administration | FC67: 002 | FD67: 002 | FE67: 006 | FF67: 057 | FG67: 002002 | FH67: 002057 | FI67: 57 | FJ67: 002002006057 | FL67: 002002057 | FT67: 4 | FU67: Cooperative Governance and Traditional Affairs | FV67: 2 | FW67: Regional and Urban Development and Legislative Support | FX67: 2 | FY67: Local Government Legislative Support and Institutional Establishment | GR67: International Relations and Cooperation | GS67: 5 | GT67: International Transfers | GU67: 2 | GV67: Membership contribution | GW67: Humanitarian Aid | GX67: Foreign governments and international organisations | GY67: NAT | GZ67: International Relations and Cooperation|International Transfers|Membership contribution|Foreign governments and international organisations|Humanitarian Aid|1 | HA67: 38186 | HB67: 40286 | HC67: 41784 | HD67: 156 | HE67: 0
Y68: 44 | AA68: 44 | AB68: 43 | AC68: Traditional Affairs | AF68: Misaveni Ngobeni | AG68: (012) 315 5305 | AH68: misaveni.ngobeni@treasury.gov.za | AI68: Millicent Mulaudzi | AJ68: (012) 395 6576 | AK68: Millicent.Mulaudzi@treasury.gov.za | AP68: 173912 | AQ68: 185286 | AR68: 192301 | AT68: 44 | AU68: National School of Government | AV68: 206593 | AW68: 227304 | AX68: 236296 | CZ68: =+CQ68&CR68&CS68 ->  | DA68: =+CQ68&CR68&CS68&CU68 ->  | DG68: Parliament | DH68: Support Services | DI68: 16 | DJ68: 5 | DK68: 5 | DL68: 0 | DM68: 1 | DN68: 2611 | DO68: 1 | DP68: 1366 | DQ68: 1 | DR68: 1466 | DS68: 1 | DT68: 1716 | DU68: 1 | DV68: 2003 | DW68: Parliament|Support Services | DX68: 002 | DY68: 004 | DZ68: 002004 | EC68: 234 | ED68: 1 | EE68: 2 | EF68: Parliament | EG68: 2 | EH68: Administration | EI68: 7 | EJ68: Projects | EK68: Current payments | EL68: Compensation of employees | EM68: Compensation of employees | EN68: 8962 | EO68: 0 | EP68: 0 | EQ68: 0 | ER68: 0 | ES68: 0 | ET68: 0 | EU68: 0 | EW68: 0 | EX68: 0 | EY68: 0 | EZ68: 0 | FA68: 0 | FB68: Parliament|Administration | FC68: 002 | FD68: 002 | FE68: 007 | FF68: 001 | FG68: 002002 | FH68: 002001 | FI68: 1 | FJ68: 002002007001 | FL68: 002002001 | FT68: 4 | FU68: Cooperative Governance and Traditional Affairs | FV68: 2 | FW68: Regional and Urban Development and Legislative Support | FX68: 3 | FY68: Urban Development Planning | GR68: International Relations and Cooperation | GS68: 5 | GT68: International Transfers | GU68: 2 | GV68: Membership contribution | GW68: India-Brazil-South Africa Trust Fund | GX68: Foreign governments and international organisations | GY68: NAT | GZ68: International Relations and Cooperation|International Transfers|Membership contribution|Foreign governments and international organisations|India-Brazil-South Africa Trust Fund|1 | HA68: 15690 | HB68: 16553 | HC68: 17169 | HD68: 176 | HE68: 0
Y69: 45 | AA69: 45 | AB69: 35 | AC69: Transport | AF69: Dumebi Ubogu | AG69: (012) 315 5077 | AH69: Dumebi.Ubogu@treasury.gov.za | AI69: Luyolo Ntlangula | AJ69: (012) 315-5571 | AK69: luyolo.ntangula@treasury.gov.za | AP69: 68098919 | AQ69: 74513517 | AR69: 78293888 | AT69: 45 | AU69: Public Service Commission | AV69: 297627 | AW69: 316330 | AX69: 328206 | DG69: Parliament | DH69: Associated Services | DI69: 8 | DJ69: 2 | DK69: 2 | DL69: 0 | DM69: 1 | DN69: 285 | DO69: 1 | DP69: 278 | DQ69: 1 | DR69: 289 | DS69: 1 | DT69: 304 | DU69: 1 | DV69: 323 | DW69: Parliament|Associated Services | DX69: 002 | DY69: 005 | DZ69: 002005 | EC69: 235 | ED69: =+INDEX(($FS$4:$FS$27),MATCH(EM69,$GB$4:$GB$27,0)) -> 2 | EE69: 2 | EF69: Parliament | EG69: 2 | EH69: Administration | EI69: 7 | EJ69: Projects | EK69: Current payments | EL69: Goods and services | EM69: Goods and services | EN69: 20935 | EO69: 0 | EP69: 0 | EQ69: 0 | ER69: 0 | ES69: 1370 | ET69: 56503 | EU69: 44511 | EW69: 0 | EX69: 0 | EY69: 56503 | EZ69: 44511 | FA69: 46204 | FB69: =+EF69&"|"&EH69 -> Parliament|Administration | FC69: =REPT("0",3-LEN(EE69))&EE69 -> 002 | FD69: =REPT("0",3-LEN(EG69))&EG69 -> 002 | FE69: =REPT("0",3-LEN(EI69))&EI69 -> 007 | FF69: =REPT("0",3-LEN(ED69))&ED69 -> 002 | FG69: =+FC69&FD69 -> 002002 | FH69: =+FC69&FF69 -> 002002 | FI69: =+FF69*1 -> 2 | FJ69: =FG69&FE69&REPT("0",3-LEN(FI69))&FI69 -> 002002007002 | FL69: =LEFT(FJ69,6)&FF69 -> 002002002 | FT69: 4 | FU69: Cooperative Governance and Traditional Affairs | FV69: 2 | FW69: Regional and Urban Development and Legislative Support | FX69: 4 | FY69: Spatial Planning Districts and Regions | GR69: International Relations and Cooperation | GS69: 5 | GT69: International Transfers | GU69: 2 | GV69: Membership contribution | GW69: Indian Ocean Rim Association Research Centre | GX69: Foreign governments and international organisations | GY69: NAT | GZ69: International Relations and Cooperation|International Transfers|Membership contribution|Foreign governments and international organisations|Indian Ocean Rim Association Research Centre|1 | HA69: 355 | HB69: 375 | HC69: 389 | HD69: 184 | HE69: 0
Y70: 46 | AA70: 46 | AB70: 36 | AC70: Water and Sanitation | AF70: Misaveni Ngobeni | AG70: (012) 315 5305 | AH70: misaveni.ngobeni@treasury.gov.za | AI70: Iqbal Mahomed Alli | AJ70: (012) 315 5809 | AK70: Iqbal.Mahomed-Alli@treasury.gov.za | AP70: 17381448 | AQ70: 18552145 | AR70: 19522197 | AT70: 46 | AU70: Government Communication and Information System | AV70: 466981 | AW70: 495579 | AX70: 516090 | DG70: Parliament | DH70: Associated Services | DI70: 9 | DJ70: 6 | DK70: 6 | DL70: 0 | DM70: 8 | DN70: 4584 | DO70: 6 | DP70: 2035 | DQ70: 6 | DR70: 2112 | DS70: 6 | DT70: 2229 | DU70: 6 | DV70: 2367 | DW70: Parliament|Associated Services | DX70: 002 | DY70: 005 | DZ70: 002005 | EC70: 235 | ED70: 57 | EE70: 2 | EF70: Parliament | EG70: 2 | EH70: Administration | EI70: 7 | EJ70: Projects | EK70: Payments for capital assets | EL70: Machinery and equipment | EM70: Other machinery and equipment | EN70: 5523 | EO70: 0 | EP70: 0 | EQ70: 0 | ER70: 0 | ES70: 0 | ET70: 0 | EU70: 0 | EW70: 0 | EX70: 0 | EY70: 0 | EZ70: 0 | FA70: 0 | FB70: Parliament|Administration | FC70: 002 | FD70: 002 | FE70: 007 | FF70: 057 | FG70: 002002 | FH70: 002057 | FI70: 57 | FJ70: 002002007057 | FL70: 002002057 | FT70: 4 | FU70: Cooperative Governance and Traditional Affairs | FV70: 2 | FW70: Regional and Urban Development and Legislative Support | FX70: 5 | FY70: Intergovernmental Policy and Practice | GR70: International Relations and Cooperation | GS70: 5 | GT70: International Transfers | GU70: 2 | GV70: Membership contribution | GW70: International Tribunal for the Law of the Sea | GX70: Foreign governments and international organisations | GY70: NAT | GZ70: International Relations and Cooperation|International Transfers|Membership contribution|Foreign governments and international organisations|International Tribunal for the Law of the Sea|1 | HA70: 2320 | HB70: 2448 | HC70: 2538 | HD70: 185 | HE70: 0
Y71: 47 | AA71: 47 | AB71: 13 | AC71: Women | AF71: Pebetse Maleka | AG71: (012) 315 5566 | AH71: Pebetse.Maleka@treasury.gov.za | AI71: Lindi Mzankomo | AJ71: (012) 315 5256 | AK71: Lindi.Mzankomo@treasury.gov.za | AP71: 259667 | AQ71: 274932 | AR71: 285228 | AT71: 47 | AU71: Centre for Public Service Innovation | AV71: 40834 | AW71: 43302 | AX71: 45090 | DG71: Parliament | DH71: Associated Services | DI71: 10 | DJ71: 4 | DK71: 4 | DL71: 0 | DM71: 2 | DN71: 2042 | DO71: 4 | DP71: 1541 | DQ71: 4 | DR71: 1600 | DS71: 4 | DT71: 1688 | DU71: 4 | DV71: 1792 | DW71: Parliament|Associated Services | DX71: 002 | DY71: 005 | DZ71: 002005 | EC71: 235 | ED71: 2 | EE71: 2 | EF71: Parliament | EG71: 2 | EH71: Administration | EI71: 8 | EJ71: State of the Nation Address | EK71: Current payments | EL71: Goods and services | EM71: Goods and services | EN71: 2196 | EO71: 0 | EP71: 0 | EQ71: 0 | ER71: 0 | ES71: 4000 | ET71: 4240 | EU71: 4473 | EW71: 0 | EX71: 0 | EY71: 4240 | EZ71: 4473 | FA71: 4639 | FB71: Parliament|Administration | FC71: 002 | FD71: 002 | FE71: 008 | FF71: 002 | FG71: 002002 | FH71: 002002 | FI71: 2 | FJ71: 002002008002 | FL71: 002002002 | FT71: 4 | FU71: Cooperative Governance and Traditional Affairs | FV71: 2 | FW71: Regional and Urban Development and Legislative Support | FX71: 6 | FY71: Municipal Demarcation Transition Grant | GR71: International Relations and Cooperation | GS71: 5 | GT71: International Transfers | GU71: 2 | GV71: Membership contribution | GW71: New Partnership for Africa's Development | GX71: Foreign governments and international organisations | GY71: NAT | GZ71: International Relations and Cooperation|International Transfers|Membership contribution|Foreign governments and international organisations|New Partnership for Africa's Development|1 | HA71: 8686 | HB71: 9164 | HC71: 9506 | HD71: 180 | HE71: 0
AP72: =SUM(AP25:AP71) -> 1752531957 | AQ72: =SUM(AQ25:AQ71) -> 1877683416 | AR72: =SUM(AR25:AR71) -> 1990542928 | AT72: Grand Total | AV72: =SUM(AV25:AV71) -> 1771858680 | AW72: =SUM(AW25:AW71) -> 1866166009 | AX72: 1979887028 | DG72: Parliament | DH72: Associated Services | DI72: 11 | DJ72: 3 | DK72: 3 | DL72: 0 | DM72: 2 | DN72: 2972 | DO72: 3 | DP72: 1916 | DQ72: 3 | DR72: 1989 | DS72: 3 | DT72: 2098 | DU72: 3 | DV72: 2228 | DW72: Parliament|Associated Services | DX72: 002 | DY72: 005 | DZ72: 002005 | EC72: 236 | ED72: 1 | EE72: 2 | EF72: Parliament | EG72: 3 | EH72: Core Business | EI72: 1 | EJ72: Office of the Deputy Secretary | EK72: Current payments | EL72: Compensation of employees | EM72: Compensation of employees | EN72: 0 | EO72: 3491 | EP72: 3589 | EQ72: 3589 | ER72: 3589 | ES72: 0 | ET72: 0 | EU72: 0 | EW72: 0 | EX72: 0 | EY72: 0 | EZ72: 0 | FA72: 0 | FB72: Parliament|Core Business | FC72: 002 | FD72: 003 | FE72: 001 | FF72: 001 | FG72: 002003 | FH72: 002001 | FI72: 1 | FJ72: 002003001001 | FL72: 002003001 | FT72: 4 | FU72: Cooperative Governance and Traditional Affairs | FV72: 2 | FW72: Regional and Urban Development and Legislative Support | FX72: 7 | FY72: Municipal Demarcation Board | GR72: International Relations and Cooperation | GS72: 5 | GT72: International Transfers | GU72: 2 | GV72: Membership contribution | GW72: Organisation for Economic Cooperation and Development | GX72: Foreign governments and international organisations | GY72: NAT | GZ72: International Relations and Cooperation|International Transfers|Membership contribution|Foreign governments and international organisations|Organisation for Economic Cooperation and Development|1 | HA72: 340 | HB72: 359 | HC72: 372 | HD72: 193 | HE72: 0
DG73: Parliament | DH73: Associated Services | DI73: 12 | DJ73: 1 | DK73: 1 | DL73: 0 | DM73: 0 | DN73: 0 | DO73: 1 | DP73: 699 | DQ73: 1 | DR73: 726 | DS73: 1 | DT73: 765 | DU73: 1 | DV73: 813 | DW73: Parliament|Associated Services | DX73: 002 | DY73: 005 | DZ73: 002005 | EC73: 236 | ED73: 2 | EE73: 2 | EF73: Parliament | EG73: 3 | EH73: Core Business | EI73: 1 | EJ73: Office of the Deputy Secretary | EK73: Current payments | EL73: Goods and services | EM73: Goods and services | EN73: 89 | EO73: 1860 | EP73: 1805 | EQ73: 1805 | ER73: 1805 | ES73: 3000 | ET73: 3180 | EU73: 3371 | EW73: 0 | EX73: 0 | EY73: 3180 | EZ73: 3371 | FA73: 3507 | FB73: Parliament|Core Business | FC73: 002 | FD73: 003 | FE73: 001 | FF73: 002 | FG73: 002003 | FH73: 002002 | FI73: 2 | FJ73: 002003001002 | FL73: 002003002 | FT73: 4 | FU73: Cooperative Governance and Traditional Affairs | FV73: 2 | FW73: Regional and Urban Development and Legislative Support | FX73: 8 | FY73: South African Cities Network | GR73: International Relations and Cooperation | GS73: 5 | GT73: International Transfers | GU73: 2 | GV73: Membership contribution | GW73: Perez-Guerrero Trust Fund | GX73: Foreign governments and international organisations | GY73: NAT | GZ73: International Relations and Cooperation|International Transfers|Membership contribution|Foreign governments and international organisations|Perez-Guerrero Trust Fund|1 | HA73: 89 | HB73: 94 | HC73: 98 | HD73: 165 | HE73: 0
DG74: Parliament | DH74: Associated Services | DI74: 13 | DJ74: 0 | DK74: 0 | DL74: 0 | DM74: 1 | DN74: 1434 | DO74: 0 | DP74: 0 | DQ74: 0 | DR74: 0 | DS74: 0 | DT74: 0 | DU74: 0 | DV74: 0 | DW74: Parliament|Associated Services | DX74: 002 | DY74: 005 | DZ74: 002005 | EC74: 236 | ED74: 1 | EE74: 2 | EF74: Parliament | EG74: 3 | EH74: Core Business | EI74: 2 | EJ74: National Assembly | EK74: Current payments | EL74: Compensation of employees | EM74: Compensation of employees | EN74: 30253 | EO74: 19187 | EP74: 21206 | EQ74: 21206 | ER74: 21206 | ES74: 32880 | ET74: 39023 | EU74: 42034 | EW74: 0 | EX74: 0 | EY74: 39023 | EZ74: 42034 | FA74: 43600 | FB74: Parliament|Core Business | FC74: 002 | FD74: 003 | FE74: 002 | FF74: 001 | FG74: 002003 | FH74: 002001 | FI74: 1 | FJ74: 002003002001 | FL74: 002003001 | FT74: 4 | FU74: Cooperative Governance and Traditional Affairs | FV74: 2 | FW74: Regional and Urban Development and Legislative Support | FX74: 9 | FY74: Integrated Urban Development Grant | GR74: International Relations and Cooperation | GS74: 5 | GT74: International Transfers | GU74: 2 | GV74: Membership contribution | GW74: Permanent Court of Arbitration | GX74: Foreign governments and international organisations | GY74: NAT | GZ74: International Relations and Cooperation|International Transfers|Membership contribution|Foreign governments and international organisations|Permanent Court of Arbitration|1 | HA74: 192 | HB74: 203 | HC74: 211 | HD74: 170 | HE74: 0
DG75: Parliament | DH75: Associated Services | DI75: 14 | DJ75: 1 | DK75: 1 | DL75: 0 | DM75: 1 | DN75: 1509 | DO75: 1 | DP75: 1129 | DQ75: 1 | DR75: 1172 | DS75: 1 | DT75: 1236 | DU75: 1 | DV75: 1313 | DW75: Parliament|Associated Services | DX75: 002 | DY75: 005 | DZ75: 002005 | EC75: 241 | ED75: 2 | EE75: 2 | EF75: Parliament | EG75: 3 | EH75: Core Business | EI75: 2 | EJ75: National Assembly | EK75: Current payments | EL75: Goods and services | EM75: Goods and services | EN75: 2558 | EO75: 7904 | EP75: 7863 | EQ75: 7863 | ER75: 7863 | ES75: 2500 | ET75: 2650 | EU75: 10794 | EW75: 0 | EX75: 0 | EY75: =+ET75+EW75 -> 2650 | EZ75: =+EU75+EX75 -> 10794 | FA75: 11245 | FB75: Parliament|Core Business | FC75: 002 | FD75: 003 | FE75: 002 | FF75: 002 | FG75: 002003 | FH75: 002002 | FI75: 2 | FJ75: 002003002002 | FL75: 002003002 | FT75: 4 | FU75: Cooperative Governance and Traditional Affairs | FV75: 3 | FW75: Institutional Development | FX75: 1 | FY75: Management: Institutional Development | GR75: International Relations and Cooperation | GS75: 5 | GT75: International Transfers | GU75: 2 | GV75: Membership contribution | GW75: South Centre Capital Fund | GX75: Foreign governments and international organisations | GY75: NAT | GZ75: International Relations and Cooperation|International Transfers|Membership contribution|Foreign governments and international organisations|South Centre Capital Fund|1 | HA75: 1749 | HB75: 1845 | HC75: 1914 | HD75: 165 | HE75: 0
DG76: Parliament | DH76: Associated Services | DI76: 15 | DJ76: 2 | DK76: 2 | DL76: 0 | DM76: 0 | DN76: 0 | DO76: 1 | DP76: 1318 | DQ76: 1 | DR76: 1368 | DS76: 1 | DT76: 1443 | DU76: 1 | DV76: 1533 | DW76: Parliament|Associated Services | DX76: 002 | DY76: 005 | DZ76: 002005 | EC76: 241 | ED76: 57 | EE76: 2 | EF76: Parliament | EG76: 3 | EH76: Core Business | EI76: 2 | EJ76: National Assembly | EK76: Payments for capital assets | EL76: Machinery and equipment | EM76: Other machinery and equipment | EN76: 252 | EO76: 0 | EP76: 0 | EQ76: 0 | ER76: 0 | ES76: 0 | ET76: 0 | EU76: 22 | EW76: 0 | EX76: 0 | EY76: 0 | EZ76: 22 | FA76: 23 | FB76: Parliament|Core Business | FC76: 002 | FD76: 003 | FE76: 002 | FF76: 057 | FG76: 002003 | FH76: 002057 | FI76: 57 | FJ76: 002003002057 | FL76: 002003057 | FT76: 4 | FU76: Cooperative Governance and Traditional Affairs | FV76: 3 | FW76: Institutional Development | FX76: 2 | FY76: Municipal Human Resources Management Systems | GR76: International Relations and Cooperation | GS76: 5 | GT76: International Transfers | GU76: 2 | GV76: Membership contribution | GW76: Southern African Development Community | GX76: Foreign governments and international organisations | GY76: NAT | GZ76: International Relations and Cooperation|International Transfers|Membership contribution|Foreign governments and international organisations|Southern African Development Community|1 | HA76: 78565 | HB76: 82886 | HC76: 85967 | HD76: 178 | HE76: 0
DG77: Parliament | DH77: Associated Services | DI77: Other please specify | DJ77: 0 | DK77: 0 | DL77: 0 | DM77: 0 | DN77: 0 | DO77: 0 | DP77: 0 | DQ77: 0 | DR77: 50955 | DS77: 0 | DT77: 0 | DU77: 0 | DV77: 0 | DW77: Parliament|Associated Services | DX77: 002 | DY77: 005 | DZ77: 002005 | EC77: 241 | ED77: 1 | EE77: 2 | EF77: Parliament | EG77: 3 | EH77: Core Business | EI77: 3 | EJ77: National Council of Provinces | EK77: Current payments | EL77: Compensation of employees | EM77: Compensation of employees | EN77: 26228 | EO77: 22699 | EP77: 24302 | EQ77: 24302 | ER77: 24302 | ES77: 25197 | ET77: 30549 | EU77: 32907 | EW77: 0 | EX77: 0 | EY77: 30549 | EZ77: 32907 | FA77: 34134 | FB77: Parliament|Core Business | FC77: 002 | FD77: 003 | FE77: 003 | FF77: 001 | FG77: 002003 | FH77: 002001 | FI77: 1 | FJ77: 002003003001 | FL77: 002003001 | FT77: 4 | FU77: Cooperative Governance and Traditional Affairs | FV77: 3 | FW77: Institutional Development | FX77: 3 | FY77: Municipal Finance | GR77: International Relations and Cooperation | GS77: 5 | GT77: International Transfers | GU77: 2 | GV77: Membership contribution | GW77: UNICEF (United Nations Children’s Fund) | GX77: Foreign governments and international organisations | GY77: NAT | GZ77: International Relations and Cooperation|International Transfers|Membership contribution|Foreign governments and international organisations|UNICEF (United Nations Children’s Fund)|1 | HA77: 332 | HB77: 350 | HC77: 362 | HD77: 179 | HE77: 0
DG78: Parliament | DH78: Associated Services | DI78: Parmed Medical Aid | DJ78: 0 | DK78: 0 | DL78: 0 | DM78: 0 | DN78: 47284 | DO78: 0 | DP78: 49089 | DQ78: 0 | DR78: 0 | DS78: 0 | DT78: 53761 | DU78: 0 | DV78: 57101 | DW78: Parliament|Associated Services | DX78: 002 | DY78: 005 | DZ78: 002005 | EC78: 242 | ED78: 2 | EE78: 2 | EF78: Parliament | EG78: 3 | EH78: Core Business | EI78: 3 | EJ78: National Council of Provinces | EK78: Current payments | EL78: Goods and services | EM78: Goods and services | EN78: 21111 | EO78: 14092 | EP78: 14310 | EQ78: 14310 | ER78: 14310 | ES78: 22500 | ET78: 26591 | EU78: 28740 | EW78: 0 | EX78: 0 | EY78: 26591 | EZ78: 28740 | FA78: 29863 | FB78: Parliament|Core Business | FC78: 002 | FD78: 003 | FE78: 003 | FF78: 002 | FG78: 002003 | FH78: 002002 | FI78: 2 | FJ78: 002003003002 | FL78: 002003002 | FT78: 4 | FU78: Cooperative Governance and Traditional Affairs | FV78: 3 | FW78: Institutional Development | FX78: 4 | FY78: Citizen Engagement | GR78: International Relations and Cooperation | GS78: 5 | GT78: International Transfers | GU78: 2 | GV78: Membership contribution | GW78: United Nations | GX78: Foreign governments and international organisations | GY78: NAT | GZ78: International Relations and Cooperation|International Transfers|Membership contribution|Foreign governments and international organisations|United Nations|1 | HA78: 190705 | HB78: 201194 | HC78: 208673 | HD78: 154 | HE78: 0
DG79: Communications | DH79: Administration | DI79: 3 | DJ79: 2 | DK79: 2 | DL79: 0 | DM79: 0 | DN79: 0 | DO79: 0 | DP79: 0 | DQ79: 0 | DR79: 0 | DS79: 0 | DT79: 0 | DU79: 2 | DV79: 134 | DW79: Communications|Administration | DX79: 003 | DY79: 001 | DZ79: 003001 | EC79: 242 | ED79: 1 | EE79: 2 | EF79: Parliament | EG79: 3 | EH79: Core Business | EI79: 4 | EJ79: Core Business Support | EK79: Current payments | EL79: Compensation of employees | EM79: Compensation of employees | EN79: 189780 | EO79: 181706 | EP79: 186434 | EQ79: 186434 | ER79: 186434 | ES79: 184834 | ET79: 204897 | EU79: 221481 | EW79: 0 | EX79: 0 | EY79: 204897 | EZ79: 221481 | FA79: 229741 | FB79: Parliament|Core Business | FC79: 002 | FD79: 003 | FE79: 004 | FF79: 001 | FG79: 002003 | FH79: 002001 | FI79: 1 | FJ79: 002003004001 | FL79: 002003001 | FT79: 4 | FU79: Cooperative Governance and Traditional Affairs | FV79: 3 | FW79: Institutional Development | FX79: 5 | FY79: Anti-Corruption and Good Governance | GR79: International Relations and Cooperation | GS79: 5 | GT79: International Transfers | GU79: 2 | GV79: Membership contribution | GW79: United Nations Convention on the Law of the Sea | GX79: Foreign governments and international organisations | GY79: NAT | GZ79: International Relations and Cooperation|International Transfers|Membership contribution|Foreign governments and international organisations|United Nations Convention on the Law of the Sea|1 | HA79: 836 | HB79: 882 | HC79: 916 | HD79: 187 | HE79: 0
DG80: Communications | DH80: Administration | DI80: 4 | DJ80: 0 | DK80: 1 | DL80: 1 | DM80: 0 | DN80: 0 | DO80: 6 | DP80: 704 | DQ80: 0 | DR80: 0 | DS80: 0 | DT80: 0 | DU80: 2 | DV80: 186 | DW80: Communications|Administration | DX80: 003 | DY80: 001 | DZ80: 003001 | EC80: 243 | ED80: 2 | EE80: 2 | EF80: Parliament | EG80: 3 | EH80: Core Business | EI80: 4 | EJ80: Core Business Support | EK80: Current payments | EL80: Goods and services | EM80: Goods and services | EN80: 53792 | EO80: 76759 | EP80: 86011 | EQ80: 86011 | ER80: 86011 | ES80: 133547 | ET80: 139061 | EU80: 164142 | EW80: 0 | EX80: 0 | EY80: 139061 | EZ80: 164142 | FA80: 170440 | FB80: Parliament|Core Business | FC80: 002 | FD80: 003 | FE80: 004 | FF80: 002 | FG80: 002003 | FH80: 002002 | FI80: 2 | FJ80: 002003004002 | FL80: 002003002 | FT80: 4 | FU80: Cooperative Governance and Traditional Affairs | FV80: 3 | FW80: Institutional Development | FX80: 6 | FY80: Municipal Property Rates | GR80: International Relations and Cooperation | GS80: 5 | GT80: International Transfers | GU80: 2 | GV80: Membership contribution | GW80: United Nations Development Programme | GX80: Foreign governments and international organisations | GY80: NAT | GZ80: International Relations and Cooperation|International Transfers|Membership contribution|Foreign governments and international organisations|United Nations Development Programme|1 | HA80: 8089 | HB80: 8534 | HC80: 8852 | HD80: 176 | HE80: 0
DG81: Communications | DH81: Administration | DI81: 5 | DJ81: 3 | DK81: 3 | DL81: 0 | DM81: 2 | DN81: 442 | DO81: 2 | DP81: 760 | DQ81: 7 | DR81: 2450 | DS81: 10 | DT81: 3671 | DU81: 9 | DV81: 3000 | DW81: Communications|Administration | DX81: 003 | DY81: 001 | DZ81: 003001 | EC81: 243 | ED81: 57 | EE81: 2 | EF81: Parliament | EG81: 3 | EH81: Core Business | EI81: 4 | EJ81: Core Business Support | EK81: Payments for capital assets | EL81: Machinery and equipment | EM81: Other machinery and equipment | EN81: 255 | EO81: 318 | EP81: 955 | EQ81: 955 | ER81: 955 | ES81: 1008 | ET81: 1626 | EU81: 1127 | EW81: 0 | EX81: 0 | EY81: 1626 | EZ81: 1127 | FA81: 1193 | FB81: Parliament|Core Business | FC81: 002 | FD81: 003 | FE81: 004 | FF81: 057 | FG81: 002003 | FH81: 002057 | FI81: 57 | FJ81: 002003004057 | FL81: 002003057 | FT81: 4 | FU81: Cooperative Governance and Traditional Affairs | FV81: 3 | FW81: Institutional Development | FX81: 7 | FY81: Local Government Equitable Share | GR81: International Relations and Cooperation | GS81: 5 | GT81: International Transfers | GU81: 2 | GV81: Membership contribution | GW81: United Nations Development Programme in Southern Africa | GX81: Foreign governments and international organisations | GY81: NAT | GZ81: International Relations and Cooperation|International Transfers|Membership contribution|Foreign governments and international organisations|United Nations Development Programme in Southern Africa|1 | HA81: 1663 | HB81: 1754 | HC81: 1819 | HD81: 195 | HE81: 0
DG82: Communications | DH82: Administration | DI82: 6 | DJ82: 9 | DK82: 9 | DL82: 0 | DM82: 2 | DN82: 508 | DO82: 2 | DP82: 830 | DQ82: 6 | DR82: 2243 | DS82: 9 | DT82: 3523 | DU82: 6 | DV82: 2963 | DW82: Communications|Administration | DX82: 003 | DY82: 001 | DZ82: 003001 | EC82: 243 | ED82: 1 | EE82: 2 | EF82: Parliament | EG82: 3 | EH82: Core Business | EI82: 5 | EJ82: Knowledge and Information Services | EK82: Current payments | EL82: Compensation of employees | EM82: Compensation of employees | EN82: 147388 | EO82: 154831 | EP82: 153903 | EQ82: 153903 | ER82: 153903 | ES82: 141796 | ET82: 159873 | EU82: 172578 | EW82: 0 | EX82: 0 | EY82: 159873 | EZ82: 172578 | FA82: 179014 | FB82: Parliament|Core Business | FC82: 002 | FD82: 003 | FE82: 005 | FF82: 001 | FG82: 002003 | FH82: 002001 | FI82: 1 | FJ82: 002003005001 | FL82: 002003001 | FT82: 4 | FU82: Cooperative Governance and Traditional Affairs | FV82: 3 | FW82: Institutional Development | FX82: 8 | FY82: South African Local Government Association | GR82: International Relations and Cooperation | GS82: 5 | GT82: International Transfers | GU82: 2 | GV82: Membership contribution | GW82: United Nations Human Rights Council | GX82: Foreign governments and international organisations | GY82: NAT | GZ82: International Relations and Cooperation|International Transfers|Membership contribution|Foreign governments and international organisations|United Nations Human Rights Council|1 | HA82: 500 | HB82: 528 | HC82: 547 | HD82: 175 | HE82: 0
DG83: Communications | DH83: Administration | DI83: 7 | DJ83: 2 | DK83: 2 | DL83: 0 | DM83: 0 | DN83: 0 | DO83: 0 | DP83: 0 | DQ83: 2 | DR83: 875 | DS83: 3 | DT83: 1620 | DU83: 4 | DV83: 2237 | DW83: Communications|Administration | DX83: 003 | DY83: 001 | DZ83: 003001 | EC83: 244 | ED83: 2 | EE83: 2 | EF83: Parliament | EG83: 3 | EH83: Core Business | EI83: 5 | EJ83: Knowledge and Information Services | EK83: Current payments | EL83: Goods and services | EM83: Goods and services | EN83: 10485 | EO83: 13641 | EP83: 21404 | EQ83: 21404 | ER83: 21404 | ES83: 50015 | ET83: 48868 | EU83: 50450 | EW83: 0 | EX83: 0 | EY83: 48868 | EZ83: 50450 | FA83: 52443 | FB83: Parliament|Core Business | FC83: 002 | FD83: 003 | FE83: 005 | FF83: 002 | FG83: 002003 | FH83: 002002 | FI83: 2 | FJ83: 002003005002 | FL83: 002003002 | FT83: 4 | FU83: Cooperative Governance and Traditional Affairs | FV83: 3 | FW83: Institutional Development | FX83: 9 | FY83: Municipal Systems Improvement Grant | GR83: International Relations and Cooperation | GS83: 5 | GT83: International Transfers | GU83: 2 | GV83: Membership contribution | GW83: United Nations Technical Cooperation | GX83: Foreign governments and international organisations | GY83: NAT | GZ83: International Relations and Cooperation|International Transfers|Membership contribution|Foreign governments and international organisations|United Nations Technical Cooperation|1 | HA83: 167 | HB83: 176 | HC83: 182 | HD83: 176 | HE83: 0
DG84: Communications | DH84: Administration | DI84: 8 | DJ84: 7 | DK84: 7 | DL84: 0 | DM84: 2 | DN84: 706 | DO84: 3 | DP84: 1670 | DQ84: 0 | DR84: 0 | DS84: 4 | DT84: 0 | DU84: 6 | DV84: 0 | DW84: Communications|Administration | DX84: 003 | DY84: 001 | DZ84: 003001 | EC84: 244 | ED84: 57 | EE84: 2 | EF84: Parliament | EG84: 3 | EH84: Core Business | EI84: 5 | EJ84: Knowledge and Information Services | EK84: Payments for capital assets | EL84: Machinery and equipment | EM84: Other machinery and equipment | EN84: 255 | EO84: 268 | EP84: 377 | EQ84: 377 | ER84: 377 | ES84: 398 | ET84: 421 | EU84: 444 | EW84: 0 | EX84: 0 | EY84: 421 | EZ84: 444 | FA84: 470 | FB84: Parliament|Core Business | FC84: 002 | FD84: 003 | FE84: 005 | FF84: 057 | FG84: 002003 | FH84: 002057 | FI84: 57 | FJ84: 002003005057 | FL84: 002003057 | FT84: 4 | FU84: Cooperative Governance and Traditional Affairs | FV84: 3 | FW84: Institutional Development | FX84: 10 | FY84: Department of Traditional Affairs | GR84: International Relations and Cooperation | GS84: 5 | GT84: International Transfers | GU84: 2 | GV84: Membership contribution | GW84: United Nations Voluntary Fund on Disability | GX84: Foreign governments and international organisations | GY84: NAT | GZ84: International Relations and Cooperation|International Transfers|Membership contribution|Foreign governments and international organisations|United Nations Voluntary Fund on Disability|1 | HA84: 113 | HB84: 119 | HC84: 123 | HD84: 183 | HE84: 0
DG85: Communications | DH85: Administration | DI85: 9 | DJ85: 6 | DK85: 6 | DL85: 0 | DM85: 9 | DN85: 2790 | DO85: 7 | DP85: 3640 | DQ85: 10 | DR85: 4502 | DS85: 11 | DT85: 6005 | DU85: 13 | DV85: 8150 | DW85: Communications|Administration | DX85: 003 | DY85: 001 | DZ85: 003001 | EC85: 244 | ED85: 1 | EE85: 2 | EF85: Parliament | EG85: 3 | EH85: Core Business | EI85: 6 | EJ85: International Relations and Protocol | EK85: Current payments | EL85: Compensation of employees | EM85: Compensation of employees | EN85: 21142 | EO85: 15928 | EP85: 29115 | EQ85: 29115 | ER85: 29115 | ES85: 17751 | ET85: 24799 | EU85: 27031 | EW85: 0 | EX85: 0 | EY85: 24799 | EZ85: 27031 | FA85: 28040 | FB85: Parliament|Core Business | FC85: 002 | FD85: 003 | FE85: 006 | FF85: 001 | FG85: 002003 | FH85: 002001 | FI85: 1 | FJ85: 002003006001 | FL85: 002003001 | FT85: 4 | FU85: Cooperative Governance and Traditional Affairs | FV85: 3 | FW85: Institutional Development | FX85: 11 | FY85: United Cities and Local Government of Africa | GR85: National Treasury | GS85: 1 | GT85: Administration | GU85: 3 | GV85: Corporate Services | GW85: Bursaries for non-employees | GX85: Other transfers to households | GY85: NAT | GZ85: National Treasury|Administration|Corporate Services|Other transfers to households|Bursaries for non-employees|1 | HA85: 2050 | HB85: 2126 | HC85: 2206 | HD85: 109 | HE85: 0
DG86: Communications | DH86: Administration | DI86: 10 | DJ86: 0 | DK86: 1 | DL86: 1 | DM86: 1 | DN86: 350 | DO86: 2 | DP86: 1325 | DQ86: 3 | DR86: 1576 | DS86: 3 | DT86: 1860 | DU86: 4 | DV86: 3006 | DW86: Communications|Administration | DX86: 003 | DY86: 001 | DZ86: 003001 | EC86: 245 | ED86: 2 | EE86: 2 | EF86: Parliament | EG86: 3 | EH86: Core Business | EI86: 6 | EJ86: International Relations and Protocol | EK86: Current payments | EL86: Goods and services | EM86: Goods and services | EN86: 14264 | EO86: 36482 | EP86: 28190 | EQ86: 28190 | ER86: 28190 | ES86: 27482 | ET86: 19564 | EU86: 20880 | EW86: 0 | EX86: 0 | EY86: 19564 | EZ86: 20880 | FA86: 21664 | FB86: Parliament|Core Business | FC86: 002 | FD86: 003 | FE86: 006 | FF86: 002 | FG86: 002003 | FH86: 002002 | FI86: 2 | FJ86: 002003006002 | FL86: 002003002 | FT86: 4 | FU86: Cooperative Governance and Traditional Affairs | FV86: 4 | FW86: National Disaster Management Centre | FX86: 1 | FY86: Management: Head of the National Disaster Management Centre | GR86: National Treasury | GS86: 1 | GT86: Administration | GU86: 3 | GV86: Corporate Services | GW86: Finance and Accounting Services Sector Education and Training Authority | GX86: Departmental agencies (non-business entities) | GY86: NAT | GZ86: National Treasury|Administration|Corporate Services|Departmental agencies (non-business entities)|Finance and Accounting Services Sector Education and Training Authority|1 | HA86: 2258 | HB86: 2382 | HC86: 2469 | HD86: 169 | HE86: 0
DG87: Communications | DH87: Administration | DI87: 11 | DJ87: 11 | DK87: 12 | DL87: 1 | DM87: 2 | DN87: 1100 | DO87: 6 | DP87: 3603 | DQ87: 9 | DR87: 4994 | DS87: 8 | DT87: 6230 | DU87: 7 | DV87: 5994 | DW87: Communications|Administration | DX87: 003 | DY87: 001 | DZ87: 003001 | EC87: 245 | ED87: 57 | EE87: 2 | EF87: Parliament | EG87: 3 | EH87: Core Business | EI87: 6 | EJ87: International Relations and Protocol | EK87: Payments for capital assets | EL87: Machinery and equipment | EM87: Other machinery and equipment | EN87: 9 | EO87: 0 | EP87: 0 | EQ87: 0 | ER87: 0 | ES87: 0 | ET87: 0 | EU87: 0 | EW87: 0 | EX87: 0 | EY87: 0 | EZ87: 0 | FA87: 0 | FB87: Parliament|Core Business | FC87: 002 | FD87: 003 | FE87: 006 | FF87: 057 | FG87: 002003 | FH87: 002057 | FI87: 57 | FJ87: 002003006057 | FL87: 002003057 | FT87: 4 | FU87: Cooperative Governance and Traditional Affairs | FV87: 4 | FW87: National Disaster Management Centre | FX87: 2 | FY87: Disaster Risk Reduction, Capacity Building and Intervention | GR87: National Treasury | GS87: 2 | GT87: Economic Policy, Tax, Financial Regulation and Research | GU87: 6 | GV87: Cooperative Banks Development Agency | GW87: Cooperative Banks Development Agency | GX87: Departmental agencies (non-business entities) | GY87: NAT | GZ87: National Treasury|Economic Policy, Tax, Financial Regulation and Research|Cooperative Banks Development Agency|Departmental agencies (non-business entities)|Cooperative Banks Development Agency|1 | HA87: 21823 | HB87: 23023 | HC87: 23878 | HD87: 193 | HE87: 0
DG88: Communications | DH88: Administration | DI88: 12 | DJ88: 4 | DK88: 4 | DL88: 0 | DM88: 3 | DN88: 1890 | DO88: 5 | DP88: 3523 | DQ88: 4 | DR88: 2560 | DS88: 4 | DT88: 3500 | DU88: 3 | DV88: 2920 | DW88: Communications|Administration | DX88: 003 | DY88: 001 | DZ88: 003001 | EC88: 245 | ED88: 2 | EE88: 2 | EF88: Parliament | EG88: 3 | EH88: Core Business | EI88: 7 | EJ88: Youth Parliament | EK88: Current payments | EL88: Goods and services | EM88: Goods and services | EN88: 2426 | EO88: 0 | EP88: 0 | EQ88: 0 | ER88: 0 | ES88: 0 | ET88: 0 | EU88: 0 | EW88: 0 | EX88: 0 | EY88: 0 | EZ88: 0 | FA88: 0 | FB88: Parliament|Core Business | FC88: 002 | FD88: 003 | FE88: 007 | FF88: 002 | FG88: 002003 | FH88: 002002 | FI88: 2 | FJ88: 002003007002 | FL88: 002003002 | FT88: 4 | FU88: Cooperative Governance and Traditional Affairs | FV88: 4 | FW88: National Disaster Management Centre | FX88: 3 | FY88: Legislation and Policy Management | GR88: National Treasury | GS88: 16 | GT88: Direct charge against the National Revenue Fund | GU88: 1 | GV88: Provincial Equitable Share | GW88: Provincial equitable share | GX88: Provincial Revenue Funds | GY88: PES | GZ88: National Treasury|Direct charge against the National Revenue Fund|Provincial Equitable Share|Provincial Revenue Funds|Provincial equitable share|1 | HA88: 378549855 | HB88: 403467645 | HC88: 609591922 | HD88: 150 | HE88: 0
DG89: Communications | DH89: Administration | DI89: 13 | DJ89: 13 | DK89: 15 | DL89: 2 | DM89: 4 | DN89: 3900 | DO89: 6 | DP89: 4772 | DQ89: 5 | DR89: 4494 | DS89: 6 | DT89: 5400 | DU89: 5 | DV89: 5444 | DW89: Communications|Administration | DX89: 003 | DY89: 001 | DZ89: 003001 | EC89: 251 | ED89: 2 | EE89: 2 | EF89: Parliament | EG89: 3 | EH89: Core Business | EI89: 8 | EJ89: Women's Parliament | EK89: Current payments | EL89: Goods and services | EM89: Goods and services | EN89: 4336 | EO89: 0 | EP89: 0 | EQ89: 0 | ER89: 0 | ES89: 0 | ET89: 0 | EU89: 0 | EW89: 0 | EX89: 0 | EY89: 0 | EZ89: 0 | FA89: 0 | FB89: Parliament|Core Business | FC89: 002 | FD89: 003 | FE89: 008 | FF89: 002 | FG89: 002003 | FH89: 002002 | FI89: 2 | FJ89: 002003008002 | FL89: 002003002 | FT89: 4 | FU89: Cooperative Governance and Traditional Affairs | FV89: 4 | FW89: National Disaster Management Centre | FX89: 4 | FY89: Integrated Provincial Disaster Management Support, Monitoring and Evaluation Systems | GR89: National Treasury | GS89: 16 | GT89: Direct charge against the National Revenue Fund | GU89: 1 | GV89: Provincial Equitable Share | GW89: Provincial equitable share | GX89: Provincial Revenue Funds | GY89: PES | GZ89: National Treasury|Direct charge against the National Revenue Fund|Provincial Equitable Share|Provincial Revenue Funds|Provincial equitable share|1 | HA89: 164358722 | HB89: 175177525 | HC89: 0 | HD89: 154 | HE89: 0
DG90: Communications | DH90: Administration | DI90: 14 | DJ90: 3 | DK90: 4 | DL90: 1 | DM90: 2 | DN90: 2931 | DO90: 3 | DP90: 3782 | DQ90: 3 | DR90: 2933 | DS90: 3 | DT90: 3200 | DU90: 3 | DV90: 3513 | DW90: Communications|Administration | DX90: 003 | DY90: 001 | DZ90: 003001 | EC90: 251 | ED90: 1 | EE90: 2 | EF90: Parliament | EG90: 4 | EH90: Support Services | EI90: 1 | EJ90: Office of the Deputy Secretary | EK90: Current payments | EL90: Compensation of employees | EM90: Compensation of employees | EN90: 2673 | EO90: 2613 | EP90: 2561 | EQ90: 2561 | ER90: 2561 | ES90: 3410 | ET90: 3760 | EU90: 4051 | EW90: 0 | EX90: 0 | EY90: 3760 | EZ90: 4051 | FA90: 4203 | FB90: Parliament|Support Services | FC90: 002 | FD90: 004 | FE90: 001 | FF90: 001 | FG90: 002004 | FH90: 002001 | FI90: 1 | FJ90: 002004001001 | FL90: 002004001 | FT90: 4 | FU90: Cooperative Governance and Traditional Affairs | FV90: 4 | FW90: National Disaster Management Centre | FX90: 5 | FY90: Fire Services | GR90: National Treasury | GS90: 16 | GT90: Direct charge against the National Revenue Fund | GU90: 3 | GV90: General Fuel Levy Sharing with Metropolitan Municipalities | GW90: General fuel levy sharing with metropolitan municipalities | GX90: Municipal bank accounts | GY90: GFL | GZ90: National Treasury|Direct charge against the National Revenue Fund|General Fuel Levy Sharing with Metropolitan Municipalities|Municipal bank accounts|General fuel levy sharing with metropolitan municipalities|1 | HA90: 14026878 | HB90: 15182495 | HC90: 16084973 | HD90: 207 | HE90: 0
DG91: Communications | DH91: Administration | DI91: 15 | DJ91: 0 | DK91: 2 | DL91: 2 | DM91: 2 | DN91: 3500 | DO91: 2 | DP91: 4673 | DQ91: 2 | DR91: 3926 | DS91: 3 | DT91: 4500 | DU91: 2 | DV91: 3926 | DW91: Communications|Administration | DX91: 003 | DY91: 001 | DZ91: 003001 | EC91: 251 | ED91: 2 | EE91: 2 | EF91: Parliament | EG91: 4 | EH91: Support Services | EI91: 1 | EJ91: Office of the Deputy Secretary | EK91: Current payments | EL91: Goods and services | EM91: Goods and services | EN91: 38 | EO91: 2589 | EP91: 2382 | EQ91: 2382 | ER91: 2382 | ES91: 2409 | ET91: 424 | EU91: 1221 | EW91: 0 | EX91: 0 | EY91: 424 | EZ91: 1221 | FA91: 1280 | FB91: Parliament|Support Services | FC91: 002 | FD91: 004 | FE91: 001 | FF91: 002 | FG91: 002004 | FH91: 002002 | FI91: 2 | FJ91: 002004001002 | FL91: 002004002 | FT91: 4 | FU91: Cooperative Governance and Traditional Affairs | FV91: 4 | FW91: National Disaster Management Centre | FX91: 6 | FY91: Information Technology, Intelligence and Information Management Systems | GR91: National Treasury | GS91: 3 | GT91: Public Finance and Budget Management | GU91: 5 | GV91: Financial and Fiscal Commission | GW91: Financial and Fiscal Commission | GX91: Departmental agencies (non-business entities) | GY91: NAT | GZ91: National Treasury|Public Finance and Budget Management|Financial and Fiscal Commission|Departmental agencies (non-business entities)|Financial and Fiscal Commission|1 | HA91: 57309 | HB91: 60461 | HC91: 62708 | HD91: 164 | HE91: 0
DG92: Communications | DH92: Administration | DI92: 16 | DJ92: 3 | DK92: 3 | DL92: 0 | DM92: 2 | DN92: 6287 | DO92: 2 | DP92: 5890 | DQ92: 2 | DR92: 5400 | DS92: 2 | DT92: 5770 | DU92: 2 | DV92: 6443 | DW92: Communications|Administration | DX92: 003 | DY92: 001 | DZ92: 003001 | EC92: 252 | ED92: 57 | EE92: 2 | EF92: Parliament | EG92: 4 | EH92: Support Services | EI92: 1 | EJ92: Office of the Deputy Secretary | EK92: Payments for capital assets | EL92: Machinery and equipment | EM92: Other machinery and equipment | EN92: 52 | EO92: 0 | EP92: 0 | EQ92: 0 | ER92: 0 | ES92: 0 | ET92: 0 | EU92: 0 | EW92: 0 | EX92: 0 | EY92: 0 | EZ92: 0 | FA92: 0 | FB92: Parliament|Support Services | FC92: 002 | FD92: 004 | FE92: 001 | FF92: 057 | FG92: 002004 | FH92: 002057 | FI92: 57 | FJ92: 002004001057 | FL92: 002004057 | FT92: 4 | FU92: Cooperative Governance and Traditional Affairs | FV92: 4 | FW92: National Disaster Management Centre | FX92: 7 | FY92: Disaster Relief Grant | GR92: National Treasury | GS92: 5 | GT92: Financial Accounting and Supply Chain Management Systems | GU92: 4 | GV92: Financial Reporting for National Accounts | GW92: Accounting Standards Board | GX92: Departmental agencies (non-business entities) | GY92: NAT | GZ92: National Treasury|Financial Accounting and Supply Chain Management Systems|Financial Reporting for National Accounts|Departmental agencies (non-business entities)|Accounting Standards Board|1 | HA92: 15124 | HB92: 15955 | HC92: 16549 | HD92: 189 | HE92: 0
DG93: Communications | DH93: Communications Policy, Research and Development | DI93: 8 | DJ93: 2 | DK93: 2 | DL93: 0 | DM93: 2 | DN93: 648 | DO93: 2 | DP93: 563 | DQ93: 2 | DR93: 435 | DS93: 4 | DT93: 1359 | DU93: 4 | DV93: 1326 | DW93: Communications|Communications Policy, Research and Development | DX93: 003 | DY93: 002 | DZ93: 003002 | EC93: 253 | ED93: 1 | EE93: 2 | EF93: Parliament | EG93: 4 | EH93: Support Services | EI93: 2 | EJ93: Parliamentary Communication Services | EK93: Current payments | EL93: Compensation of employees | EM93: Compensation of employees | EN93: 37510 | EO93: 38883 | EP93: 48567 | EQ93: 48567 | ER93: 48567 | ES93: 35904 | ET93: 45116 | EU93: 48598 | EW93: 0 | EX93: 0 | EY93: 45116 | EZ93: 48598 | FA93: 50409 | FB93: Parliament|Support Services | FC93: 002 | FD93: 004 | FE93: 002 | FF93: 001 | FG93: 002004 | FH93: 002001 | FI93: 1 | FJ93: 002004002001 | FL93: 002004001 | FT93: 4 | FU93: Cooperative Governance and Traditional Affairs | FV93: 4 | FW93: National Disaster Management Centre | FX93: 8 | FY93: Municipal Disaster Recovery Grant | GR93: National Treasury | GS93: 5 | GT93: Financial Accounting and Supply Chain Management Systems | GU93: 4 | GV93: Financial Reporting for National Accounts | GW93: Independent Regulatory Board for Auditors | GX93: Departmental agencies (non-business entities) | GY93: NAT | GZ93: National Treasury|Financial Accounting and Supply Chain Management Systems|Financial Reporting for National Accounts|Departmental agencies (non-business entities)|Independent Regulatory Board for Auditors|1 | HA93: 45537 | HB93: 48042 | HC93: 49827 | HD93: 204 | HE93: 0
DG94: Communications | DH94: Communications Policy, Research and Development | DI94: 9 | DJ94: 1 | DK94: 1 | DL94: 0 | DM94: 1 | DN94: 384 | DO94: 0 | DP94: 0 | DQ94: 4 | DR94: 1484 | DS94: 3 | DT94: 818 | DU94: 3 | DV94: 1023 | DW94: Communications|Communications Policy, Research and Development | DX94: 003 | DY94: 002 | DZ94: 003002 | EC94: 254 | ED94: 2 | EE94: 2 | EF94: Parliament | EG94: 4 | EH94: Support Services | EI94: 2 | EJ94: Parliamentary Communication Services | EK94: Current payments | EL94: Goods and services | EM94: Goods and services | EN94: 31782 | EO94: 41220 | EP94: 43587 | EQ94: 43587 | ER94: 43587 | ES94: 32603 | ET94: 28962 | EU94: 31530 | EW94: 0 | EX94: 0 | EY94: 28962 | EZ94: 31530 | FA94: 32791 | FB94: Parliament|Support Services | FC94: 002 | FD94: 004 | FE94: 002 | FF94: 002 | FG94: 002004 | FH94: 002002 | FI94: 2 | FJ94: 002004002002 | FL94: 002004002 | FT94: 4 | FU94: Cooperative Governance and Traditional Affairs | FV94: 4 | FW94: National Disaster Management Centre | FX94: 9 | FY94: Provincial Disaster Recovery Grant | GR94: National Treasury | GS94: 5 | GT94: Financial Accounting and Supply Chain Management Systems | GU94: 5 | GV94: Financial Management Policy and Compliance Improvement | GW94: Employee social benefits | GX94: Social benefits | GY94: NAT | GZ94: National Treasury|Financial Accounting and Supply Chain Management Systems|Financial Management Policy and Compliance Improvement|Social benefits|Employee social benefits|1 | HA94: 1668 | HB94: 1760 | HC94: 1844 | HD94: 170 | HE94: 0
DG95: Communications | DH95: Communications Policy, Research and Development | DI95: 11 | DJ95: 1 | DK95: 1 | DL95: 0 | DM95: 2 | DN95: 1064 | DO95: 2 | DP95: 767 | DQ95: 2 | DR95: 764 | DS95: 2 | DT95: 1123 | DU95: 2 | DV95: 1533 | DW95: Communications|Communications Policy, Research and Development | DX95: 003 | DY95: 002 | DZ95: 003002 | EC95: 255 | ED95: 57 | EE95: 2 | EF95: Parliament | EG95: 4 | EH95: Support Services | EI95: 2 | EJ95: Parliamentary Communication Services | EK95: Payments for capital assets | EL95: Machinery and equipment | EM95: Other machinery and equipment | EN95: 401 | EO95: 0 | EP95: 0 | EQ95: 0 | ER95: 0 | ES95: 188 | ET95: 200 | EU95: 199 | EW95: 0 | EX95: 0 | EY95: 200 | EZ95: 199 | FA95: 210 | FB95: Parliament|Support Services | FC95: 002 | FD95: 004 | FE95: 002 | FF95: 057 | FG95: 002004 | FH95: 002057 | FI95: 57 | FJ95: 002004002057 | FL95: 002004057 | FT95: 4 | FU95: Cooperative Governance and Traditional Affairs | FV95: 5 | FW95: Local Government Support and Intervention Management | FX95: 1 | FY95: Management: Local Government Support and Interventions | GR95: National Treasury | GS95: 5 | GT95: Financial Accounting and Supply Chain Management Systems | GU95: 6 | GV95: Audit Statutory Bodies | GW95: Auditor-General of South Africa | GX95: Departmental agencies (non-business entities) | GY95: NAT | GZ95: National Treasury|Financial Accounting and Supply Chain Management Systems|Audit Statutory Bodies|Departmental agencies (non-business entities)|Auditor-General of South Africa|1 | HA95: 53184 | HB95: 56109 | HC95: 58194 | HD95: 175 | HE95: 0
DG96: Communications | DH96: Communications Policy, Research and Development | DI96: 12 | DJ96: 2 | DK96: 2 | DL96: 0 | DM96: 1 | DN96: 670 | DO96: 1 | DP96: 603 | DQ96: 1 | DR96: 720 | DS96: 2 | DT96: 1319 | DU96: 2 | DV96: 1719 | DW96: Communications|Communications Policy, Research and Development | DX96: 003 | DY96: 002 | DZ96: 003002 | EC96: 255 | ED96: 1 | EE96: 2 | EF96: Parliament | EG96: 4 | EH96: Support Services | EI96: 3 | EJ96: Human Resources Management | EK96: Current payments | EL96: Compensation of employees | EM96: Compensation of employees | EN96: 35803 | EO96: 36799 | EP96: 47006 | EQ96: 47006 | ER96: 47006 | ES96: 31941 | ET96: 40745 | EU96: 41389 | EW96: 0 | EX96: 0 | EY96: 40745 | EZ96: 41389 | FA96: 42920 | FB96: Parliament|Support Services | FC96: 002 | FD96: 004 | FE96: 003 | FF96: 001 | FG96: 002004 | FH96: 002001 | FI96: 1 | FJ96: 002004003001 | FL96: 002004001 | FT96: 4 | FU96: Cooperative Governance and Traditional Affairs | FV96: 5 | FW96: Local Government Support and Intervention Management | FX96: 2 | FY96: Municipal Performance Monitoring | GR96: National Treasury | GS96: 6 | GT96: International Financial Relations | GU96: 3 | GV96: African Integration and Support | GW96: Africa Regional Technical Assistance Centre for Southern Africa | GX96: Foreign governments and international organisations | GY96: NAT | GZ96: National Treasury|International Financial Relations|African Integration and Support|Foreign governments and international organisations|Africa Regional Technical Assistance Centre for Southern Africa|1 | HA96: 1351 | HB96: 1425 | HC96: 1478 | HD96: 199 | HE96: 0
DG97: Communications | DH97: Communications Policy, Research and Development | DI97: 13 | DJ97: 1 | DK97: 1 | DL97: 0 | DM97: 2 | DN97: 1638 | DO97: 2 | DP97: 1294 | DQ97: 2 | DR97: 1319 | DS97: 2 | DT97: 1410 | DU97: 2 | DV97: 1450 | DW97: Communications|Communications Policy, Research and Development | DX97: 003 | DY97: 002 | DZ97: 003002 | EC97: 255 | ED97: 2 | EE97: 2 | EF97: Parliament | EG97: 4 | EH97: Support Services | EI97: 3 | EJ97: Human Resources Management | EK97: Current payments | EL97: Goods and services | EM97: Goods and services | EN97: 9816 | EO97: 13601 | EP97: 13906 | EQ97: 13906 | ER97: 13906 | ES97: 27948 | ET97: 22683 | EU97: 32556 | EW97: 0 | EX97: 0 | EY97: 22683 | EZ97: 32556 | FA97: 33811 | FB97: Parliament|Support Services | FC97: 002 | FD97: 004 | FE97: 003 | FF97: 002 | FG97: 002004 | FH97: 002002 | FI97: 2 | FJ97: 002004003002 | FL97: 002004002 | FT97: 4 | FU97: Cooperative Governance and Traditional Affairs | FV97: 5 | FW97: Local Government Support and Intervention Management | FX97: 3 | FY97: Local Government Improvement Programme | GR97: National Treasury | GS97: 6 | GT97: International Financial Relations | GU97: 3 | GV97: African Integration and Support | GW97: African Institute for Economic Development and Planning | GX97: Foreign governments and international organisations | GY97: NAT | GZ97: National Treasury|International Financial Relations|African Integration and Support|Foreign governments and international organisations|African Institute for Economic Development and Planning|1 | HA97: 1505 | HB97: 1588 | HC97: 1647 | HD97: 191 | HE97: 0
DG98: Communications | DH98: Communications Policy, Research and Development | DI98: 14 | DJ98: 1 | DK98: 1 | DL98: 0 | DM98: 1 | DN98: 1003 | DO98: 1 | DP98: 1098 | DQ98: 1 | DR98: 1434 | DS98: 1 | DT98: 1563 | DU98: 1 | DV98: 1579 | DW98: Communications|Communications Policy, Research and Development | DX98: 003 | DY98: 002 | DZ98: 003002 | EC98: 256 | ED98: 57 | EE98: 2 | EF98: Parliament | EG98: 4 | EH98: Support Services | EI98: 3 | EJ98: Human Resources Management | EK98: Payments for capital assets | EL98: Machinery and equipment | EM98: Other machinery and equipment | EN98: 32 | EO98: 515 | EP98: 557 | EQ98: 557 | ER98: 557 | ES98: 588 | ET98: 1997 | EU98: 657 | EW98: 0 | EX98: 0 | EY98: 1997 | EZ98: 657 | FA98: 697 | FB98: Parliament|Support Services | FC98: 002 | FD98: 004 | FE98: 003 | FF98: 057 | FG98: 002004 | FH98: 002057 | FI98: 57 | FJ98: 002004003057 | FL98: 002004057 | FT98: 4 | FU98: Cooperative Governance and Traditional Affairs | FV98: 5 | FW98: Local Government Support and Intervention Management | FX98: 4 | FY98: Litigations and Interventions | GR98: National Treasury | GS98: 6 | GT98: International Financial Relations | GU98: 3 | GV98: African Integration and Support | GW98: African Risk Capacity | GX98: Foreign governments and international organisations | GY98: NAT | GZ98: National Treasury|International Financial Relations|African Integration and Support|Foreign governments and international organisations|African Risk Capacity|1 | HA98: 8552 | HB98: 9022 | HC98: 9357 | HD98: 157 | HE98: 0
DG99: Communications | DH99: Industry and Capacity Development | DI99: 4 | DJ99: 1 | DK99: 1 | DL99: 0 | DM99: 2 | DN99: 270 | DO99: 1 | DP99: 197 | DQ99: 1 | DR99: 94 | DS99: 1 | DT99: 104 | DU99: 2 | DV99: 250 | DW99: Communications|Industry and Capacity Development | DX99: 003 | DY99: 003 | DZ99: 003003 | EC99: 2161 | ED99: 1 | EE99: 2 | EF99: Parliament | EG99: 4 | EH99: Support Services | EI99: 4 | EJ99: Information Communication and Technology | EK99: Current payments | EL99: Compensation of employees | EM99: Compensation of employees | EN99: 46307 | EO99: 35774 | EP99: 44839 | EQ99: 44839 | ER99: 44839 | ES99: 44492 | ET99: 54588 | EU99: 56301 | EW99: 0 | EX99: 0 | EY99: 54588 | EZ99: 56301 | FA99: 58388 | FB99: Parliament|Support Services | FC99: 002 | FD99: 004 | FE99: 004 | FF99: 001 | FG99: 002004 | FH99: 002001 | FI99: 1 | FJ99: 002004004001 | FL99: 002004001 | FT99: 4 | FU99: Cooperative Governance and Traditional Affairs | FV99: 5 | FW99: Local Government Support and Intervention Management | FX99: 5 | FY99: Municipal Infrastructure Administration | GR99: National Treasury | GS99: 6 | GT99: International Financial Relations | GU99: 3 | GV99: African Integration and Support | GW99: Collaborative Africa Budget Reform Initiative | GX99: Foreign governments and international organisations | GY99: NAT | GZ99: National Treasury|International Financial Relations|African Integration and Support|Foreign governments and international organisations|Collaborative Africa Budget Reform Initiative|1 | HA99: 1907 | HB99: 2012 | HC99: 2087 | HD99: 181 | HE99: 0
DG100: Communications | DH100: Industry and Capacity Development | DI100: 7 | DJ100: 0 | DK100: 0 | DL100: 0 | DM100: 1 | DN100: 234 | DO100: 0 | DP100: 0 | DQ100: 0 | DR100: 0 | DS100: 0 | DT100: 0 | DU100: 0 | DV100: 0 | DW100: Communications|Industry and Capacity Development | DX100: 003 | DY100: 003 | DZ100: 003003 | EC100: 311 | ED100: 2 | EE100: 2 | EF100: Parliament | EG100: 4 | EH100: Support Services | EI100: 4 | EJ100: Information Communication and Technology | EK100: Current payments | EL100: Goods and services | EM100: Goods and services | EN100: 17670 | EO100: 24073 | EP100: 25430 | EQ100: 25430 | ER100: 25430 | ES100: 46279 | ET100: 38099 | EU100: 43900 | EW100: 0 | EX100: 0 | EY100: 38099 | EZ100: 43900 | FA100: 45613 | FB100: Parliament|Support Services | FC100: 002 | FD100: 004 | FE100: 004 | FF100: 002 | FG100: 002004 | FH100: 002002 | FI100: 2 | FJ100: 002004004002 | FL100: 002004002 | FT100: 4 | FU100: Cooperative Governance and Traditional Affairs | FV100: 5 | FW100: Local Government Support and Intervention Management | FX100: 6 | FY100: Municipal Infrastructure Grant | GR100: National Treasury | GS100: 6 | GT100: International Financial Relations | GU100: 3 | GV100: African Integration and Support | GW100: Common Monetary Area Compensation | GX100: Foreign governments and international organisations | GY100: NAT | GZ100: National Treasury|International Financial Relations|African Integration and Support|Foreign governments and international organisations|Common Monetary Area Compensation|1 | HA100: 896685 | HB100: 946003 | HC100: 981169 | HD100: 169 | HE100: 0
DG101: Communications | DH101: Industry and Capacity Development | DI101: 8 | DJ101: 1 | DK101: 1 | DL101: 0 | DM101: 1 | DN101: 0 | DO101: 1 | DP101: 144 | DQ101: 2 | DR101: 430 | DS101: 1 | DT101: 525 | DU101: 1 | DV101: 556 | DW101: Communications|Industry and Capacity Development | DX101: 003 | DY101: 003 | DZ101: 003003 | EC101: 311 | ED101: 57 | EE101: 2 | EF101: Parliament | EG101: 4 | EH101: Support Services | EI101: 4 | EJ101: Information Communication and Technology | EK101: Payments for capital assets | EL101: Machinery and equipment | EM101: Other machinery and equipment | EN101: 11330 | EO101: 420 | EP101: 228 | EQ101: 228 | ER101: 228 | ES101: 8147 | ET101: 8634 | EU101: 9379 | EW101: 0 | EX101: 0 | EY101: 8634 | EZ101: 9379 | FA101: 9915 | FB101: Parliament|Support Services | FC101: 002 | FD101: 004 | FE101: 004 | FF101: 057 | FG101: 002004 | FH101: 002057 | FI101: 57 | FJ101: 002004004057 | FL101: 002004057 | FT101: 4 | FU101: Cooperative Governance and Traditional Affairs | FV101: 5 | FW101: Local Government Support and Intervention Management | FX101: 7 | FY101: Municipal Infrastructure Support Agent | GR101: National Treasury | GS101: 6 | GT101: International Financial Relations | GU101: 4 | GV101: International Development Funding Institutions | GW101: African Development Fund | GX101: Foreign governments and international organisations | GY101: NAT | GZ101: National Treasury|International Financial Relations|International Development Funding Institutions|Foreign governments and international organisations|African Development Fund|1 | HA101: 39446 | HB101: 41616 | HC101: 43162 | HD101: 175 | HE101: 0
DG102: Communications | DH102: Industry and Capacity Development | DI102: 9 | DJ102: 0 | DK102: 1 | DL102: 1 | DM102: 0 | DN102: 0 | DO102: 1 | DP102: 217 | DQ102: 2 | DR102: 579 | DS102: 1 | DT102: 707 | DU102: 1 | DV102: 748 | DW102: Communications|Industry and Capacity Development | DX102: 003 | DY102: 003 | DZ102: 003003 | EC102: 311 | ED102: 62 | EE102: 2 | EF102: Parliament | EG102: 4 | EH102: Support Services | EI102: 4 | EJ102: Information Communication and Technology | EK102: Payments for capital assets | EL102: Software and other intangible assets | EM102: Software and other intangible assets | EN102: 2004 | EO102: 0 | EP102: 0 | EQ102: 0 | ER102: 0 | ES102: 0 | ET102: 0 | EU102: 0 | EW102: 0 | EX102: 0 | EY102: 0 | EZ102: 0 | FA102: 0 | FB102: Parliament|Support Services | FC102: 002 | FD102: 004 | FE102: 004 | FF102: 062 | FG102: 002004 | FH102: 002062 | FI102: 62 | FJ102: 002004004062 | FL102: 002004062 | FT102: 4 | FU102: Cooperative Governance and Traditional Affairs | FV102: 6 | FW102: Community Work Programme | FX102: 1 | FY102: Management: Community Work Programme | GR102: National Treasury | GS102: 6 | GT102: International Financial Relations | GU102: 4 | GV102: International Development Funding Institutions | GW102: World Bank Group | GX102: Foreign governments and international organisations | GY102: NAT | GZ102: National Treasury|International Financial Relations|International Development Funding Institutions|Foreign governments and international organisations|World Bank Group|1 | HA102: 112204 | HB102: 118375 | HC102: 122774 | HD102: 167 | HE102: 0
DG103: Communications | DH103: Industry and Capacity Development | DI103: 10 | DJ103: 0 | DK103: 1 | DL103: 0 | DM103: 0 | DN103: 0 | DO103: 1 | DP103: 243 | DQ103: 1 | DR103: 310 | DS103: 1 | DT103: 758 | DU103: 2 | DV103: 802 | DW103: Communications|Industry and Capacity Development | DX103: 003 | DY103: 003 | DZ103: 003003 | EC103: 312 | ED103: 1 | EE103: 2 | EF103: Parliament | EG103: 4 | EH103: Support Services | EI103: 5 | EJ103: Institutional Support Services | EK103: Current payments | EL103: Compensation of employees | EM103: Compensation of employees | EN103: 109164 | EO103: 89554 | EP103: 101564 | EQ103: 101564 | ER103: 101564 | ES103: 105315 | ET103: 130496 | EU103: 130568 | EW103: 0 | EX103: 0 | EY103: 130496 | EZ103: 130568 | FA103: 135386 | FB103: Parliament|Support Services | FC103: 002 | FD103: 004 | FE103: 005 | FF103: 001 | FG103: 002004 | FH103: 002001 | FI103: 1 | FJ103: 002004005001 | FL103: 002004001 | FT103: 4 | FU103: Cooperative Governance and Traditional Affairs | FV103: 6 | FW103: Community Work Programme | FX103: 2 | FY103: Programme Coordination | GR103: National Treasury | GS103: 6 | GT103: International Financial Relations | GU103: 5 | GV103: International Projects | GW103: Commonwealth Fund for Technical Cooperation | GX103: Foreign governments and international organisations | GY103: NAT | GZ103: National Treasury|International Financial Relations|International Projects|Foreign governments and international organisations|Commonwealth Fund for Technical Cooperation|1 | HA103: 7156 | HB103: 7550 | HC103: 7830 | HD103: 170 | HE103: 0
Z104: =IF(AI104="",1,2) -> 1 | AA104: =+AA23 -> 16 | AB104: =+AB23 -> 5 | AP104: =INDEX((AP$106:AP$152),MATCH($AA$23,$AA$106:$AA$152,1)) -> 3825890 | AQ104: =INDEX((AQ$106:AQ$152),MATCH($AA$23,$AA$106:$AA$152,1)) -> 4074573 | AR104: 4226846 | AT104: Personnel Revised Baseline | AV104: =IFERROR(INDEX((AV$106:AV$151),MATCH($AB$23,$AT$106:$AT$151,0)),0) -> 3892935 | AW104: =IFERROR(INDEX((AW$106:AW$151),MATCH($AB$23,$AT$106:$AT$151,0)),0) -> 4140126 | AX104: 4278846 | DG104: Communications | DH104: Industry and Capacity Development | DI104: 11 | DJ104: 2 | DK104: 2 | DL104: 1 | DM104: 1 | DN104: 548 | DO104: 2 | DP104: 0 | DQ104: 0 | DR104: 0 | DS104: 2 | DT104: 0 | DU104: 0 | DV104: 0 | DW104: Communications|Industry and Capacity Development | DX104: 003 | DY104: 003 | DZ104: 003003 | EC104: 312 | ED104: 2 | EE104: 2 | EF104: Parliament | EG104: 4 | EH104: Support Services | EI104: 5 | EJ104: Institutional Support Services | EK104: Current payments | EL104: Goods and services | EM104: Goods and services | EN104: 18202 | EO104: 19492 | EP104: 20659 | EQ104: 20659 | ER104: 20659 | ES104: 64179 | ET104: 49335 | EU104: 64768 | EW104: 0 | EX104: 0 | EY104: 49335 | EZ104: 64768 | FA104: 67408 | FB104: Parliament|Support Services | FC104: 002 | FD104: 004 | FE104: 005 | FF104: 002 | FG104: 002004 | FH104: 002002 | FI104: 2 | FJ104: 002004005002 | FL104: 002004002 | FT104: 4 | FU104: Cooperative Governance and Traditional Affairs | FV104: 6 | FW104: Community Work Programme | FX104: 3 | FY104: Partnerships, Norms, Standards and Innovation | GR104: National Treasury | GS104: 6 | GT104: International Financial Relations | GU104: 5 | GV104: International Projects | GW104: International Finance Facility for Immunisation | GX104: Foreign governments and international organisations | GY104: NAT | GZ104: National Treasury|International Financial Relations|International Projects|Foreign governments and international organisations|International Finance Facility for Immunisation|1 | HA104: 14994 | HB104: 15819 | HC104: 16406 | HD104: 174 | HE104: 0
AA105: Dept Index No. | AB105: Vote No. | AC105: Department | AD105: Category | AE105: ID1 | AF105: Contact Person | AG105: Tel | AH105: email | AI105: Contact Person | AJ105: Tel | AK105: email | AL105: ID2 | AM105: Contact Person | AN105: Tel | AO105: email | AP105: =MyYearP1 -> 2020/21 | AQ105: =MyYearP2 -> 2021/22 | AR105: =MyYearP3 -> 2022/23 | AT105: Vote No. | AU105: Dept | AV105: =+AP105 -> 2020/21 | AW105: =+AQ105 -> 2021/22 | AX105: =+AR105 -> 2022/23 | DG105: Communications | DH105: Industry and Capacity Development | DI105: 12 | DJ105: 0 | DK105: 0 | DL105: 0 | DM105: 2 | DN105: 1230 | DO105: 0 | DP105: 0 | DQ105: 0 | DR105: 0 | DS105: 0 | DT105: 0 | DU105: 0 | DV105: 0 | DW105: Communications|Industry and Capacity Development | DX105: 003 | DY105: 003 | DZ105: 003003 | EC105: 312 | ED105: 58 | EE105: 2 | EF105: Parliament | EG105: 4 | EH105: Support Services | EI105: 5 | EJ105: Institutional Support Services | EK105: Payments for capital assets | EL105: Heritage assets | EM105: Heritage assets | EN105: 8 | EO105: 0 | EP105: 0 | EQ105: 0 | ER105: 0 | ES105: 0 | ET105: 0 | EU105: 0 | EW105: 0 | EX105: 0 | EY105: 0 | EZ105: 0 | FA105: 0 | FB105: Parliament|Support Services | FC105: 002 | FD105: 004 | FE105: 005 | FF105: 058 | FG105: 002004 | FH105: 002058 | FI105: 58 | FJ105: 002004005058 | FL105: 002004058 | FT105: 5 | FU105: Home Affairs | FV105: 1 | FW105: Administration | FX105: 1 | FY105: Ministry | GR105: National Treasury | GS105: 7 | GT105: Civil and Military Pensions, Contributions to Funds and Other Benefits | GU105: 2 | GV105: Civil Pensions and Contributions to Funds | GW105: Contribution to provident funds for associated institutions | GX105: Social benefits | GY105: NAT | GZ105: National Treasury|Civil and Military Pensions, Contributions to Funds and Other Benefits|Civil Pensions and Contributions to Funds|Social benefits|Contribution to provident funds for associated institutions |1 | HA105: 380 | HB105: 401 | HC105: 420 | HD105: 207 | HE105: 0
Y106: 1 | AA106: 1 | AB106: 24 | AC106: Agriculture, Forestry and Fisheries | AF106: Bothwell Deka | AG106: (012) 395 6784 | AH106: Bothwell.Deka@treasury.gov.za | AI106: Humbelani Ramuedzisi | AJ106: (012) 315 5585 | AK106: Humbelani.Ramuedzisi@treasury.gov.za | AP106: 2522372 | AQ106: 2686307 | AR106: 2786300 | AT106: 24 | AU106: Agriculture, Forestry and Fisheries | AV106: 2507238 | AW106: 2670189 | AX106: 2786300 | DG106: Communications | DH106: Industry and Capacity Development | DI106: 13 | DJ106: 2 | DK106: 4 | DL106: 2 | DM106: 3 | DN106: 3493 | DO106: 4 | DP106: 2893 | DQ106: 4 | DR106: 3153 | DS106: 4 | DT106: 3247 | DU106: 4 | DV106: 3500 | DW106: Communications|Industry and Capacity Development | DX106: 003 | DY106: 003 | DZ106: 003003 | EC106: 313 | ED106: 57 | EE106: 2 | EF106: Parliament | EG106: 4 | EH106: Support Services | EI106: 5 | EJ106: Institutional Support Services | EK106: Payments for capital assets | EL106: Machinery and equipment | EM106: Other machinery and equipment | EN106: 188 | EO106: 319 | EP106: 289 | EQ106: 289 | ER106: 289 | ES106: 200 | ET106: 322 | EU106: 224 | EW106: 0 | EX106: 0 | EY106: 322 | EZ106: 224 | FA106: 237 | FB106: Parliament|Support Services | FC106: 002 | FD106: 004 | FE106: 005 | FF106: 057 | FG106: 002004 | FH106: 002057 | FI106: 57 | FJ106: 002004005057 | FL106: 002004057 | FT106: 5 | FU106: Home Affairs | FV106: 1 | FW106: Administration | FX106: 2 | FY106: Management Support Services | GR106: National Treasury | GS106: 7 | GT106: Civil and Military Pensions, Contributions to Funds and Other Benefits | GU106: 2 | GV106: Civil Pensions and Contributions to Funds | GW106: Injury on duty | GX106: Social benefits | GY106: NAT | GZ106: National Treasury|Civil and Military Pensions, Contributions to Funds and Other Benefits|Civil Pensions and Contributions to Funds|Social benefits|Injury on duty|1 | HA106: 726724 | HB106: 766694 | HC106: 803175 | HD106: 161 | HE106: 0
Y107: 2 | AA107: 2 | AB107: 37 | AC107: Arts and Culture | AF107: Judy Naidoo | AG107: (012) 315 5269 | AH107: Judy.Naidoo@treasury.gov.za | AI107: Siphamandla Khumalo | AJ107: (012) 315 5759 | AK107: Siphamandla.Khumalo@treasury.gov.za | AP107: 293322 | AQ107: 312388 | AR107: 324020 | AT107: 37 | AU107: Arts and Culture | AV107: 291562 | AW107: 310514 | AX107: 324020 | DG107: Communications | DH107: Industry and Capacity Development | DI107: 14 | DJ107: 3 | DK107: 4 | DL107: 1 | DM107: 1 | DN107: 1354 | DO107: 2 | DP107: 1900 | DQ107: 3 | DR107: 3550 | DS107: 4 | DT107: 4577 | DU107: 4 | DV107: 4636 | DW107: Communications|Industry and Capacity Development | DX107: 003 | DY107: 003 | DZ107: 003003 | EC107: 313 | ED107: 56 | EE107: 2 | EF107: Parliament | EG107: 4 | EH107: Support Services | EI107: 5 | EJ107: Institutional Support Services | EK107: Payments for capital assets | EL107: Machinery and equipment | EM107: Transport equipment | EN107: 1234 | EO107: 0 | EP107: 0 | EQ107: 0 | ER107: 0 | ES107: 0 | ET107: 0 | EU107: 0 | EW107: 0 | EX107: 0 | EY107: 0 | EZ107: 0 | FA107: 0 | FB107: Parliament|Support Services | FC107: 002 | FD107: 004 | FE107: 005 | FF107: 056 | FG107: 002004 | FH107: 002056 | FI107: 56 | FJ107: 002004005056 | FL107: 002004056 | FT107: 5 | FU107: Home Affairs | FV107: 1 | FW107: Administration | FX107: 3 | FY107: Corporate Services | GR107: National Treasury | GS107: 7 | GT107: Civil and Military Pensions, Contributions to Funds and Other Benefits | GU107: 2 | GV107: Civil Pensions and Contributions to Funds | GW107: Other benefits | GX107: Social benefits | GY107: NAT | GZ107: National Treasury|Civil and Military Pensions, Contributions to Funds and Other Benefits|Civil Pensions and Contributions to Funds|Social benefits|Other benefits|1 | HA107: 109819 | HB107: 115859 | HC107: 121372 | HD107: 161 | HE107: 0
Y108: 3 | AA108: 3 | AB108: 14 | AC108: Basic Education | AF108: Spencer Janari | AG108: (012) 315 5436 | AH108: Spencer.Janari@treasury.gov.za | AI108: Pindi Masiso | AJ108: (012) 315 5722 | AK108: Pindi.Masiso@treasury.gov.za | AP108: 587779 | AQ108: 625922 | AR108: 649219 | AT108: 14 | AU108: Basic Education | AV108: 584252 | AW108: 622166 | AX108: 649219 | DG108: Communications | DH108: Entity Oversight | DI108: 7 | DJ108: 0 | DK108: 1 | DL108: 1 | DM108: 1 | DN108: 294 | DO108: 1 | DP108: 369 | DQ108: 1 | DR108: 464 | DS108: 1 | DT108: 490 | DU108: 1 | DV108: 518 | DW108: Communications|Entity Oversight | DX108: 003 | DY108: 004 | DZ108: 003004 | EC108: 314 | ED108: 1 | EE108: 2 | EF108: Parliament | EG108: 4 | EH108: Support Services | EI108: 6 | EJ108: Member's Support Services | EK108: Current payments | EL108: Compensation of employees | EM108: Compensation of employees | EN108: 0 | EO108: 0 | EP108: 9180 | EQ108: 9180 | ER108: 9180 | ES108: 11298 | ET108: 13285 | EU108: 14309 | EW108: 0 | EX108: 0 | EY108: 13285 | EZ108: 14309 | FA108: 14842 | FB108: Parliament|Support Services | FC108: 002 | FD108: 004 | FE108: 006 | FF108: 001 | FG108: 002004 | FH108: 002001 | FI108: 1 | FJ108: 002004006001 | FL108: 002004001 | FT108: 5 | FU108: Home Affairs | FV108: 1 | FW108: Administration | FX108: 4 | FY108: Transversal Information Technology Management | GR108: National Treasury | GS108: 7 | GT108: Civil and Military Pensions, Contributions to Funds and Other Benefits | GU108: 2 | GV108: Civil Pensions and Contributions to Funds | GW108: Parliamentary Awards | GX108: Social benefits | GY108: NAT | GZ108: National Treasury|Civil and Military Pensions, Contributions to Funds and Other Benefits|Civil Pensions and Contributions to Funds|Social benefits|Parliamentary Awards|1 | HA108: 26 | HB108: 27 | HC108: 28 | HD108: 167 | HE108: 0
Y109: 4 | AA109: 4 | AB109: 47 | AC109: Centre for Public Service Innovation | AF109: George Tembo | AG109: (012) 315 5514 | AH109: George.Tembo@treasury.gov.za | AI109: Uvadhya Singh | AJ109: (012) 315 9030 | AK109: Uvadhya.Singh@treasury.gov.za | AP109: 22470 | AQ109: 23929 | AR109: 24821 | AT109: 47 | AU109: Centre for Public Service Innovation | AV109: 22335 | AW109: 23785 | AX109: 24821 | DG109: Communications | DH109: Entity Oversight | DI109: 11 | DJ109: 0 | DK109: 1 | DL109: 0 | DM109: 0 | DN109: 0 | DO109: 1 | DP109: 495 | DQ109: 1 | DR109: 765 | DS109: 1 | DT109: 809 | DU109: 1 | DV109: 855 | DW109: Communications|Entity Oversight | DX109: 003 | DY109: 004 | DZ109: 003004 | EC109: 314 | ED109: 2 | EE109: 2 | EF109: Parliament | EG109: 4 | EH109: Support Services | EI109: 6 | EJ109: Member's Support Services | EK109: Current payments | EL109: Goods and services | EM109: Goods and services | EN109: 0 | EO109: 0 | EP109: 1036 | EQ109: 1036 | ER109: 1036 | ES109: 6968 | ET109: 2632 | EU109: 2783 | EW109: 0 | EX109: 0 | EY109: 2632 | EZ109: 2783 | FA109: 2889 | FB109: Parliament|Support Services | FC109: 002 | FD109: 004 | FE109: 006 | FF109: 002 | FG109: 002004 | FH109: 002002 | FI109: 2 | FJ109: 002004006002 | FL109: 002004002 | FT109: 5 | FU109: Home Affairs | FV109: 1 | FW109: Administration | FX109: 5 | FY109: Office Accommodation | GR109: National Treasury | GS109: 7 | GT109: Civil and Military Pensions, Contributions to Funds and Other Benefits | GU109: 2 | GV109: Civil Pensions and Contributions to Funds | GW109: Pension benefits: President of South Africa | GX109: Social benefits | GY109: NAT | GZ109: National Treasury|Civil and Military Pensions, Contributions to Funds and Other Benefits|Civil Pensions and Contributions to Funds|Social benefits|Pension benefits: President of South Africa|1 | HA109: 14277 | HB109: 15062 | HC109: 15779 | HD109: 190 | HE109: 0
Y110: 5 | AA110: 5 | AB110: 41 | AC110: Civilian Secretariat | AF110: Nompumelelo Radebe | AG110: (012) 315 5957 | AH110: Nompumelelo.Radebe@treasury.gov.za | AI110: Mmathapelo Maphangela | AJ110: (012) 406 9013 | AK110: Mmathapelo.Maphangela@treasury.gov.za | AP110: 112723 | AQ110: 120049 | AR110: 124510 | AT110: 41 | AU110: Civilian Secretariat | AV110: 112047 | AW110: 119329 | AX110: 124510 | DG110: Communications | DH110: Entity Oversight | DI110: 12 | DJ110: 0 | DK110: 1 | DL110: 0 | DM110: 1 | DN110: 670 | DO110: 1 | DP110: 750 | DQ110: 1 | DR110: 1113 | DS110: 1 | DT110: 1177 | DU110: 1 | DV110: 1244 | DW110: Communications|Entity Oversight | DX110: 003 | DY110: 004 | DZ110: 003004 | EC110: 314 | ED110: 57 | EE110: 2 | EF110: Parliament | EG110: 4 | EH110: Support Services | EI110: 6 | EJ110: Member's Support Services | EK110: Payments for capital assets | EL110: Machinery and equipment | EM110: Other machinery and equipment | EN110: 0 | EO110: 0 | EP110: 106 | EQ110: 106 | ER110: 106 | ES110: 24 | ET110: 18 | EU110: 26 | EW110: 0 | EX110: 0 | EY110: 18 | EZ110: 26 | FA110: 28 | FB110: Parliament|Support Services | FC110: 002 | FD110: 004 | FE110: 006 | FF110: 057 | FG110: 002004 | FH110: 002057 | FI110: 57 | FJ110: 002004006057 | FL110: 002004057 | FT110: 5 | FU110: Home Affairs | FV110: 2 | FW110: Citizen Affairs | FX110: 1 | FY110: Citizen Affairs Management | GR110: National Treasury | GS110: 7 | GT110: Civil and Military Pensions, Contributions to Funds and Other Benefits | GU110: 2 | GV110: Civil Pensions and Contributions to Funds | GW110: Political Office Bearers Pension Fund | GX110: Social benefits | GY110: NAT | GZ110: National Treasury|Civil and Military Pensions, Contributions to Funds and Other Benefits|Civil Pensions and Contributions to Funds|Social benefits|Political Office Bearers Pension Fund|1 | HA110: 50001 | HB110: 50356 | HC110: 52752 | HD110: 184 | HE110: 0
Y111: 6 | AA111: 6 | AB111: 3 | AC111: Communications | AF111: Mokgatla Tema | AG111: (012) 315 5948 | AH111: Mokgatla.Tema@treasury.gov.za | AI111: Viwe Sobudula | AJ111: (0)12 315 5015 | AK111: Viwe.Sobudula@treasury.gov.za | AP111: 94256 | AQ111: 100383 | AR111: 104127 | AT111: 3 | AU111: Communications | AV111: 93690 | AW111: 99781 | AX111: 104127 | DG111: Communications | DH111: Entity Oversight | DI111: 13 | DJ111: 1 | DK111: 1 | DL111: 0 | DM111: 1 | DN111: 882 | DO111: 1 | DP111: 890 | DQ111: 1 | DR111: 1132 | DS111: 1 | DT111: 1196 | DU111: 1 | DV111: 1265 | DW111: Communications|Entity Oversight | DX111: 003 | DY111: 004 | DZ111: 003004 | EC111: 315 | ED111: 1 | EE111: 2 | EF111: Parliament | EG111: 5 | EH111: Associated Services | EI111: 1 | EJ111: Members Support Services | EK111: Current payments | EL111: Compensation of employees | EM111: Compensation of employees | EN111: 8824 | EO111: 8597 | EP111: 0 | EQ111: 0 | ER111: 0 | ES111: 0 | ET111: 0 | EU111: 0 | EW111: 0 | EX111: 0 | EY111: 0 | EZ111: 0 | FA111: 0 | FB111: Parliament|Associated Services | FC111: 002 | FD111: 005 | FE111: 001 | FF111: 001 | FG111: 002005 | FH111: 002001 | FI111: 1 | FJ111: 002005001001 | FL111: 002005001 | FT111: 5 | FU111: Home Affairs | FV111: 2 | FW111: Citizen Affairs | FX111: 2 | FY111: Status Services | GR111: National Treasury | GS111: 7 | GT111: Civil and Military Pensions, Contributions to Funds and Other Benefits | GU111: 2 | GV111: Civil Pensions and Contributions to Funds | GW111: Post-Retirement medical scheme | GX111: Social benefits | GY111: NAT | GZ111: National Treasury|Civil and Military Pensions, Contributions to Funds and Other Benefits|Civil Pensions and Contributions to Funds|Social benefits|Post-Retirement medical scheme|1 | HA111: 3064719 | HB111: 3233279 | HC111: 3387124 | HD111: 177 | HE111: 0
Y112: 7 | AA112: 7 | AB112: 4 | AC112: Cooperative Governance And Traditional Affairs | AF112: Misaveni Ngobeni | AG112: (012) 315 5305 | AH112: misaveni.ngobeni@treasury.gov.za | AI112: Millicent Mulaudzi | AJ112: (012) 395 6576 | AK112: Millicent.Mulaudzi@treasury.gov.za | AP112: 392754 | AQ112: 418284 | AR112: 433862 | AT112: 4 | AU112: Cooperative Governance And Traditional Affairs | AV112: 395297 | AW112: 420774 | AX112: 438862 | DG112: Communications | DH112: Entity Oversight | DI112: 14 | DJ112: 0 | DK112: 1 | DL112: 0 | DM112: 1 | DN112: 988 | DO112: 1 | DP112: 1050 | DQ112: 1 | DR112: 1350 | DS112: 1 | DT112: 1687 | DU112: 1 | DV112: 1783 | DW112: Communications|Entity Oversight | DX112: 003 | DY112: 004 | DZ112: 003004 | EC112: 315 | ED112: 2 | EE112: 2 | EF112: Parliament | EG112: 5 | EH112: Associated Services | EI112: 1 | EJ112: Members Support Services | EK112: Current payments | EL112: Goods and services | EM112: Goods and services | EN112: 369 | EO112: 1308 | EP112: 0 | EQ112: 0 | ER112: 0 | ES112: 0 | ET112: 0 | EU112: 0 | EW112: 0 | EX112: 0 | EY112: 0 | EZ112: 0 | FA112: 0 | FB112: Parliament|Associated Services | FC112: 002 | FD112: 005 | FE112: 001 | FF112: 002 | FG112: 002005 | FH112: 002002 | FI112: 2 | FJ112: 002005001002 | FL112: 002005002 | FT112: 5 | FU112: Home Affairs | FV112: 2 | FW112: Citizen Affairs | FX112: 3 | FY112: Identification Services | GR112: National Treasury | GS112: 7 | GT112: Civil and Military Pensions, Contributions to Funds and Other Benefits | GU112: 2 | GV112: Civil Pensions and Contributions to Funds | GW112: Post-retirement medical scheme - Parliamentary staff | GX112: Social benefits | GY112: NAT | GZ112: National Treasury|Civil and Military Pensions, Contributions to Funds and Other Benefits|Civil Pensions and Contributions to Funds|Social benefits|Post-retirement medical scheme - Parliamentary staff|1 | HA112: 3514 | HB112: 3707 | HC112: 3883 | HD112: 199 | HE112: 0
Y113: 8 | AA113: 8 | AB113: 18 | AC113: Correctional Services | AF113: Elvis Ramafamba | AG113: (012) 315 5204 | AH113: elvis.ramafamba@treasury.gov.za | AI113: Keabetswe Matlwa | AJ113: (012) 395 6678 | AK113: Keabetswe.Matlwa@treasury.gov.za | AP113: 19594298 | AQ113: 20947048 | AR113: 21727131 | AT113: 18 | AU113: Correctional Services | AV113: 19007774 | AW113: 20316364 | AX113: 21184754 | DG113: Communications | DH113: Entity Oversight | DI113: 15 | DJ113: 0 | DK113: 1 | DL113: 0 | DM113: 0 | DN113: 0 | DO113: 1 | DP113: 950 | DQ113: 1 | DR113: 1786 | DS113: 1 | DT113: 1889 | DU113: 1 | DV113: 1996 | DW113: Communications|Entity Oversight | DX113: 003 | DY113: 004 | DZ113: 003004 | EC113: 315 | ED113: 57 | EE113: 2 | EF113: Parliament | EG113: 5 | EH113: Associated Services | EI113: 1 | EJ113: Members Support Services | EK113: Payments for capital assets | EL113: Machinery and equipment | EM113: Other machinery and equipment | EN113: 66 | EO113: 101 | EP113: 0 | EQ113: 0 | ER113: 0 | ES113: 0 | ET113: 0 | EU113: 0 | EW113: 0 | EX113: 0 | EY113: 0 | EZ113: 0 | FA113: 0 | FB113: Parliament|Associated Services | FC113: 002 | FD113: 005 | FE113: 001 | FF113: 057 | FG113: 002005 | FH113: 002057 | FI113: 57 | FJ113: 002005001057 | FL113: 002005057 | FT113: 5 | FU113: Home Affairs | FV113: 2 | FW113: Citizen Affairs | FX113: 4 | FY113: Service Delivery to Provinces | GR113: National Treasury | GS113: 7 | GT113: Civil and Military Pensions, Contributions to Funds and Other Benefits | GU113: 2 | GV113: Civil Pensions and Contributions to Funds | GW113: Special pensions | GX113: Social benefits | GY113: NAT | GZ113: National Treasury|Civil and Military Pensions, Contributions to Funds and Other Benefits|Civil Pensions and Contributions to Funds|Social benefits|Special pensions|1 | HA113: 480000 | HB113: 506400 | HC113: 530495 | HD113: 163 | HE113: 0
Y114: 9 | AA114: 9 | AB114: 19 | AC114: Defence And Military Veterans | AF114: Mashudu Bidzha | AG114: (012) 315 5344 | AH114: Mashudu.Bidzha@treasury.gov.za | AI114: Lesiba Ledwaba | AJ114: (012) 315 6660 | AK114: Lesiba.Ledwaba@treasury.gov.za | AP114: 31365882 | AQ114: 33404665 | AR114: 34648416 | AT114: 19 | AU114: Defence And Military Veterans | AV114: 31177687 | AW114: 33204237 | AX114: 34648416 | DG114: Communications | DH114: Entity Oversight | DI114: 16 | DJ114: 0 | DK114: 1 | DL114: 0 | DM114: 0 | DN114: 0 | DO114: 1 | DP114: 1070 | DQ114: 1 | DR114: 2334 | DS114: 1 | DT114: 2209 | DU114: 1 | DV114: 2335 | DW114: Communications|Entity Oversight | DX114: 003 | DY114: 004 | DZ114: 003004 | EC114: 322 | ED114: 51 | EE114: 2 | EF114: Parliament | EG114: 5 | EH114: Associated Services | EI114: 2 | EJ114: Political Party Support | EK114: Transfers and subsidies | EL114: Non-profit institutions | EM114: Non-profit institutions | EN114: 104242 | EO114: 96630 | EP114: 102235 | EQ114: 102235 | ER114: 102235 | ES114: 107960 | ET114: 114438 | EU114: 121304 | EW114: 0 | EX114: 0 | EY114: 114438 | EZ114: 121304 | FA114: 125817 | FB114: Parliament|Associated Services | FC114: 002 | FD114: 005 | FE114: 002 | FF114: 051 | FG114: 002005 | FH114: 002051 | FI114: 51 | FJ114: 002005002051 | FL114: 002005051 | FT114: 5 | FU114: Home Affairs | FV114: 2 | FW114: Citizen Affairs | FX114: 5 | FY114: Electoral Commission | GR114: National Treasury | GS114: 7 | GT114: Civil and Military Pensions, Contributions to Funds and Other Benefits | GU114: 2 | GV114: Civil Pensions and Contributions to Funds | GW114: United Kingdom tax | GX114: Foreign governments and international organisations | GY114: NAT | GZ114: National Treasury|Civil and Military Pensions, Contributions to Funds and Other Benefits|Civil Pensions and Contributions to Funds|Foreign governments and international organisations|United Kingdom tax|1 | HA114: 3003 | HB114: 3168 | HC114: 3286 | HD114: 201 | HE114: 0
Y115: 10 | AA115: 10 | AB115: 25 | AC115: Economic Development | AF115: Isaac Kurasha | AG115: (012) 315 5213 | AH115: isaac.kurasha@treasury.gov.za | AI115: Millicent Movare | AJ115: (012) 315 5279 | AK115: Millicent.Movare@treasury.gov.za | AP115: 105020 | AQ115: 111846 | AR115: 116009 | AT115: 25 | AU115: Economic Development | AV115: 104390 | AW115: 111175 | AX115: 116009 | DG115: Cooperative Governance And Traditional Affairs | DH115: Administration | DI115: 3 | DJ115: 24 | DK115: 24 | DL115: 0 | DM115: 24 | DN115: 5630 | DO115: 24 | DP115: 6375 | DQ115: 24 | DR115: 3752 | DS115: 24 | DT115: 3955 | DU115: 24 | DV115: 4184 | DW115: Cooperative Governance And Traditional Affairs|Administration | DX115: 004 | DY115: 001 | DZ115: 004001 | EC115: 322 | ED115: 51 | EE115: 2 | EF115: Parliament | EG115: 5 | EH115: Associated Services | EI115: 3 | EJ115: Constituency Support | EK115: Transfers and subsidies | EL115: Non-profit institutions | EM115: Non-profit institutions | EN115: 284421 | EO115: 309360 | EP115: 327303 | EQ115: 327303 | ER115: 327303 | ES115: 345632 | ET115: 366370 | EU115: 388352 | EW115: 0 | EX115: 0 | EY115: 366370 | EZ115: 388352 | FA115: 402798 | FB115: Parliament|Associated Services | FC115: 002 | FD115: 005 | FE115: 003 | FF115: 051 | FG115: 002005 | FH115: 002051 | FI115: 51 | FJ115: 002005003051 | FL115: 002005051 | FT115: 5 | FU115: Home Affairs | FV115: 2 | FW115: Citizen Affairs | FX115: 6 | FY115: Represented Political Parties’ Fund | GR115: National Treasury | GS115: 7 | GT115: Civil and Military Pensions, Contributions to Funds and Other Benefits | GU115: 3 | GV115: Military Pensions and Other Benefits | GW115: Civil protection | GX115: Social benefits | GY115: NAT | GZ115: National Treasury|Civil and Military Pensions, Contributions to Funds and Other Benefits|Military Pensions and Other Benefits|Social benefits|Civil protection|1 | HA115: 20 | HB115: 21 | HC115: 22 | HD115: 158 | HE115: 0
Y116: 11 | AA116: 11 | AB116: 26 | AC116: Energy | AF116: Rezah Atcha | AG116: (012) 315 5287 | AH116: Rezah.Atcha@treasury.gov.za | AI116: Nomagugu Madikane | AJ116: (012) 315 5312 | AK116: Nomagugu.Madikane@treasury.gov.za | AP116: 409249 | AQ116: 435850 | AR116: 452077 | AT116: 26 | AU116: Energy | AV116: 406794 | AW116: 433235 | AX116: 452077 | DG116: Cooperative Governance And Traditional Affairs | DH116: Administration | DI116: 4 | DJ116: 5 | DK116: 5 | DL116: 0 | DM116: 5 | DN116: 1372 | DO116: 5 | DP116: 1426 | DQ116: 4 | DR116: 852 | DS116: 4 | DT116: 898 | DU116: 4 | DV116: 950 | DW116: Cooperative Governance And Traditional Affairs|Administration | DX116: 004 | DY116: 001 | DZ116: 004001 | EC116: 322 | ED116: 51 | EE116: 2 | EF116: Parliament | EG116: 5 | EH116: Associated Services | EI116: 4 | EJ116: Party Leadership Support | EK116: Transfers and subsidies | EL116: Non-profit institutions | EM116: Non-profit institutions | EN116: 14601 | EO116: 8700 | EP116: 9205 | EQ116: 9205 | ER116: 9205 | ES116: 9720 | ET116: 10303 | EU116: 10921 | EW116: 0 | EX116: 0 | EY116: 10303 | EZ116: 10921 | FA116: 11326 | FB116: Parliament|Associated Services | FC116: 002 | FD116: 005 | FE116: 004 | FF116: 051 | FG116: 002005 | FH116: 002051 | FI116: 51 | FJ116: 002005004051 | FL116: 002005051 | FT116: 5 | FU116: Home Affairs | FV116: 3 | FW116: Immigration Affairs | FX116: 1 | FY116: Immigration Affairs Management | GR116: National Treasury | GS116: 7 | GT116: Civil and Military Pensions, Contributions to Funds and Other Benefits | GU116: 3 | GV116: Military Pensions and Other Benefits | GW116: Military pensions: Ex-servicemen | GX116: Social benefits | GY116: NAT | GZ116: National Treasury|Civil and Military Pensions, Contributions to Funds and Other Benefits|Military Pensions and Other Benefits|Social benefits|Military pensions: Ex-servicemen|1 | HA116: 2599 | HB116: 2742 | HC116: 2872 | HD116: 174 | HE116: 0
Y117: 12 | AA117: 12 | AB117: 27 | AC117: Environmental Affairs | AF117: Gcobisa Magazi | AG117: (012) 315 5320 | AH117: Gcobisa.Magazi@treasury.gov.za | AI117: Ashley Ramasimu | AJ117: (012) 315 5166 | AK117: Ashley.Ramasimu@treasury.gov.za | AP117: 1333091 | AQ117: 1419741 | AR117: 1472593 | AT117: 27 | AU117: Environmental Affairs | AV117: 1325092 | AW117: 1411223 | AX117: 1472593 | DG117: Cooperative Governance And Traditional Affairs | DH117: Administration | DI117: 5 | DJ117: 18 | DK117: 18 | DL117: 0 | DM117: 18 | DN117: 5396 | DO117: 18 | DP117: 5612 | DQ117: 18 | DR117: 4210 | DS117: 18 | DT117: 4537 | DU117: 18 | DV117: 4800 | DW117: Cooperative Governance And Traditional Affairs|Administration | DX117: 004 | DY117: 001 | DZ117: 004001 | EC117: 323 | ED117: 1 | EE117: 2 | EF117: Parliament | EG117: 5 | EH117: Associated Services | EI117: 5 | EJ117: National Assembly Members’ Facilities | EK117: Current payments | EL117: Compensation of employees | EM117: Compensation of employees | EN117: 52009 | EO117: 54149 | EP117: 56386 | EQ117: 56386 | ER117: 56386 | ES117: 62000 | ET117: 67580 | EU117: 73662 | EW117: 0 | EX117: 0 | EY117: 67580 | EZ117: 73662 | FA117: 76412 | FB117: Parliament|Associated Services | FC117: 002 | FD117: 005 | FE117: 005 | FF117: 001 | FG117: 002005 | FH117: 002001 | FI117: 1 | FJ117: 002005005001 | FL117: 002005001 | FT117: 5 | FU117: Home Affairs | FV117: 3 | FW117: Immigration Affairs | FX117: 2 | FY117: Admission Services | GR117: National Treasury | GS117: 7 | GT117: Civil and Military Pensions, Contributions to Funds and Other Benefits | GU117: 3 | GV117: Military Pensions and Other Benefits | GW117: Non-statutory forces | GX117: Social benefits | GY117: NAT | GZ117: National Treasury|Civil and Military Pensions, Contributions to Funds and Other Benefits|Military Pensions and Other Benefits|Social benefits|Non-statutory forces|1 | HA117: 821411 | HB117: 866589 | HC117: 907823 | HD117: 162 | HE117: 0
Y118: 13 | AA118: 13 | AB118: 46 | AC118: Government Communication and Information System | AF118: Mokgatla Tema | AG118: (012) 315 5948 | AH118: Mokgatla.Tema@treasury.gov.za | AI118: Viwe Sobudula | AJ118: (0)12 315 5015 | AK118: Viwe.Sobudula@treasury.gov.za | AP118: 293800 | AQ118: 312897 | AR118: 324551 | AT118: 46 | AU118: Government Communication and Information System | AV118: 292037 | AW118: 311020 | AX118: 324551 | DG118: Cooperative Governance And Traditional Affairs | DH118: Administration | DI118: 6 | DJ118: 39 | DK118: 39 | DL118: 0 | DM118: 39 | DN118: 12118 | DO118: 39 | DP118: 12603 | DQ118: 35 | DR118: 11144 | DS118: 35 | DT118: 11746 | DU118: 35 | DV118: 12427 | DW118: Cooperative Governance And Traditional Affairs|Administration | DX118: 004 | DY118: 001 | DZ118: 004001 | EC118: 324 | ED118: 2 | EE118: 2 | EF118: Parliament | EG118: 5 | EH118: Associated Services | EI118: 5 | EJ118: National Assembly Members’ Facilities | EK118: Current payments | EL118: Goods and services | EM118: Goods and services | EN118: 143582 | EO118: 158406 | EP118: 169692 | EQ118: 169692 | ER118: 169692 | ES118: 133940 | ET118: 141976 | EU118: 150734 | EW118: 0 | EX118: 0 | EY118: 141976 | EZ118: 150734 | FA118: 156386 | FB118: Parliament|Associated Services | FC118: 002 | FD118: 005 | FE118: 005 | FF118: 002 | FG118: 002005 | FH118: 002002 | FI118: 2 | FJ118: 002005005002 | FL118: 002005002 | FT118: 5 | FU118: Home Affairs | FV118: 3 | FW118: Immigration Affairs | FX118: 3 | FY118: Immigration Services | GR118: National Treasury | GS118: 7 | GT118: Civil and Military Pensions, Contributions to Funds and Other Benefits | GU118: 3 | GV118: Military Pensions and Other Benefits | GW118: Other benefits: Ex-servicemen | GX118: Social benefits | GY118: NAT | GZ118: National Treasury|Civil and Military Pensions, Contributions to Funds and Other Benefits|Military Pensions and Other Benefits|Social benefits|Other benefits: Ex-servicemen|1 | HA118: 19910 | HB118: 21005 | HC118: 22004 | HD118: 171 | HE118: 0
Y119: 14 | AA119: 14 | AB119: 16 | AC119: Health | AF119: Refiloe Thokoa | AG119: (012) 395 6559 | AH119: Refiloe.thokoa@treasury.gov.za | AI119: Jonatan Daven | AJ119: (012) 315 6711 | AK119: Jonatan.Daven@treasury.gov.za | AP119: 946523 | AQ119: 1008210 | AR119: 1045786 | AT119: 16 | AU119: Health | AV119: 905784 | AW119: 958732 | AX119: 991153 | DG119: Cooperative Governance And Traditional Affairs | DH119: Administration | DI119: 7 | DJ119: 9 | DK119: 9 | DL119: 0 | DM119: 9 | DN119: 3217 | DO119: 9 | DP119: 3554 | DQ119: 13 | DR119: 4457 | DS119: 13 | DT119: 4698 | DU119: 13 | DV119: 4970 | DW119: Cooperative Governance And Traditional Affairs|Administration | DX119: 004 | DY119: 001 | DZ119: 004001 | EC119: 324 | ED119: 2 | EE119: 2 | EF119: Parliament | EG119: 5 | EH119: Associated Services | EI119: 6 | EJ119: National Council of Provinces Members’ Facilities | EK119: Current payments | EL119: Goods and services | EM119: Goods and services | EN119: 19087 | EO119: 32293 | EP119: 33282 | EQ119: 33282 | ER119: 33282 | ES119: 45143 | ET119: 47852 | EU119: 50484 | EW119: 0 | EX119: 0 | EY119: 47852 | EZ119: 50484 | FA119: 52361 | FB119: Parliament|Associated Services | FC119: 002 | FD119: 005 | FE119: 006 | FF119: 002 | FG119: 002005 | FH119: 002002 | FI119: 2 | FJ119: 002005006002 | FL119: 002005002 | FT119: 5 | FU119: Home Affairs | FV119: 3 | FW119: Immigration Affairs | FX119: 4 | FY119: Asylum Seekers | GR119: National Treasury | GS119: 7 | GT119: Civil and Military Pensions, Contributions to Funds and Other Benefits | GU119: 3 | GV119: Military Pensions and Other Benefits | GW119: South African citizen force | GX119: Social benefits | GY119: NAT | GZ119: National Treasury|Civil and Military Pensions, Contributions to Funds and Other Benefits|Military Pensions and Other Benefits|Social benefits|South African citizen force|1 | HA119: 217131 | HB119: 229073 | HC119: 239973 | HD119: 169 | HE119: 0
Y120: 15 | AA120: 15 | AB120: 15 | AC120: Higher Education and Training | AF120: Letsepa Pakkies | AG120: (012) 315 6656 | AH120: Letsepa.Pakkies@treasury.gov.za | AI120: Barileng Sape | AJ120: (012) 406 9069 | AK120: barileng.sape@treasury.gov.za | AP120: 10360520 | AQ120: 11033953 | AR120: 11444689 | AT120: 15 | AU120: Higher Education and Training | AV120: 10297060 | AW120: 10966185 | AX120: 11442844 | DG120: Cooperative Governance And Traditional Affairs | DH120: Administration | DI120: 8 | DJ120: 16 | DK120: 16 | DL120: 0 | DM120: 16 | DN120: 6614 | DO120: 16 | DP120: 6877 | DQ120: 25 | DR120: 9475 | DS120: 25 | DT120: 9997 | DU120: 25 | DV120: 10577 | DW120: Cooperative Governance And Traditional Affairs|Administration | DX120: 004 | DY120: 001 | DZ120: 004001 | EC120: 332 | ED120: 1 | EE120: 2 | EF120: Parliament | EG120: 16 | EH120: Direct charge against the National Revenue Fund | EI120: 1 | EJ120: Members' Remuneration | EK120: Current payments | EL120: Compensation of employees | EM120: Compensation of employees | EN120: 436488 | EO120: 556288 | EP120: 493161 | EQ120: 493161 | ER120: 493161 | ES120: 527518 | ET120: 507157 | EU120: 541048 | EW120: 0 | EX120: 0 | EY120: 507157 | EZ120: 541048 | FA120: 0 | FB120: Parliament|Direct charge against the National Revenue Fund | FC120: 002 | FD120: 016 | FE120: 001 | FF120: 001 | FG120: 002016 | FH120: 002001 | FI120: 1 | FJ120: 002016001001 | FL120: 002016001 | FT120: 6 | FU120: International Relations and Cooperation | FV120: 1 | FW120: Administration | FX120: 1 | FY120: Ministry | GR120: National Treasury | GS120: 8 | GT120: Technical Support and Development Finance | GU120: 2 | GV120: Local Government Financial Management Support | GW120: Local government financial management grant | GX120: Municipal bank accounts | GY120: LCG | GZ120: National Treasury|Technical Support and Development Finance|Local Government Financial Management Support|Municipal bank accounts|Local government financial management grant|1 | HA120: 561713 | HB120: 592607 | HC120: 614637 | HD120: 173 | HE120: 0
Y121: 16 | AA121: 16 | AB121: 5 | AC121: Home Affairs | AF121: Timothy Murwa | AG121: (012) 315 5002 | AH121: Timothy.Murwa@treasury.gov.za | AI121: Isaac Mabena | AJ121: (012) 315 5582 | AK121: Isaac.Mabena@treasury.gov.za | AP121: 3825890 | AQ121: 4074573 | AR121: 4226846 | AT121: 5 | AU121: Home Affairs | AV121: 3892935 | AW121: 4140126 | AX121: 4278846 | DG121: Cooperative Governance And Traditional Affairs | DH121: Administration | DI121: 9 | DJ121: 21 | DK121: 21 | DL121: 0 | DM121: 21 | DN121: 9541 | DO121: 21 | DP121: 9923 | DQ121: 35 | DR121: 13848 | DS121: 35 | DT121: 14696 | DU121: 35 | DV121: 15548 | DW121: Cooperative Governance And Traditional Affairs|Administration | DX121: 004 | DY121: 001 | DZ121: 004001 | EC121: 332 | ED121: 1 | EE121: 3 | EF121: Communications | EG121: 1 | EH121: Administration | EI121: 1 | EJ121: Ministry | EK121: Current payments | EL121: Compensation of employees | EM121: Compensation of employees | EN121: 4211 | EO121: 4391 | EP121: 6058 | EQ121: 4758 | ER121: 4158 | ES121: 2943 | ET121: 3215 | EU121: 3501 | EW121: 0 | EX121: 0 | EY121: 3215 | EZ121: 3501 | FA121: 3630 | FB121: Communications|Administration | FC121: 003 | FD121: 001 | FE121: 001 | FF121: 001 | FG121: 003001 | FH121: 003001 | FI121: 1 | FJ121: 003001001001 | FL121: 003001001 | FT121: 6 | FU121: International Relations and Cooperation | FV121: 1 | FW121: Administration | FX121: 2 | FY121: Departmental Management | GR121: National Treasury | GS121: 8 | GT121: Technical Support and Development Finance | GU121: 3 | GV121: Urban Development and Support | GW121: Integrated city development grant | GX121: Municipal bank accounts | GY121: LCG | GZ121: National Treasury|Technical Support and Development Finance|Urban Development and Support|Municipal bank accounts|Integrated city development grant|1 | HA121: 327319 | HB121: 351868 | HC121: 371949 | HD121: 147 | HE121: 0
Y122: 17 | AA122: 17 | AB122: 38 | AC122: Human Settlements | AF122: James Archer | AG122: (012) 395 6736 | AH122: James.Archer@treasury.gov.za | AI122: Lindiwe Ngcongwane | AJ122: (012) 315 5357 | AK122: Lindiwe.Ngcongwane@treasury.gov.za | AP122: 436107 | AQ122: 464454 | AR122: 481741 | AT122: 38 | AU122: Human Settlements | AV122: 433490 | AW122: 461667 | AX122: 481741 | CZ122: =+CQ122&CR122&CS122 ->  | DG122: Cooperative Governance And Traditional Affairs | DH122: Administration | DI122: 10 | DJ122: 0 | DK122: 0 | DL122: 0 | DM122: 0 | DN122: 0 | DO122: 0 | DP122: 0 | DQ122: 2 | DR122: 900 | DS122: 2 | DT122: 949 | DU122: 2 | DV122: 1004 | DW122: Cooperative Governance And Traditional Affairs|Administration | DX122: 004 | DY122: 001 | DZ122: 004001 | EC122: 332 | ED122: 2 | EE122: 3 | EF122: Communications | EG122: 1 | EH122: Administration | EI122: 1 | EJ122: Ministry | EK122: Current payments | EL122: Goods and services | EM122: Goods and services | EN122: 3097 | EO122: 4129 | EP122: 3959 | EQ122: 4969 | ER122: 4969 | ES122: 4180 | ET122: 4410 | EU122: 4653 | EW122: 0 | EX122: 0 | EY122: 4410 | EZ122: 4653 | FA122: 4827 | FB122: Communications|Administration | FC122: 003 | FD122: 001 | FE122: 001 | FF122: 002 | FG122: 003001 | FH122: 003002 | FI122: 2 | FJ122: 003001001002 | FL122: 003001002 | FT122: 6 | FU122: International Relations and Cooperation | FV122: 1 | FW122: Administration | FX122: 3 | FY122: Audit Services | GR122: National Treasury | GS122: 8 | GT122: Technical Support and Development Finance | GU122: 3 | GV122: Urban Development and Support | GW122: Neighbourhood development partnership grant | GX122: Municipal bank accounts | GY122: LCG | GZ122: National Treasury|Technical Support and Development Finance|Urban Development and Support|Municipal bank accounts|Neighbourhood development partnership grant|1 | HA122: 654936 | HB122: 704057 | HC122: 744238 | HD122: 157 | HE122: 0
Y123: 18 | AA123: 18 | AB123: 20 | AC123: Independent Police Investigative Directorate | AF123: Nompumelelo Radebe | AG123: (012) 315 5957 | AH123: Nompumelelo.Radebe@treasury.gov.za | AI123: Mmathapelo Maphangela | AJ123: (012) 406 9013 | AK123: Mmathapelo.Maphangela@treasury.gov.za | AP123: 246546 | AQ123: 262573 | AR123: 272347 | AT123: 20 | AU123: Independent Police Investigative Directorate | AV123: 245067 | AW123: 260998 | AX123: 272347 | DG123: Cooperative Governance And Traditional Affairs | DH123: Administration | DI123: 11 | DJ123: 46 | DK123: 46 | DL123: 0 | DM123: 46 | DN123: 20897 | DO123: 39 | DP123: 21105 | DQ123: 35 | DR123: 26931 | DS123: 35 | DT123: 28385 | DU123: 35 | DV123: 30031 | DW123: Cooperative Governance And Traditional Affairs|Administration | DX123: 004 | DY123: 001 | DZ123: 004001 | EC123: 333 | ED123: 57 | EE123: 3 | EF123: Communications | EG123: 1 | EH123: Administration | EI123: 1 | EJ123: Ministry | EK123: Payments for capital assets | EL123: Machinery and equipment | EM123: Other machinery and equipment | EN123: 0 | EO123: 30 | EP123: 0 | EQ123: 0 | ER123: 0 | ES123: 0 | ET123: 0 | EU123: 0 | EW123: 0 | EX123: 0 | EY123: 0 | EZ123: 0 | FA123: 0 | FB123: Communications|Administration | FC123: 003 | FD123: 001 | FE123: 001 | FF123: 057 | FG123: 003001 | FH123: 003057 | FI123: 57 | FJ123: 003001001057 | FL123: 003001057 | FT123: 6 | FU123: International Relations and Cooperation | FV123: 1 | FW123: Administration | FX123: 4 | FY123: Financial Management | GR123: National Treasury | GS123: 8 | GT123: Technical Support and Development Finance | GU123: 4 | GV123: Employment Creation Facilitation | GW123: Government Technical Advisory Centre | GX123: Departmental agencies (non-business entities) | GY123: NAT | GZ123: National Treasury|Technical Support and Development Finance|Employment Creation Facilitation|Departmental agencies (non-business entities)|Government Technical Advisory Centre|1 | HA123: 823769 | HB123: 894834 | HC123: 928229 | HD123: 175 | HE123: 0
Y124: 19 | AA124: 19 | AB124: 6 | AC124: International Relations and Cooperation | AF124: George Tembo | AG124: (012) 315 5514 | AH124: George.Tembo@treasury.gov.za | AI124: Mercy Mhlophe | AJ124: (012) 315 5598 | AK124: mercy.mhlope@treasury.gov.za | AP124: 3090080 | AQ124: 3290937 | AR124: 3413430 | AT124: 6 | AU124: International Relations and Cooperation | AV124: 3071540 | AW124: 3271191 | AX124: 3413430 | DG124: Cooperative Governance And Traditional Affairs | DH124: Administration | DI124: 12 | DJ124: 5 | DK124: 5 | DL124: 0 | DM124: 5 | DN124: 3106 | DO124: 5 | DP124: 3230 | DQ124: 8 | DR124: 6529 | DS124: 8 | DT124: 6982 | DU124: 8 | DV124: 7387 | DW124: Cooperative Governance And Traditional Affairs|Administration | DX124: 004 | DY124: 001 | DZ124: 004001 | EC124: 333 | ED124: 56 | EE124: 3 | EF124: Communications | EG124: 1 | EH124: Administration | EI124: 1 | EJ124: Ministry | EK124: Payments for capital assets | EL124: Machinery and equipment | EM124: Transport equipment | EN124: 1065 | EO124: 1505 | EP124: 0 | EQ124: 0 | ER124: 0 | ES124: 0 | ET124: 0 | EU124: 0 | EW124: 0 | EX124: 0 | EY124: 0 | EZ124: 0 | FA124: 0 | FB124: Communications|Administration | FC124: 003 | FD124: 001 | FE124: 001 | FF124: 056 | FG124: 003001 | FH124: 003056 | FI124: 56 | FJ124: 003001001056 | FL124: 003001056 | FT124: 6 | FU124: International Relations and Cooperation | FV124: 1 | FW124: Administration | FX124: 5 | FY124: Corporate Services | GR124: National Treasury | GS124: 8 | GT124: Technical Support and Development Finance | GU124: 5 | GV124: Government Technical Advisory Centre | GW124: Government Technical Advisory Centre | GX124: Departmental agencies (non-business entities) | GY124: NAT | GZ124: National Treasury|Technical Support and Development Finance|Government Technical Advisory Centre|Departmental agencies (non-business entities)|Government Technical Advisory Centre|1 | HA124: 51467 | HB124: 54299 | HC124: 56318 | HD124: 179 | HE124: 0
Y125: 20 | AA125: 20 | AB125: 21 | AC125: Justice and Constitutional Development | AF125: Werner Krause | AG125: (012) 315 5211 | AH125: werner.krause@treasury.gov.za | AI125: Maggy Mokoka | AJ125: (012) 315 5468 | AK125: Maggy.Mokoka@treasury.gov.za | AP125: 12758064 | AQ125: 13587340 | AR125: 14093115 | AT125: 21 | AU125: Justice and Constitutional Development | AV125: 12937295 | AW125: 13811619 | AX125: 14417877 | DG125: Cooperative Governance And Traditional Affairs | DH125: Administration | DI125: 13 | DJ125: 29 | DK125: 29 | DL125: 0 | DM125: 29 | DN125: 25290 | DO125: 29 | DP125: 26351 | DQ125: 36 | DR125: 30688 | DS125: 36 | DT125: 32455 | DU125: 36 | DV125: 34337 | DW125: Cooperative Governance And Traditional Affairs|Administration | DX125: 004 | DY125: 001 | DZ125: 004001 | EC125: 333 | ED125: 63 | EE125: 3 | EF125: Communications | EG125: 1 | EH125: Administration | EI125: 1 | EJ125: Ministry | EK125: Payments for financial assets | EL125: Payments for financial assets | EM125: Payments for financial assets | EN125: 3 | EO125: 11 | EP125: 0 | EQ125: 0 | ER125: 0 | ES125: 0 | ET125: 0 | EU125: 0 | EW125: 0 | EX125: 0 | EY125: 0 | EZ125: 0 | FA125: 0 | FB125: Communications|Administration | FC125: 003 | FD125: 001 | FE125: 001 | FF125: 063 | FG125: 003001 | FH125: 003063 | FI125: 63 | FJ125: 003001001063 | FL125: 003001063 | FT125: 6 | FU125: International Relations and Cooperation | FV125: 1 | FW125: Administration | FX125: 6 | FY125: Diplomatic Training, Research and Development | GR125: National Treasury | GS125: 8 | GT125: Technical Support and Development Finance | GU125: 6 | GV125: Infrastructure Development Support | GW125: Infrastructure skills development grant | GX125: Municipal bank accounts | GY125: LCG | GZ125: National Treasury|Technical Support and Development Finance|Infrastructure Development Support|Municipal bank accounts|Infrastructure skills development grant|1 | HA125: 157930 | HB125: 166616 | HC125: 172809 | HD125: 158 | HE125: 0
... 124 more rows

Sheet Help
C3: Content (Click on topic to view) | D3: =" "&Indi1 -> Analysis, Infrastructure, ODA, Deviations, Expenditure Trends | Q3: =COUNTA(R5:R17) -> 13 | R3: Total number of DescriptBox
Q4: 9 | R4: =CHOOSE(Q4,R5,R6,R7,R8,R9,R10,R11,R12,R13,R14,R15,R16,R17) -> Analysis, Infrastructure, ODA, Deviations, Expenditure Trends
C5: 1. | Q5: 1 | R5: Introduction
Q6: 2 | R6: General workings
Q7: 3 | R7: Settings
C8: 2. | Q8: 4 | R8: Cover sheet
Q9: 5 | R9: Summary sheet
Q10: 6 | R10: Programme sheets
C11: 3. | Q11: 7 | R11: Grants Admin, Budget Tracking, Function Shifts, Performance Indicators
Q12: 8 | R12: Personnel, Receipts
Q13: 9 | R13: Analysis, Infrastructure, ODA, Deviations, Expenditure Trends
C14: 4. | Q14: 10 | R14: Department Information, Training, PPP Projects & Checks
Q15: 11 | R15: Transfers & subsidies
Q16: 12 | R16: Glossary
C17: 5. | Q17: 13 | R17: Glossary -part2
C20: 6.
C23: 7.
C27: 8.
C29: 9.
C33: 10.
C35: 11.

Sheet Settings (hidden)
A1: ENE
A2: 2
A3: 2
A5: =IF($A$4=TRUE,"FALSE",IF($A$3=1,"TRUE","FALSE")) -> FALSE
I11: ECONOMIC CLASSIFICATION
I12: Type "Y" to show, "N" to hide (Controls unused classification rows to be hidden across the database) | R12: Check: Hidden values assigned
I13: =SUMPRODUCT(Summary!$I$59:$AU$141*(Summary!$F$59:$F$141=Settings!$K13)) -> 110882831 | J13: y | K13: Current payments | R13: =IF(AND(J13<>"y",I13<>0),"Incorrectly hidden Row, revise settings", "") -> 
I14: =SUMPRODUCT(Summary!$I$59:$AU$141*(Summary!$F$59:$F$141=Settings!$K14)) -> 59937318 | J14: y | K14: Compensation of employees
I15: =SUMPRODUCT(Summary!$I$59:$AU$141*(Summary!$F$59:$F$141=Settings!$K15)) -> 50331942 | J15: y | K15: Salaries and wages
I16: =SUMPRODUCT(Summary!$I$59:$AU$141*(Summary!$F$59:$F$141=Settings!$K16)) -> 9605376 | J16: y | K16: Social contributions
I17: =SUMPRODUCT(Summary!$I$59:$AU$141*(Summary!$F$59:$F$141=Settings!$K17)) -> 50945513 | J17: y | K17: Goods and services
I18: =SUMPRODUCT(Summary!$I$59:$AU$141*(Summary!$F$59:$F$141=Settings!$K18)) -> 369166 | J18: y | K18: Administrative fees
I19: =SUMPRODUCT(Summary!$I$59:$AU$141*(Summary!$F$59:$F$141=Settings!$K19)) -> 149920 | J19: y | K19: Advertising
I20: =SUMPRODUCT(Summary!$I$59:$AU$141*(Summary!$F$59:$F$141=Settings!$K20)) -> 2362145 | J20: y | K20: Minor assets
I21: =SUMPRODUCT(Summary!$I$59:$AU$141*(Summary!$F$59:$F$141=Settings!$K21)) -> 569756 | J21: y | K21: Audit costs: External | R21: =IF(AND(J21<>"y",I21<>0),"Incorrectly hidden Row, revise settings", "") -> 
I22: =SUMPRODUCT(Summary!$I$59:$AU$141*(Summary!$F$59:$F$141=Settings!$K22)) -> 59571 | J22: y | K22: Bursaries: Employees
I23: =SUMPRODUCT(Summary!$I$59:$AU$141*(Summary!$F$59:$F$141=Settings!$K23)) -> 76066 | J23: y | K23: Catering: Departmental activities
I24: =SUMPRODUCT(Summary!$I$59:$AU$141*(Summary!$F$59:$F$141=Settings!$K24)) -> 1661141 | J24: y | K24: Communication (G&S)
I25: =SUMPRODUCT(Summary!$I$59:$AU$141*(Summary!$F$59:$F$141=Settings!$K25)) -> 11809662 | J25: y | K25: Computer services
I26: =SUMPRODUCT(Summary!$I$59:$AU$141*(Summary!$F$59:$F$141=Settings!$K26)) -> 638690 | J26: y | K26: Consultants: Business and advisory services
I27: =SUMPRODUCT(Summary!$I$59:$AU$141*(Summary!$F$59:$F$141=Settings!$K27)) -> 0 | J27: y | K27: Infrastructure and planning services
I28: =SUMPRODUCT(Summary!$I$59:$AU$141*(Summary!$F$59:$F$141=Settings!$K28)) -> 0 | J28: y | K28: Laboratory services
I29: =SUMPRODUCT(Summary!$I$59:$AU$141*(Summary!$F$59:$F$141=Settings!$K29)) -> 1016446 | J29: y | K29: Legal services (G&S)
I30: =SUMPRODUCT(Summary!$I$59:$AU$141*(Summary!$F$59:$F$141=Settings!$K30)) -> 0 | J30: y | K30: Science and technological services
I31: =SUMPRODUCT(Summary!$I$59:$AU$141*(Summary!$F$59:$F$141=Settings!$K31)) -> 5224573 | J31: y | K31: Contractors
I32: =SUMPRODUCT(Summary!$I$59:$AU$141*(Summary!$F$59:$F$141=Settings!$K32)) -> 1855854 | J32: y | K32: Agency and support/outsourced services
I33: =SUMPRODUCT(Summary!$I$59:$AU$141*(Summary!$F$59:$F$141=Settings!$K33)) -> 7102 | J33: y | K33: Entertainment
I34: =SUMPRODUCT(Summary!$I$59:$AU$141*(Summary!$F$59:$F$141=Settings!$K34)) -> 1580324 | J34: y | K34: Fleet services (including government motor transport)
J35: y | K35: Housing
J36: y | K36: Inventory: Clothing material and accessories
J37: y | K37: Inventory: Farming supplies
I38: =SUMPRODUCT(Summary!$I$59:$AU$141*(Summary!$F$59:$F$141=Settings!$K38)) -> 0 | J38: y | K38: Inventory: Food and food supplies
I39: =SUMPRODUCT(Summary!$I$59:$AU$141*(Summary!$F$59:$F$141=Settings!$K39)) -> 0 | J39: y | K39: Inventory: Fuel, oil and gas
I40: =SUMPRODUCT(Summary!$I$59:$AU$141*(Summary!$F$59:$F$141=Settings!$K40)) -> 0 | J40: y | K40: Inventory: Learner and teacher support material
I41: =SUMPRODUCT(Summary!$I$59:$AU$141*(Summary!$F$59:$F$141=Settings!$K41)) -> 0 | J41: y | K41: Inventory: Materials and supplies
I42: =SUMPRODUCT(Summary!$I$59:$AU$141*(Summary!$F$59:$F$141=Settings!$K42)) -> 0 | J42: y | K42: Inventory: Medical supplies
I43: =SUMPRODUCT(Summary!$I$59:$AU$141*(Summary!$F$59:$F$141=Settings!$K43)) -> 0 | J43: y | K43: Inventory: Medicine
I44: =SUMPRODUCT(Summary!$I$59:$AU$141*(Summary!$F$59:$F$141=Settings!$K44)) -> 0 | J44: y | K44: Medsas inventory interface
I45: =SUMPRODUCT(Summary!$I$59:$AU$141*(Summary!$F$59:$F$141=Settings!$K45)) -> 16176 | J45: y | K45: Inventory: Other supplies
I46: =SUMPRODUCT(Summary!$I$59:$AU$141*(Summary!$F$59:$F$141=Settings!$K46)) -> 235384 | J46: y | K46: Consumable supplies
I47: =SUMPRODUCT(Summary!$I$59:$AU$141*(Summary!$F$59:$F$141=Settings!$K47)) -> 7041124 | J47: y | K47: Consumables: Stationery, printing and office supplies
I48: =SUMPRODUCT(Summary!$I$59:$AU$141*(Summary!$F$59:$F$141=Settings!$K48)) -> 7492287 | J48: y | K48: Operating leases
I49: =SUMPRODUCT(Summary!$I$59:$AU$141*(Summary!$F$59:$F$141=Settings!$K49)) -> 5487 | J49: y | K49: Rental and hiring
I50: =SUMPRODUCT(Summary!$I$59:$AU$141*(Summary!$F$59:$F$141=Settings!$K50)) -> 4137939 | J50: y | K50: Property payments
I51: =SUMPRODUCT(Summary!$I$59:$AU$141*(Summary!$F$59:$F$141=Settings!$K51)) -> 245867 | J51: y | K51: Transport provided: Departmental activity
I52: =SUMPRODUCT(Summary!$I$59:$AU$141*(Summary!$F$59:$F$141=Settings!$K52)) -> 3192607 | J52: y | K52: Travel and subsistence
I53: =SUMPRODUCT(Summary!$I$59:$AU$141*(Summary!$F$59:$F$141=Settings!$K53)) -> 93331 | J53: y | K53: Training and development
I54: =SUMPRODUCT(Summary!$I$59:$AU$141*(Summary!$F$59:$F$141=Settings!$K54)) -> 546422 | J54: y | K54: Operating payments
I55: =SUMPRODUCT(Summary!$I$59:$AU$141*(Summary!$F$59:$F$141=Settings!$K55)) -> 201166 | J55: y | K55: Venues and facilities
I56: =SUMPRODUCT(Summary!$I$59:$AU$141*(Summary!$F$59:$F$141=Settings!$K56)) -> 0 | J56: y | K56: Interest and rent on land
I57: =SUMPRODUCT(Summary!$I$59:$AU$141*(Summary!$F$59:$F$141=Settings!$K57)) -> 0 | J57: y | K57: Interest (Incl. interest on unitary payments (PPP))
I58: =SUMPRODUCT(Summary!$I$59:$AU$141*(Summary!$F$59:$F$141=Settings!$K58)) -> 0 | J58: y | K58: Rent on land
I59: =SUMPRODUCT(Summary!$I$59:$AU$141*(Summary!$F$59:$F$141=Settings!$K59)) -> 36366107 | J59: y | K59: Transfers and subsidies
I60: =SUMPRODUCT(Summary!$I$59:$AU$141*(Summary!$F$59:$F$141=Settings!$K60)) -> 31611 | J60: y | K60: Provinces and municipalities
I61: =SUMPRODUCT(Summary!$I$59:$AU$141*(Summary!$F$59:$F$141=Settings!$K61)) -> 0 | J61: y | K61: Provinces
I62: =SUMPRODUCT(Summary!$I$59:$AU$141*(Summary!$F$59:$F$141=Settings!$K62)) -> 0 | J62: y | K62: Provincial Revenue Funds
I63: =SUMPRODUCT(Summary!$I$59:$AU$141*(Summary!$F$59:$F$141=Settings!$K63)) -> 0 | J63: y | K63: Provincial agencies and funds
I64: =SUMPRODUCT(Summary!$I$59:$AU$141*(Summary!$F$59:$F$141=Settings!$K64)) -> 31611 | J64: y | K64: Municipalities
I65: =SUMPRODUCT(Summary!$I$59:$AU$141*(Summary!$F$59:$F$141=Settings!$K65)) -> 31611 | J65: y | K65: Municipal bank accounts
I66: =SUMPRODUCT(Summary!$I$59:$AU$141*(Summary!$F$59:$F$141=Settings!$K66)) -> 0 | J66: y | K66: Municipal agencies and funds
I67: =SUMPRODUCT(Summary!$I$59:$AU$141*(Summary!$F$59:$F$141=Settings!$K67)) -> 36241021 | J67: y | K67: Departmental agencies and accounts
I68: =SUMPRODUCT(Summary!$I$59:$AU$141*(Summary!$F$59:$F$141=Settings!$K68)) -> 0 | J68: y | K68: Social security funds
I69: =SUMPRODUCT(Summary!$I$59:$AU$141*(Summary!$F$59:$F$141=Settings!$K69)) -> 36241021 | J69: y | K69: Departmental agencies (non-business entities)
I70: =SUMPRODUCT(Summary!$I$59:$AU$141*(Summary!$F$59:$F$141=Settings!$K70)) -> 0 | J70: y | K70: Higher education institutions
I71: =SUMPRODUCT(Summary!$I$59:$AU$141*(Summary!$F$59:$F$141=Settings!$K71)) -> 0 | J71: y | K71: Foreign governments and international organisations
I72: =SUMPRODUCT(Summary!$I$59:$AU$141*(Summary!$F$59:$F$141=Settings!$K72)) -> 0 | J72: y | K72: Public corporations and private enterprises
I73: =SUMPRODUCT(Summary!$I$59:$AU$141*(Summary!$F$59:$F$141=Settings!$K73)) -> 0 | J73: y | K73: Public corporations
I74: =SUMPRODUCT(Summary!$I$59:$AU$141*(Summary!$F$59:$F$141=Settings!$K74)) -> 0 | J74: y | K74: Subsidies on products and production (pc)
I75: =SUMPRODUCT(Summary!$I$59:$AU$141*(Summary!$F$59:$F$141=Settings!$K75)) -> 0 | J75: y | K75: Other transfers to public corporations
I76: =SUMPRODUCT(Summary!$I$59:$AU$141*(Summary!$F$59:$F$141=Settings!$K76)) -> 0 | J76: y | K76: Private enterprises
I77: =SUMPRODUCT(Summary!$I$59:$AU$141*(Summary!$F$59:$F$141=Settings!$K77)) -> 0 | J77: y | K77: Subsidies on products and production (pe)
I78: =SUMPRODUCT(Summary!$I$59:$AU$141*(Summary!$F$59:$F$141=Settings!$K78)) -> 0 | J78: y | K78: Other transfers to private enterprises
I79: =SUMPRODUCT(Summary!$I$59:$AU$141*(Summary!$F$59:$F$141=Settings!$K79)) -> 0 | J79: y | K79: Non-profit institutions | R79: =IF(AND(J79<>"y",I79<>0),"Incorrectly hidden Row, revise settings", "") -> 
I80: =SUMPRODUCT(Summary!$I$59:$AU$141*(Summary!$F$59:$F$141=Settings!$K80)) -> 93475 | J80: y | K80: Households
I81: =SUMPRODUCT(Summary!$I$59:$AU$141*(Summary!$F$59:$F$141=Settings!$K81)) -> 92207 | J81: y | K81: Social benefits
I82: =SUMPRODUCT(Summary!$I$59:$AU$141*(Summary!$F$59:$F$141=Settings!$K82)) -> 1268 | J82: y | K82: Other transfers to households
I83: =SUMPRODUCT(Summary!$I$59:$AU$141*(Summary!$F$59:$F$141=Settings!$K83)) -> 964513 | J83: y | K83: Payments for capital assets
I84: =SUMPRODUCT(Summary!$I$59:$AU$141*(Summary!$F$59:$F$141=Settings!$K84)) -> 173539 | J84: y | K84: Buildings and other fixed structures
I85: =SUMPRODUCT(Summary!$I$59:$AU$141*(Summary!$F$59:$F$141=Settings!$K85)) -> 173536 | J85: y | K85: Buildings
I86: =SUMPRODUCT(Summary!$I$59:$AU$141*(Summary!$F$59:$F$141=Settings!$K86)) -> 3 | J86: y | K86: Other fixed structures
I87: =SUMPRODUCT(Summary!$I$59:$AU$141*(Summary!$F$59:$F$141=Settings!$K87)) -> 587570 | J87: y | K87: Machinery and equipment
I88: =SUMPRODUCT(Summary!$I$59:$AU$141*(Summary!$F$59:$F$141=Settings!$K88)) -> 213431 | J88: y | K88: Transport equipment
I89: =SUMPRODUCT(Summary!$I$59:$AU$141*(Summary!$F$59:$F$141=Settings!$K89)) -> 374139 | J89: y | K89: Other machinery and equipment
I90: =SUMPRODUCT(Summary!$I$59:$AU$141*(Summary!$F$59:$F$141=Settings!$K90)) -> 0 | J90: y | K90: Heritage assets
I91: =SUMPRODUCT(Summary!$I$59:$AU$141*(Summary!$F$59:$F$141=Settings!$K91)) -> 0 | J91: y | K91: Specialised military assets
I92: =SUMPRODUCT(Summary!$I$59:$AU$141*(Summary!$F$59:$F$141=Settings!$K92)) -> 0 | J92: y | K92: Biological assets
I93: =SUMPRODUCT(Summary!$I$59:$AU$141*(Summary!$F$59:$F$141=Settings!$K93)) -> 0 | J93: y | K93: Land and sub-soil assets
I94: =SUMPRODUCT(Summary!$I$59:$AU$141*(Summary!$F$59:$F$141=Settings!$K94)) -> 203404 | J94: y | K94: Software and other intangible assets
I95: =SUMPRODUCT(Summary!$I$59:$AU$141*(Summary!$F$59:$F$141=Settings!$K95)) -> 0 | J95: y | K95: Payments for financial assets
R96: =COUNTBLANK(R13:R95) -> 83
C1313: View Selection: MTEC / ENE
C1314: View dependent on current process for which template is in use

Sheet Summary
A1: A | B1: B | C1: C | D1: D | E1: E | F1: F | G1: G | I1: H | J1: I | K1: J | L1: K | M1: L | N1: M | O1: N | P1: O | Q1: P | R1: Q | T1: R | U1: S | V1: T | W1: W | X1: X | AA1: Y | AB1: Z | AC1: AA | AD1: AB | AE1: AC | AF1: AF | AG1: AG | AJ1: AH | AK1: AI | AL1: AJ | AM1: AK | AN1: AL
A3: P's created | B3: =COUNTIF(B31:B45,"<>0") -> 3 | BK3: SheetList
A4: P's listed | B4: =COUNTIF(C31:C45,"<>0") -> 3 | BK4: 1
A5: P'Var | B5: =B4-B3 -> 0 | F5: =IF(G5="","",IF($B$5>0,"No. of programme units to create","No. of programme units to delete")) ->  | G5: =IF(B4-B3=0,"",IF(B4-B3<0,B3-B4,B4-B3)) ->  | BK5: 2
A6: Check | B6: =B4-MAX(B31:B45) -> 0 | F6: Vote no. | G6: =MyVoteNo -> 5 | BK6: 3
A7: Check2 | B7: =MAX(D58:D61) -> 0 | F7: Department name: | G7: =MyDeptName -> Home Affairs | BK7: 4
A8: 1 | F8: Executive Authority: | G8: DR SIYABONGA CWELE | BK8: 5
F9: Accounting Officer: | G9: BT MAVUSO | BK9: 6
BK10: 7
F11: Purpose: | BK11: 8
F12: Efficiently determine and safeguard the identity and status of citizens. Regulate immigration to ensure security, promote development and fulfil South Africa’s international obligations. | BK12: 9
BK13: 10
A14: 1 | I14: =MyYearP1 -> 2020/21 | J14: =MyYearP2 -> 2021/22 | K14: =MyYearP3 -> 2022/23 | BK14: 11
A15: 1 | F15: Departmental Realigned Indicative Baseline | I15: =IndiBL1 -> 8743497 | J15: =IndiBL2 -> 9612736 | K15: =IndiBL3 -> 9973857 | BK15: 12
A16: 1 | F16: Variance (Departmental Realigned Indicative Baseline less Input) | I16: =I15-Y54 -> 0 | J16: =J15-AH54 -> 0 | K16: =K15-AQ54 -> -1 | BK16: 13
A17: 1 | F17: Revised departmental baseline | I17: =+Cover!$AV$23 -> 8774629 | J17: =+Cover!$AW$23 -> 9659936 | K17: =+Cover!$AX$23 -> 10041490 | BK17: 14
A18: 1 | F18: Variance (Revised departmental baseline less Input) | I18: =I17-AB54 -> 31132 | J18: =J17-AK54 -> 47200 | K18: =K17-AT54 -> 67632 | BK18: 15
A19: 1 | F19: Compensation of employees Indicative Baseline | I19: =+Cover!$AP$104 -> 3825890 | J19: =+Cover!$AQ$104 -> 4074573 | K19: =+Cover!$AR$104 -> 4226846 | BK19: Direct_charges
A20: 1 | F20: Variance (Personnel budget indicative baseline less Input) | I20: =I19-SUM('1:Direct_charges'!$U$75) -> 0 | J20: =J19-SUM('1:Direct_charges'!$AD$75) -> 0 | K20: =K19-SUM('1:Direct_charges'!$AM$75) -> 0
A21: 1 | F21: Compensation of employees ceiling (Revised baseline) | I21: =+Cover!$AV$104 -> 3892935 | J21: =+Cover!$AW$104 -> 4140126 | K21: =+Cover!$AX$104 -> 4278846
A22: 1 | F22: Variance (Revised personnel budget less Input) | I22: =I21-SUM('1:Direct_charges'!$AB$75) -> 67045 | J22: =J21-SUM('1:Direct_charges'!$AK$75) -> 65553 | K22: =K21-SUM('1:Direct_charges'!$AT$75) -> 52000
A23: 1
A24: 1
A25: 1 | AE25: =IF(AND(-$AE$46<(Reprioritisation!$AA$10*$AD$46),$AE$46<>0),"You have not reached the required 3% of baseline realignment","") ->  | AN25: =IF(AND(-$AN$46<(Reprioritisation!$AB$10*$AM$46),$AN$46<>0),"You have not reached the required 5% of baseline realignment","") -> 
A26: 1 | F26: =IF(COUNTIF(I154:AU154,">0.5")+COUNTIF(I154:AU154,"<-0.49999")<>0,"Inconsistencies in programmes sheets","") ->  | I26: =MyYearM3 -> 2016/17 | J26: =MyYearM2 -> 2017/18 | K26: =MyYearM1 -> 2018/19 | M26: =MyYear0 -> 2019/20 | U26: =MyYearP1 -> 2020/21 | AD26: =MyYearP2 -> 2021/22 | AM26: =MyYearP3 -> 2022/23 | AW26: =MyYear0 -> 2019/20
A27: 1 | F27: =IF(COUNTIF(I152:AU152,">0.5")+COUNTIF(I152:AU152,"<-0.49999")<>0,"Inconsistencies between programmes and economic classification","") ->  | I27: Audited outcome | J27: Audited outcome | K27: Adjusted Appropriation | L27: =IF(Settings!$A$3=2,"Audited outcome","Audited outcome") -> Audited outcome | M27: Voted (Main appropriation) | N27: Adjustments | R27: Adjusted Appropriation | S27: Estimated under / (over) spending | T27: Revised Estimate | U27: Indicative baseline | V27: Indicative baseline realignment | Y27: Realigned indicative baseline | Z27: Budget reduction | AA27: Budget increase | AB27: Revised Baseline | AC27: Total change from indicative baseline | AD27: Indicative baseline | AE27: Indicative baseline realignment | AH27: Realigned indicative baseline | AI27: Budget reduction | AJ27: Budget increase | AK27: Revised Baseline | AL27: Total change from indicative baseline | AM27: Planning baseline | AN27: Total planning baseline realignment | AQ27: Realigned planning baseline | AR27: Budget reduction | AS27: Budget increase | AT27: Revised Baseline | AU27: Total change from planning baseline | AW27: Reasons for under/ (over) spending [Amounts in Column S]
A28: 1 | F28: =IF(COUNTBLANK(Settings!R13:R95)<>83,"Economic Classification hidden row, revise settings", "") ->  | V28: Realignment | X28: Total Indicative baseline realignment | AE28: Realignment | AG28: Total Indicative baseline realignment | AN28: Realignment | AP28: Total planning baseline realignment
A29: 1 | C29: =SUM(C58:C61) -> 0 | F29: Rand thousand | N29: Roll-overs | O29: Unforeseeable/ unavoidable | P29: Virement | Q29: Other adjustments | V29: From | W29: To | AE29: From | AF29: To | AN29: From | AO29: To
A30: 1 | B30: Sht format | C30: Name | F30: Programmes
A31: 1 | B31: =IF('1'!$F$6<>"",E31,0) -> 1 | C31: =IF(LEN(F31)>2,1,0) -> 1 | D31: =IF(OR(AND(B31=0,C31<>0),AND(B31<>0,C31=0)),1,0) -> 0 | E31: 1 | F31: Administration | G31: =IF(AND(F31="",COUNTA(F31:F$45)>0),"Please fill Subprogrammes from the top","") ->  | I31: =IF(ISERROR('1'!I$72),0,'1'!I$72) -> 2210834 | J31: =IF(ISERROR('1'!J$72),0,'1'!J$72) -> 2516219 | K31: =IF(ISERROR('1'!K$72),0,'1'!K$72) -> 2525133 | L31: =IF(ISERROR('1'!L$72),0,'1'!L$72) -> 2525131 | M31: =IF(ISERROR('1'!M$72),0,'1'!M$72) -> 2340209 | N31: =IF(ISERROR('1'!N$72),0,'1'!N$72) -> 0 | O31: =IF(ISERROR('1'!O$72),0,'1'!O$72) -> 0 | P31: =IF(ISERROR('1'!P$72),0,'1'!P$72) -> 0 | Q31: =IF(ISERROR('1'!Q$72),0,'1'!Q$72) -> 200300 | R31: =IF(ISERROR('1'!R$72),0,'1'!R$72) -> 2540509 | S31: =IF(ISERROR('1'!S$72),0,'1'!S$72) -> 0 | T31: =IF(ISERROR('1'!T$72),0,'1'!T$72) -> 2540509 | U31: =IF(ISERROR('1'!U$72),0,'1'!U$72) -> 2490450 | V31: =IF(ISERROR('1'!V$72),0,'1'!V$72) -> 0 | W31: =IF(ISERROR('1'!W$72),0,'1'!W$72) -> 0 | X31: =SUM(V31:W31) -> 0 | Y31: =U31+X31 -> 2490450 | Z31: =IF(ISERROR('1'!Z$72),0,'1'!Z$72) -> 0 | AA31: =IF(ISERROR('1'!AA$72),0,'1'!AA$72) -> 0 | AB31: =IF(ISERROR('1'!AB$72),0,'1'!AB$72) -> 2490450 | AC31: =IF(ISERROR('1'!AC$72),0,'1'!AC$72) -> 0 | AD31: =IF(ISERROR('1'!AD$72),0,'1'!AD$72) -> 2694529 | AE31: =IF(ISERROR('1'!AE$72),0,'1'!AE$72) -> 0 | AF31: =IF(ISERROR('1'!AF$72),0,'1'!AF$72) -> 0 | AG31: =SUM(AE31:AF31) -> 0 | AH31: =AD31+AG31 -> 2694529 | AI31: =IF(ISERROR('1'!AI$72),0,'1'!AI$72) -> 0 | AJ31: =IF(ISERROR('1'!AJ$72),0,'1'!AJ$72) -> 0 | AK31: =IF(ISERROR('1'!AK$72),0,'1'!AK$72) -> 2694529 | AL31: =IF(ISERROR('1'!AL$72),0,'1'!AL$72) -> 0 | AM31: =IF(ISERROR('1'!AM$72),0,'1'!AM$72) -> 2795852 | AN31: =IF(ISERROR('1'!AN$72),0,'1'!AN$72) -> 0 | AO31: =IF(ISERROR('1'!AO$72),0,'1'!AO$72) -> 0 | AP31: =SUM(AN31:AO31) -> 0 | AQ31: =AM31+AP31 -> 2795852 | AR31: =IF(ISERROR('1'!AR$72),0,'1'!AR$72) -> 0 | AS31: =IF(ISERROR('1'!AS$72),0,'1'!AS$72) -> 0 | AT31: =IF(ISERROR('1'!AT$72),0,'1'!AT$72) -> 2795852 | AU31: =IF(ISERROR('1'!AU$72),0,'1'!AU$72) -> 0
A32: =COUNTIF(I32:AU32,"<>0")+IF(LEN(F32)>2,1,0) -> 18 | B32: =IF('2'!$F$6<>"",E32,0) -> 2 | C32: =IF(LEN(F32)>2,1,0) -> 1 | D32: =IF(OR(AND(B32=0,C32<>0),AND(B32<>0,C32=0)),1,0) -> 0 | E32: 2 | F32: Citizen Affairs | G32: =IF(AND(F32="",COUNTA(F32:F$45)>0),"Please fill Subprogrammes from the top","") ->  | I32: =IF(ISERROR('2'!I$72),0,'2'!I$72) -> 4786988 | J32: =IF(ISERROR('2'!J$72),0,'2'!J$72) -> 4686985 | K32: =IF(ISERROR('2'!K$72),0,'2'!K$72) -> 5448697 | L32: =IF(ISERROR('2'!L$72),0,'2'!L$72) -> 5448688 | M32: =IF(ISERROR('2'!M$72),0,'2'!M$72) -> 4736729 | N32: =IF(ISERROR('2'!N$72),0,'2'!N$72) -> 0 | O32: =IF(ISERROR('2'!O$72),0,'2'!O$72) -> 0 | P32: =IF(ISERROR('2'!P$72),0,'2'!P$72) -> 0 | Q32: =IF(ISERROR('2'!Q$72),0,'2'!Q$72) -> 956200 | R32: =IF(ISERROR('2'!R$72),0,'2'!R$72) -> 5692929 | S32: =IF(ISERROR('2'!S$72),0,'2'!S$72) -> 0 | T32: =IF(ISERROR('2'!T$72),0,'2'!T$72) -> 5692929 | U32: =IF(ISERROR('2'!U$72),0,'2'!U$72) -> 4922421 | V32: =IF(ISERROR('2'!V$72),0,'2'!V$72) -> 0 | W32: =IF(ISERROR('2'!W$72),0,'2'!W$72) -> 0 | X32: =SUM(V32:W32) -> 0 | Y32: =U32+X32 -> 4922421 | Z32: =IF(ISERROR('2'!Z$72),0,'2'!Z$72) -> 0 | AA32: =IF(ISERROR('2'!AA$72),0,'2'!AA$72) -> 0 | AB32: =IF(ISERROR('2'!AB$72),0,'2'!AB$72) -> 4922421 | AC32: =IF(ISERROR('2'!AC$72),0,'2'!AC$72) -> 0 | AD32: =IF(ISERROR('2'!AD$72),0,'2'!AD$72) -> 5535076 | AE32: =IF(ISERROR('2'!AE$72),0,'2'!AE$72) -> 0 | AF32: =IF(ISERROR('2'!AF$72),0,'2'!AF$72) -> 0 | AG32: =SUM(AE32:AF32) -> 0 | AH32: =AD32+AG32 -> 5535076 | AI32: =IF(ISERROR('2'!AI$72),0,'2'!AI$72) -> 0 | AJ32: =IF(ISERROR('2'!AJ$72),0,'2'!AJ$72) -> 0 | AK32: =IF(ISERROR('2'!AK$72),0,'2'!AK$72) -> 5535076 | AL32: =IF(ISERROR('2'!AL$72),0,'2'!AL$72) -> 0 | AM32: =IF(ISERROR('2'!AM$72),0,'2'!AM$72) -> 5742600 | AN32: =IF(ISERROR('2'!AN$72),0,'2'!AN$72) -> 0 | AO32: =IF(ISERROR('2'!AO$72),0,'2'!AO$72) -> 0 | AP32: =SUM(AN32:AO32) -> 0 | AQ32: =AM32+AP32 -> 5742600 | AR32: =IF(ISERROR('2'!AR$72),0,'2'!AR$72) -> 0 | AS32: =IF(ISERROR('2'!AS$72),0,'2'!AS$72) -> 0 | AT32: =IF(ISERROR('2'!AT$72),0,'2'!AT$72) -> 5742600 | AU32: =IF(ISERROR('2'!AU$72),0,'2'!AU$72) -> 0
A33: 18 | B33: =IF('3'!$F$6<>"",E33,0) -> 3 | C33: =IF(LEN(F33)>2,1,0) -> 1 | D33: =IF(OR(AND(B33=0,C33<>0),AND(B33<>0,C33=0)),1,0) -> 0 | E33: 3 | F33: Immigration Affairs | G33: =IF(AND(F33="",COUNTA(F33:F$45)>0),"Please fill Subprogrammes from the top","") ->  | I33: =IF(ISERROR('3'!I$72),0,'3'!I$72) -> 1145702 | J33: =IF(ISERROR('3'!J$72),0,'3'!J$72) -> 1198475 | K33: =IF(ISERROR('3'!K$72),0,'3'!K$72) -> 1073609 | L33: =IF(ISERROR('3'!L$72),0,'3'!L$72) -> 1073605 | M33: =IF(ISERROR('3'!M$72),0,'3'!M$72) -> 1262766 | N33: =IF(ISERROR('3'!N$72),0,'3'!N$72) -> 0 | O33: =IF(ISERROR('3'!O$72),0,'3'!O$72) -> 0 | P33: =IF(ISERROR('3'!P$72),0,'3'!P$72) -> 0 | Q33: =IF(ISERROR('3'!Q$72),0,'3'!Q$72) -> 31500 | R33: =IF(ISERROR('3'!R$72),0,'3'!R$72) -> 1294266 | S33: =IF(ISERROR('3'!S$72),0,'3'!S$72) -> 0 | T33: =IF(ISERROR('3'!T$72),0,'3'!T$72) -> 1294266 | U33: =IF(ISERROR('3'!U$72),0,'3'!U$72) -> 1330626 | V33: =IF(ISERROR('3'!V$72),0,'3'!V$72) -> 0 | W33: =IF(ISERROR('3'!W$72),0,'3'!W$72) -> 0 | X33: =SUM(V33:W33) -> 0 | Y33: =U33+X33 -> 1330626 | Z33: =IF(ISERROR('3'!Z$72),0,'3'!Z$72) -> 0 | AA33: =IF(ISERROR('3'!AA$72),0,'3'!AA$72) -> 0 | AB33: =IF(ISERROR('3'!AB$72),0,'3'!AB$72) -> 1330626 | AC33: =IF(ISERROR('3'!AC$72),0,'3'!AC$72) -> 0 | AD33: =IF(ISERROR('3'!AD$72),0,'3'!AD$72) -> 1383131 | AE33: =IF(ISERROR('3'!AE$72),0,'3'!AE$72) -> 0 | AF33: =IF(ISERROR('3'!AF$72),0,'3'!AF$72) -> 0 | AG33: 0 | AH33: 1383131 | AI33: =IF(ISERROR('3'!AI$72),0,'3'!AI$72) -> 0 | AJ33: =IF(ISERROR('3'!AJ$72),0,'3'!AJ$72) -> 0 | AK33: =IF(ISERROR('3'!AK$72),0,'3'!AK$72) -> 1383131 | AL33: =IF(ISERROR('3'!AL$72),0,'3'!AL$72) -> 0 | AM33: =IF(ISERROR('3'!AM$72),0,'3'!AM$72) -> 1435406 | AN33: =IF(ISERROR('3'!AN$72),0,'3'!AN$72) -> 0 | AO33: =IF(ISERROR('3'!AO$72),0,'3'!AO$72) -> 0 | AP33: 0 | AQ33: =AM33+AP33 -> 1435406 | AR33: =IF(ISERROR('3'!AR$72),0,'3'!AR$72) -> 0 | AS33: =IF(ISERROR('3'!AS$72),0,'3'!AS$72) -> 0 | AT33: =IF(ISERROR('3'!AT$72),0,'3'!AT$72) -> 1435406 | AU33: =IF(ISERROR('3'!AU$72),0,'3'!AU$72) -> 0
A34: 0 | B34: =IF('4'!$F$6<>"",E34,0) -> 0 | C34: =IF(LEN(F34)>2,1,0) -> 0 | D34: =IF(OR(AND(B34=0,C34<>0),AND(B34<>0,C34=0)),1,0) -> 0 | E34: 4 | G34: =IF(AND(F34="",COUNTA(F34:F$45)>0),"Please fill Subprogrammes from the top","") -> Please fill Subprogrammes from the top | I34: =IF(ISERROR('4'!I$72),0,'4'!I$72) -> 0 | J34: =IF(ISERROR('4'!J$72),0,'4'!J$72) -> 0 | K34: =IF(ISERROR('4'!K$72),0,'4'!K$72) -> 0 | L34: =IF(ISERROR('4'!L$72),0,'4'!L$72) -> 0 | M34: =IF(ISERROR('4'!M$72),0,'4'!M$72) -> 0 | N34: =IF(ISERROR('4'!N$72),0,'4'!N$72) -> 0 | O34: =IF(ISERROR('4'!O$72),0,'4'!O$72) -> 0 | P34: =IF(ISERROR('4'!P$72),0,'4'!P$72) -> 0 | Q34: =IF(ISERROR('4'!Q$72),0,'4'!Q$72) -> 0 | R34: =IF(ISERROR('4'!R$72),0,'4'!R$72) -> 0 | S34: =IF(ISERROR('4'!S$72),0,'4'!S$72) -> 0 | T34: =IF(ISERROR('4'!T$72),0,'4'!T$72) -> 0 | U34: =IF(ISERROR('4'!U$72),0,'4'!U$72) -> 0 | V34: =IF(ISERROR('4'!V$72),0,'4'!V$72) -> 0 | W34: =IF(ISERROR('4'!W$72),0,'4'!W$72) -> 0 | X34: 0 | Y34: 0 | Z34: =IF(ISERROR('4'!Z$72),0,'4'!Z$72) -> 0 | AA34: =IF(ISERROR('4'!AA$72),0,'4'!AA$72) -> 0 | AB34: =IF(ISERROR('4'!AB$72),0,'4'!AB$72) -> 0 | AC34: =IF(ISERROR('4'!AC$72),0,'4'!AC$72) -> 0 | AD34: =IF(ISERROR('4'!AD$72),0,'4'!AD$72) -> 0 | AE34: =IF(ISERROR('4'!AE$72),0,'4'!AE$72) -> 0 | AF34: =IF(ISERROR('4'!AF$72),0,'4'!AF$72) -> 0 | AG34: 0 | AH34: 0 | AI34: =IF(ISERROR('4'!AI$72),0,'4'!AI$72) -> 0 | AJ34: =IF(ISERROR('4'!AJ$72),0,'4'!AJ$72) -> 0 | AK34: =IF(ISERROR('4'!AK$72),0,'4'!AK$72) -> 0 | AL34: =IF(ISERROR('4'!AL$72),0,'4'!AL$72) -> 0 | AM34: =IF(ISERROR('4'!AM$72),0,'4'!AM$72) -> 0 | AN34: =IF(ISERROR('4'!AN$72),0,'4'!AN$72) -> 0 | AO34: =IF(ISERROR('4'!AO$72),0,'4'!AO$72) -> 0 | AP34: 0 | AQ34: 0 | AR34: =IF(ISERROR('4'!AR$72),0,'4'!AR$72) -> 0 | AS34: =IF(ISERROR('4'!AS$72),0,'4'!AS$72) -> 0 | AT34: =IF(ISERROR('4'!AT$72),0,'4'!AT$72) -> 0 | AU34: =IF(ISERROR('4'!AU$72),0,'4'!AU$72) -> 0
A35: 0 | B35: =IF('5'!$F$6<>"",E35,0) -> 0 | C35: 0 | D35: 0 | E35: 5 | G35: =IF(AND(F35="",COUNTA(F35:F$45)>0),"Please fill Subprogrammes from the top","") -> Please fill Subprogrammes from the top | I35: =IF(ISERROR('5'!I$72),0,'5'!I$72) -> 0 | J35: =IF(ISERROR('5'!J$72),0,'5'!J$72) -> 0 | K35: =IF(ISERROR('5'!K$72),0,'5'!K$72) -> 0 | L35: =IF(ISERROR('5'!L$72),0,'5'!L$72) -> 0 | M35: =IF(ISERROR('5'!M$72),0,'5'!M$72) -> 0 | N35: =IF(ISERROR('5'!N$72),0,'5'!N$72) -> 0 | O35: =IF(ISERROR('5'!O$72),0,'5'!O$72) -> 0 | P35: =IF(ISERROR('5'!P$72),0,'5'!P$72) -> 0 | Q35: =IF(ISERROR('5'!Q$72),0,'5'!Q$72) -> 0 | R35: =IF(ISERROR('5'!R$72),0,'5'!R$72) -> 0 | S35: =IF(ISERROR('5'!S$72),0,'5'!S$72) -> 0 | T35: =IF(ISERROR('5'!T$72),0,'5'!T$72) -> 0 | U35: =IF(ISERROR('5'!U$72),0,'5'!U$72) -> 0 | V35: =IF(ISERROR('5'!V$72),0,'5'!V$72) -> 0 | W35: =IF(ISERROR('5'!W$72),0,'5'!W$72) -> 0 | X35: 0 | Y35: 0 | Z35: =IF(ISERROR('5'!Z$72),0,'5'!Z$72) -> 0 | AA35: =IF(ISERROR('5'!AA$72),0,'5'!AA$72) -> 0 | AB35: =IF(ISERROR('5'!AB$72),0,'5'!AB$72) -> 0 | AC35: =IF(ISERROR('5'!AC$72),0,'5'!AC$72) -> 0 | AD35: =IF(ISERROR('5'!AD$72),0,'5'!AD$72) -> 0 | AE35: =IF(ISERROR('5'!AE$72),0,'5'!AE$72) -> 0 | AF35: =IF(ISERROR('5'!AF$72),0,'5'!AF$72) -> 0 | AG35: 0 | AH35: 0 | AI35: =IF(ISERROR('5'!AI$72),0,'5'!AI$72) -> 0 | AJ35: =IF(ISERROR('5'!AJ$72),0,'5'!AJ$72) -> 0 | AK35: =IF(ISERROR('5'!AK$72),0,'5'!AK$72) -> 0 | AL35: =IF(ISERROR('5'!AL$72),0,'5'!AL$72) -> 0 | AM35: =IF(ISERROR('5'!AM$72),0,'5'!AM$72) -> 0 | AN35: =IF(ISERROR('5'!AN$72),0,'5'!AN$72) -> 0 | AO35: =IF(ISERROR('5'!AO$72),0,'5'!AO$72) -> 0 | AP35: 0 | AQ35: 0 | AR35: =IF(ISERROR('5'!AR$72),0,'5'!AR$72) -> 0 | AS35: =IF(ISERROR('5'!AS$72),0,'5'!AS$72) -> 0 | AT35: =IF(ISERROR('5'!AT$72),0,'5'!AT$72) -> 0 | AU35: =IF(ISERROR('5'!AU$72),0,'5'!AU$72) -> 0
A36: 0 | B36: =IF('6'!$F$6<>"",E36,0) -> 0 | C36: 0 | D36: 0 | E36: 6 | G36: =IF(AND(F36="",COUNTA(F36:F$45)>0),"Please fill Subprogrammes from the top","") -> Please fill Subprogrammes from the top | I36: =IF(ISERROR('6'!I$72),0,'6'!I$72) -> 0 | J36: =IF(ISERROR('6'!J$72),0,'6'!J$72) -> 0 | K36: =IF(ISERROR('6'!K$72),0,'6'!K$72) -> 0 | L36: =IF(ISERROR('6'!L$72),0,'6'!L$72) -> 0 | M36: =IF(ISERROR('6'!M$72),0,'6'!M$72) -> 0 | N36: =IF(ISERROR('6'!N$72),0,'6'!N$72) -> 0 | O36: =IF(ISERROR('6'!O$72),0,'6'!O$72) -> 0 | P36: =IF(ISERROR('6'!P$72),0,'6'!P$72) -> 0 | Q36: =IF(ISERROR('6'!Q$72),0,'6'!Q$72) -> 0 | R36: =IF(ISERROR('6'!R$72),0,'6'!R$72) -> 0 | S36: =IF(ISERROR('6'!S$72),0,'6'!S$72) -> 0 | T36: =IF(ISERROR('6'!T$72),0,'6'!T$72) -> 0 | U36: =IF(ISERROR('6'!U$72),0,'6'!U$72) -> 0 | V36: =IF(ISERROR('6'!V$72),0,'6'!V$72) -> 0 | W36: =IF(ISERROR('6'!W$72),0,'6'!W$72) -> 0 | X36: 0 | Y36: 0 | Z36: =IF(ISERROR('6'!Z$72),0,'6'!Z$72) -> 0 | AA36: =IF(ISERROR('6'!AA$72),0,'6'!AA$72) -> 0 | AB36: =IF(ISERROR('6'!AB$72),0,'6'!AB$72) -> 0 | AC36: =IF(ISERROR('6'!AC$72),0,'6'!AC$72) -> 0 | AD36: =IF(ISERROR('6'!AD$72),0,'6'!AD$72) -> 0 | AE36: =IF(ISERROR('6'!AE$72),0,'6'!AE$72) -> 0 | AF36: =IF(ISERROR('6'!AF$72),0,'6'!AF$72) -> 0 | AG36: 0 | AH36: 0 | AI36: =IF(ISERROR('6'!AI$72),0,'6'!AI$72) -> 0 | AJ36: =IF(ISERROR('6'!AJ$72),0,'6'!AJ$72) -> 0 | AK36: =IF(ISERROR('6'!AK$72),0,'6'!AK$72) -> 0 | AL36: =IF(ISERROR('6'!AL$72),0,'6'!AL$72) -> 0 | AM36: =IF(ISERROR('6'!AM$72),0,'6'!AM$72) -> 0 | AN36: =IF(ISERROR('6'!AN$72),0,'6'!AN$72) -> 0 | AO36: =IF(ISERROR('6'!AO$72),0,'6'!AO$72) -> 0 | AP36: 0 | AQ36: 0 | AR36: =IF(ISERROR('6'!AR$72),0,'6'!AR$72) -> 0 | AS36: =IF(ISERROR('6'!AS$72),0,'6'!AS$72) -> 0 | AT36: =IF(ISERROR('6'!AT$72),0,'6'!AT$72) -> 0 | AU36: =IF(ISERROR('6'!AU$72),0,'6'!AU$72) -> 0
A37: 0 | B37: =IF('7'!$F$6<>"",E37,0) -> 0 | C37: 0 | D37: 0 | E37: 7 | G37: =IF(AND(F37="",COUNTA(F37:F$45)>0),"Please fill Subprogrammes from the top","") -> Please fill Subprogrammes from the top | I37: =IF(ISERROR('7'!I$72),0,'7'!I$72) -> 0 | J37: =IF(ISERROR('7'!J$72),0,'7'!J$72) -> 0 | K37: =IF(ISERROR('7'!K$72),0,'7'!K$72) -> 0 | L37: =IF(ISERROR('7'!L$72),0,'7'!L$72) -> 0 | M37: =IF(ISERROR('7'!M$72),0,'7'!M$72) -> 0 | N37: =IF(ISERROR('7'!N$72),0,'7'!N$72) -> 0 | O37: =IF(ISERROR('7'!O$72),0,'7'!O$72) -> 0 | P37: =IF(ISERROR('7'!P$72),0,'7'!P$72) -> 0 | Q37: =IF(ISERROR('7'!Q$72),0,'7'!Q$72) -> 0 | R37: =IF(ISERROR('7'!R$72),0,'7'!R$72) -> 0 | S37: =IF(ISERROR('7'!S$72),0,'7'!S$72) -> 0 | T37: =IF(ISERROR('7'!T$72),0,'7'!T$72) -> 0 | U37: =IF(ISERROR('7'!U$72),0,'7'!U$72) -> 0 | V37: =IF(ISERROR('7'!V$72),0,'7'!V$72) -> 0 | W37: =IF(ISERROR('7'!W$72),0,'7'!W$72) -> 0 | X37: 0 | Y37: 0 | Z37: =IF(ISERROR('7'!Z$72),0,'7'!Z$72) -> 0 | AA37: =IF(ISERROR('7'!AA$72),0,'7'!AA$72) -> 0 | AB37: =IF(ISERROR('7'!AB$72),0,'7'!AB$72) -> 0 | AC37: =IF(ISERROR('7'!AC$72),0,'7'!AC$72) -> 0 | AD37: =IF(ISERROR('7'!AD$72),0,'7'!AD$72) -> 0 | AE37: =IF(ISERROR('7'!AE$72),0,'7'!AE$72) -> 0 | AF37: =IF(ISERROR('7'!AF$72),0,'7'!AF$72) -> 0 | AG37: 0 | AH37: 0 | AI37: =IF(ISERROR('7'!AI$72),0,'7'!AI$72) -> 0 | AJ37: =IF(ISERROR('7'!AJ$72),0,'7'!AJ$72) -> 0 | AK37: =IF(ISERROR('7'!AK$72),0,'7'!AK$72) -> 0 | AL37: =IF(ISERROR('7'!AL$72),0,'7'!AL$72) -> 0 | AM37: =IF(ISERROR('7'!AM$72),0,'7'!AM$72) -> 0 | AN37: =IF(ISERROR('7'!AN$72),0,'7'!AN$72) -> 0 | AO37: =IF(ISERROR('7'!AO$72),0,'7'!AO$72) -> 0 | AP37: 0 | AQ37: 0 | AR37: =IF(ISERROR('7'!AR$72),0,'7'!AR$72) -> 0 | AS37: =IF(ISERROR('7'!AS$72),0,'7'!AS$72) -> 0 | AT37: =IF(ISERROR('7'!AT$72),0,'7'!AT$72) -> 0 | AU37: =IF(ISERROR('7'!AU$72),0,'7'!AU$72) -> 0
A38: 0 | B38: =IF('8'!$F$6<>"",E38,0) -> 0 | C38: 0 | D38: 0 | E38: 8 | G38: =IF(AND(F38="",COUNTA(F38:F$45)>0),"Please fill Subprogrammes from the top","") -> Please fill Subprogrammes from the top | I38: =IF(ISERROR('8'!I$72),0,'8'!I$72) -> 0 | J38: =IF(ISERROR('8'!J$72),0,'8'!J$72) -> 0 | K38: =IF(ISERROR('8'!K$72),0,'8'!K$72) -> 0 | L38: =IF(ISERROR('8'!L$72),0,'8'!L$72) -> 0 | M38: =IF(ISERROR('8'!M$72),0,'8'!M$72) -> 0 | N38: =IF(ISERROR('8'!N$72),0,'8'!N$72) -> 0 | O38: =IF(ISERROR('8'!O$72),0,'8'!O$72) -> 0 | P38: =IF(ISERROR('8'!P$72),0,'8'!P$72) -> 0 | Q38: =IF(ISERROR('8'!Q$72),0,'8'!Q$72) -> 0 | R38: =IF(ISERROR('8'!R$72),0,'8'!R$72) -> 0 | S38: =IF(ISERROR('8'!S$72),0,'8'!S$72) -> 0 | T38: =IF(ISERROR('8'!T$72),0,'8'!T$72) -> 0 | U38: =IF(ISERROR('8'!U$72),0,'8'!U$72) -> 0 | V38: =IF(ISERROR('8'!V$72),0,'8'!V$72) -> 0 | W38: =IF(ISERROR('8'!W$72),0,'8'!W$72) -> 0 | X38: 0 | Y38: 0 | Z38: =IF(ISERROR('8'!Z$72),0,'8'!Z$72) -> 0 | AA38: =IF(ISERROR('8'!AA$72),0,'8'!AA$72) -> 0 | AB38: =IF(ISERROR('8'!AB$72),0,'8'!AB$72) -> 0 | AC38: =IF(ISERROR('8'!AC$72),0,'8'!AC$72) -> 0 | AD38: =IF(ISERROR('8'!AD$72),0,'8'!AD$72) -> 0 | AE38: =IF(ISERROR('8'!AE$72),0,'8'!AE$72) -> 0 | AF38: =IF(ISERROR('8'!AF$72),0,'8'!AF$72) -> 0 | AG38: 0 | AH38: 0 | AI38: =IF(ISERROR('8'!AI$72),0,'8'!AI$72) -> 0 | AJ38: =IF(ISERROR('8'!AJ$72),0,'8'!AJ$72) -> 0 | AK38: =IF(ISERROR('8'!AK$72),0,'8'!AK$72) -> 0 | AL38: =IF(ISERROR('8'!AL$72),0,'8'!AL$72) -> 0 | AM38: =IF(ISERROR('8'!AM$72),0,'8'!AM$72) -> 0 | AN38: =IF(ISERROR('8'!AN$72),0,'8'!AN$72) -> 0 | AO38: =IF(ISERROR('8'!AO$72),0,'8'!AO$72) -> 0 | AP38: 0 | AQ38: 0 | AR38: =IF(ISERROR('8'!AR$72),0,'8'!AR$72) -> 0 | AS38: =IF(ISERROR('8'!AS$72),0,'8'!AS$72) -> 0 | AT38: =IF(ISERROR('8'!AT$72),0,'8'!AT$72) -> 0 | AU38: =IF(ISERROR('8'!AU$72),0,'8'!AU$72) -> 0
A39: 0 | B39: =IF('9'!$F$6<>"",E39,0) -> 0 | C39: 0 | D39: 0 | E39: 9 | G39: =IF(AND(F39="",COUNTA(F39:F$45)>0),"Please fill Subprogrammes from the top","") -> Please fill Subprogrammes from the top | I39: =IF(ISERROR('9'!I$72),0,'9'!I$72) -> 0 | J39: =IF(ISERROR('9'!J$72),0,'9'!J$72) -> 0 | K39: =IF(ISERROR('9'!K$72),0,'9'!K$72) -> 0 | L39: =IF(ISERROR('9'!L$72),0,'9'!L$72) -> 0 | M39: =IF(ISERROR('9'!M$72),0,'9'!M$72) -> 0 | N39: =IF(ISERROR('9'!N$72),0,'9'!N$72) -> 0 | O39: =IF(ISERROR('9'!O$72),0,'9'!O$72) -> 0 | P39: =IF(ISERROR('9'!P$72),0,'9'!P$72) -> 0 | Q39: =IF(ISERROR('9'!Q$72),0,'9'!Q$72) -> 0 | R39: =IF(ISERROR('9'!R$72),0,'9'!R$72) -> 0 | S39: =IF(ISERROR('9'!S$72),0,'9'!S$72) -> 0 | T39: =IF(ISERROR('9'!T$72),0,'9'!T$72) -> 0 | U39: =IF(ISERROR('9'!U$72),0,'9'!U$72) -> 0 | V39: =IF(ISERROR('9'!V$72),0,'9'!V$72) -> 0 | W39: =IF(ISERROR('9'!W$72),0,'9'!W$72) -> 0 | X39: 0 | Y39: 0 | Z39: =IF(ISERROR('9'!Z$72),0,'9'!Z$72) -> 0 | AA39: =IF(ISERROR('9'!AA$72),0,'9'!AA$72) -> 0 | AB39: =IF(ISERROR('9'!AB$72),0,'9'!AB$72) -> 0 | AC39: =IF(ISERROR('9'!AC$72),0,'9'!AC$72) -> 0 | AD39: =IF(ISERROR('9'!AD$72),0,'9'!AD$72) -> 0 | AE39: =IF(ISERROR('9'!AE$72),0,'9'!AE$72) -> 0 | AF39: =IF(ISERROR('9'!AF$72),0,'9'!AF$72) -> 0 | AG39: 0 | AH39: 0 | AI39: =IF(ISERROR('9'!AI$72),0,'9'!AI$72) -> 0 | AJ39: =IF(ISERROR('9'!AJ$72),0,'9'!AJ$72) -> 0 | AK39: =IF(ISERROR('9'!AK$72),0,'9'!AK$72) -> 0 | AL39: =IF(ISERROR('9'!AL$72),0,'9'!AL$72) -> 0 | AM39: =IF(ISERROR('9'!AM$72),0,'9'!AM$72) -> 0 | AN39: =IF(ISERROR('9'!AN$72),0,'9'!AN$72) -> 0 | AO39: =IF(ISERROR('9'!AO$72),0,'9'!AO$72) -> 0 | AP39: 0 | AQ39: 0 | AR39: =IF(ISERROR('9'!AR$72),0,'9'!AR$72) -> 0 | AS39: =IF(ISERROR('9'!AS$72),0,'9'!AS$72) -> 0 | AT39: =IF(ISERROR('9'!AT$72),0,'9'!AT$72) -> 0 | AU39: =IF(ISERROR('9'!AU$72),0,'9'!AU$72) -> 0
A40: 0 | B40: =IF('10'!$F$6<>"",E40,0) -> 0 | C40: 0 | D40: 0 | E40: 10 | G40: =IF(AND(F40="",COUNTA(F40:F$45)>0),"Please fill Subprogrammes from the top","") -> Please fill Subprogrammes from the top | I40: =IF(ISERROR('10'!I$72),0,'10'!I$72) -> 0 | J40: =IF(ISERROR('10'!J$72),0,'10'!J$72) -> 0 | K40: =IF(ISERROR('10'!K$72),0,'10'!K$72) -> 0 | L40: =IF(ISERROR('10'!L$72),0,'10'!L$72) -> 0 | M40: =IF(ISERROR('10'!M$72),0,'10'!M$72) -> 0 | N40: =IF(ISERROR('10'!N$72),0,'10'!N$72) -> 0 | O40: =IF(ISERROR('10'!O$72),0,'10'!O$72) -> 0 | P40: =IF(ISERROR('10'!P$72),0,'10'!P$72) -> 0 | Q40: =IF(ISERROR('10'!Q$72),0,'10'!Q$72) -> 0 | R40: =IF(ISERROR('10'!R$72),0,'10'!R$72) -> 0 | S40: =IF(ISERROR('10'!S$72),0,'10'!S$72) -> 0 | T40: =IF(ISERROR('10'!T$72),0,'10'!T$72) -> 0 | U40: =IF(ISERROR('10'!U$72),0,'10'!U$72) -> 0 | V40: =IF(ISERROR('10'!V$72),0,'10'!V$72) -> 0 | W40: =IF(ISERROR('10'!W$72),0,'10'!W$72) -> 0 | X40: 0 | Y40: 0 | Z40: =IF(ISERROR('10'!Z$72),0,'10'!Z$72) -> 0 | AA40: =IF(ISERROR('10'!AA$72),0,'10'!AA$72) -> 0 | AB40: =IF(ISERROR('10'!AB$72),0,'10'!AB$72) -> 0 | AC40: =IF(ISERROR('10'!AC$72),0,'10'!AC$72) -> 0 | AD40: =IF(ISERROR('10'!AD$72),0,'10'!AD$72) -> 0 | AE40: =IF(ISERROR('10'!AE$72),0,'10'!AE$72) -> 0 | AF40: =IF(ISERROR('10'!AF$72),0,'10'!AF$72) -> 0 | AG40: 0 | AH40: 0 | AI40: =IF(ISERROR('10'!AI$72),0,'10'!AI$72) -> 0 | AJ40: =IF(ISERROR('10'!AJ$72),0,'10'!AJ$72) -> 0 | AK40: =IF(ISERROR('10'!AK$72),0,'10'!AK$72) -> 0 | AL40: =IF(ISERROR('10'!AL$72),0,'10'!AL$72) -> 0 | AM40: =IF(ISERROR('10'!AM$72),0,'10'!AM$72) -> 0 | AN40: =IF(ISERROR('10'!AN$72),0,'10'!AN$72) -> 0 | AO40: =IF(ISERROR('10'!AO$72),0,'10'!AO$72) -> 0 | AP40: 0 | AQ40: 0 | AR40: =IF(ISERROR('10'!AR$72),0,'10'!AR$72) -> 0 | AS40: =IF(ISERROR('10'!AS$72),0,'10'!AS$72) -> 0 | AT40: =IF(ISERROR('10'!AT$72),0,'10'!AT$72) -> 0 | AU40: =IF(ISERROR('10'!AU$72),0,'10'!AU$72) -> 0
A41: 0 | B41: =IF('11'!$F$6<>"",E41,0) -> 0 | C41: 0 | D41: 0 | E41: 11 | G41: =IF(AND(F41="",COUNTA(F41:F$45)>0),"Please fill Subprogrammes from the top","") ->  | I41: =IF(ISERROR('11'!I$72),0,'11'!I$72) -> 0 | J41: =IF(ISERROR('11'!J$72),0,'11'!J$72) -> 0 | K41: =IF(ISERROR('11'!K$72),0,'11'!K$72) -> 0 | L41: =IF(ISERROR('11'!L$72),0,'11'!L$72) -> 0 | M41: =IF(ISERROR('11'!M$72),0,'11'!M$72) -> 0 | N41: =IF(ISERROR('11'!N$72),0,'11'!N$72) -> 0 | O41: =IF(ISERROR('11'!O$72),0,'11'!O$72) -> 0 | P41: =IF(ISERROR('11'!P$72),0,'11'!P$72) -> 0 | Q41: =IF(ISERROR('11'!Q$72),0,'11'!Q$72) -> 0 | R41: =IF(ISERROR('11'!R$72),0,'11'!R$72) -> 0 | S41: =IF(ISERROR('11'!S$72),0,'11'!S$72) -> 0 | T41: =IF(ISERROR('11'!T$72),0,'11'!T$72) -> 0 | U41: =IF(ISERROR('11'!U$72),0,'11'!U$72) -> 0 | V41: =IF(ISERROR('11'!V$72),0,'11'!V$72) -> 0 | W41: =IF(ISERROR('11'!W$72),0,'11'!W$72) -> 0 | X41: =SUM(V41:W41) -> 0 | Y41: =U41+X41 -> 0 | Z41: =IF(ISERROR('11'!Z$72),0,'11'!Z$72) -> 0 | AA41: =IF(ISERROR('11'!AA$72),0,'11'!AA$72) -> 0 | AB41: =IF(ISERROR('11'!AB$72),0,'11'!AB$72) -> 0 | AC41: =IF(ISERROR('11'!AC$72),0,'11'!AC$72) -> 0 | AD41: =IF(ISERROR('11'!AD$72),0,'11'!AD$72) -> 0 | AE41: =IF(ISERROR('11'!AE$72),0,'11'!AE$72) -> 0 | AF41: =IF(ISERROR('11'!AF$72),0,'11'!AF$72) -> 0 | AG41: =SUM(AE41:AF41) -> 0 | AH41: =AD41+AG41 -> 0 | AI41: =IF(ISERROR('11'!AI$72),0,'11'!AI$72) -> 0 | AJ41: =IF(ISERROR('11'!AJ$72),0,'11'!AJ$72) -> 0 | AK41: =IF(ISERROR('11'!AK$72),0,'11'!AK$72) -> 0 | AL41: =IF(ISERROR('11'!AL$72),0,'11'!AL$72) -> 0 | AM41: =IF(ISERROR('11'!AM$72),0,'11'!AM$72) -> 0 | AN41: =IF(ISERROR('11'!AN$72),0,'11'!AN$72) -> 0 | AO41: =IF(ISERROR('11'!AO$72),0,'11'!AO$72) -> 0 | AP41: =SUM(AN41:AO41) -> 0 | AQ41: =AM41+AP41 -> 0 | AR41: =IF(ISERROR('11'!AR$72),0,'11'!AR$72) -> 0 | AS41: =IF(ISERROR('11'!AS$72),0,'11'!AS$72) -> 0 | AT41: =IF(ISERROR('11'!AT$72),0,'11'!AT$72) -> 0 | AU41: =IF(ISERROR('11'!AU$72),0,'11'!AU$72) -> 0
A42: 0 | B42: =IF('12'!$F$6<>"",E42,0) -> 0 | C42: 0 | D42: 0 | E42: 12 | G42: =IF(AND(F42="",COUNTA(F42:F$45)>0),"Please fill Subprogrammes from the top","") ->  | I42: =IF(ISERROR('12'!I$72),0,'12'!I$72) -> 0 | J42: =IF(ISERROR('12'!J$72),0,'12'!J$72) -> 0 | K42: =IF(ISERROR('12'!K$72),0,'12'!K$72) -> 0 | L42: =IF(ISERROR('12'!L$72),0,'12'!L$72) -> 0 | M42: =IF(ISERROR('12'!M$72),0,'12'!M$72) -> 0 | N42: =IF(ISERROR('12'!N$72),0,'12'!N$72) -> 0 | O42: =IF(ISERROR('12'!O$72),0,'12'!O$72) -> 0 | P42: =IF(ISERROR('12'!P$72),0,'12'!P$72) -> 0 | Q42: =IF(ISERROR('12'!Q$72),0,'12'!Q$72) -> 0 | R42: =IF(ISERROR('12'!R$72),0,'12'!R$72) -> 0 | S42: =IF(ISERROR('12'!S$72),0,'12'!S$72) -> 0 | T42: =IF(ISERROR('12'!T$72),0,'12'!T$72) -> 0 | U42: =IF(ISERROR('12'!U$72),0,'12'!U$72) -> 0 | V42: =IF(ISERROR('12'!V$72),0,'12'!V$72) -> 0 | W42: =IF(ISERROR('12'!W$72),0,'12'!W$72) -> 0 | X42: 0 | Y42: 0 | Z42: =IF(ISERROR('12'!Z$72),0,'12'!Z$72) -> 0 | AA42: =IF(ISERROR('12'!AA$72),0,'12'!AA$72) -> 0 | AB42: =IF(ISERROR('12'!AB$72),0,'12'!AB$72) -> 0 | AC42: =IF(ISERROR('12'!AC$72),0,'12'!AC$72) -> 0 | AD42: =IF(ISERROR('12'!AD$72),0,'12'!AD$72) -> 0 | AE42: =IF(ISERROR('12'!AE$72),0,'12'!AE$72) -> 0 | AF42: =IF(ISERROR('12'!AF$72),0,'12'!AF$72) -> 0 | AG42: 0 | AH42: 0 | AI42: =IF(ISERROR('12'!AI$72),0,'12'!AI$72) -> 0 | AJ42: =IF(ISERROR('12'!AJ$72),0,'12'!AJ$72) -> 0 | AK42: =IF(ISERROR('12'!AK$72),0,'12'!AK$72) -> 0 | AL42: =IF(ISERROR('12'!AL$72),0,'12'!AL$72) -> 0 | AM42: =IF(ISERROR('12'!AM$72),0,'12'!AM$72) -> 0 | AN42: =IF(ISERROR('12'!AN$72),0,'12'!AN$72) -> 0 | AO42: =IF(ISERROR('12'!AO$72),0,'12'!AO$72) -> 0 | AP42: 0 | AQ42: 0 | AR42: =IF(ISERROR('12'!AR$72),0,'12'!AR$72) -> 0 | AS42: =IF(ISERROR('12'!AS$72),0,'12'!AS$72) -> 0 | AT42: =IF(ISERROR('12'!AT$72),0,'12'!AT$72) -> 0 | AU42: =IF(ISERROR('12'!AU$72),0,'12'!AU$72) -> 0
A43: 0 | B43: =IF('13'!$F$6<>"",E43,0) -> 0 | C43: 0 | D43: 0 | E43: 13 | G43: =IF(AND(F43="",COUNTA(F43:F$45)>0),"Please fill Subprogrammes from the top","") ->  | I43: =IF(ISERROR('13'!I$72),0,'13'!I$72) -> 0 | J43: =IF(ISERROR('13'!J$72),0,'13'!J$72) -> 0 | K43: =IF(ISERROR('13'!K$72),0,'13'!K$72) -> 0 | L43: =IF(ISERROR('13'!L$72),0,'13'!L$72) -> 0 | M43: =IF(ISERROR('13'!M$72),0,'13'!M$72) -> 0 | N43: =IF(ISERROR('13'!N$72),0,'13'!N$72) -> 0 | O43: =IF(ISERROR('13'!O$72),0,'13'!O$72) -> 0 | P43: =IF(ISERROR('13'!P$72),0,'13'!P$72) -> 0 | Q43: =IF(ISERROR('13'!Q$72),0,'13'!Q$72) -> 0 | R43: =IF(ISERROR('13'!R$72),0,'13'!R$72) -> 0 | S43: =IF(ISERROR('13'!S$72),0,'13'!S$72) -> 0 | T43: =IF(ISERROR('13'!T$72),0,'13'!T$72) -> 0 | U43: =IF(ISERROR('13'!U$72),0,'13'!U$72) -> 0 | V43: =IF(ISERROR('13'!V$72),0,'13'!V$72) -> 0 | W43: =IF(ISERROR('13'!W$72),0,'13'!W$72) -> 0 | X43: 0 | Y43: 0 | Z43: =IF(ISERROR('13'!Z$72),0,'13'!Z$72) -> 0 | AA43: =IF(ISERROR('13'!AA$72),0,'13'!AA$72) -> 0 | AB43: =IF(ISERROR('13'!AB$72),0,'13'!AB$72) -> 0 | AC43: =IF(ISERROR('13'!AC$72),0,'13'!AC$72) -> 0 | AD43: =IF(ISERROR('13'!AD$72),0,'13'!AD$72) -> 0 | AE43: =IF(ISERROR('13'!AE$72),0,'13'!AE$72) -> 0 | AF43: =IF(ISERROR('13'!AF$72),0,'13'!AF$72) -> 0 | AG43: 0 | AH43: 0 | AI43: =IF(ISERROR('13'!AI$72),0,'13'!AI$72) -> 0 | AJ43: =IF(ISERROR('13'!AJ$72),0,'13'!AJ$72) -> 0 | AK43: =IF(ISERROR('13'!AK$72),0,'13'!AK$72) -> 0 | AL43: =IF(ISERROR('13'!AL$72),0,'13'!AL$72) -> 0 | AM43: =IF(ISERROR('13'!AM$72),0,'13'!AM$72) -> 0 | AN43: =IF(ISERROR('13'!AN$72),0,'13'!AN$72) -> 0 | AO43: =IF(ISERROR('13'!AO$72),0,'13'!AO$72) -> 0 | AP43: 0 | AQ43: 0 | AR43: =IF(ISERROR('13'!AR$72),0,'13'!AR$72) -> 0 | AS43: =IF(ISERROR('13'!AS$72),0,'13'!AS$72) -> 0 | AT43: =IF(ISERROR('13'!AT$72),0,'13'!AT$72) -> 0 | AU43: =IF(ISERROR('13'!AU$72),0,'13'!AU$72) -> 0
A44: 0 | B44: =IF('14'!$F$6<>"",E44,0) -> 0 | C44: 0 | D44: 0 | E44: 14 | G44: =IF(AND(F44="",COUNTA(F44:F$45)>0),"Please fill Subprogrammes from the top","") ->  | I44: =IF(ISERROR('14'!I$72),0,'14'!I$72) -> 0 | J44: =IF(ISERROR('14'!J$72),0,'14'!J$72) -> 0 | K44: =IF(ISERROR('14'!K$72),0,'14'!K$72) -> 0 | L44: =IF(ISERROR('14'!L$72),0,'14'!L$72) -> 0 | M44: =IF(ISERROR('14'!M$72),0,'14'!M$72) -> 0 | N44: =IF(ISERROR('14'!N$72),0,'14'!N$72) -> 0 | O44: =IF(ISERROR('14'!O$72),0,'14'!O$72) -> 0 | P44: =IF(ISERROR('14'!P$72),0,'14'!P$72) -> 0 | Q44: =IF(ISERROR('14'!Q$72),0,'14'!Q$72) -> 0 | R44: =IF(ISERROR('14'!R$72),0,'14'!R$72) -> 0 | S44: =IF(ISERROR('14'!S$72),0,'14'!S$72) -> 0 | T44: =IF(ISERROR('14'!T$72),0,'14'!T$72) -> 0 | U44: =IF(ISERROR('14'!U$72),0,'14'!U$72) -> 0 | V44: =IF(ISERROR('14'!V$72),0,'14'!V$72) -> 0 | W44: =IF(ISERROR('14'!W$72),0,'14'!W$72) -> 0 | X44: 0 | Y44: 0 | Z44: =IF(ISERROR('14'!Z$72),0,'14'!Z$72) -> 0 | AA44: =IF(ISERROR('14'!AA$72),0,'14'!AA$72) -> 0 | AB44: =IF(ISERROR('14'!AB$72),0,'14'!AB$72) -> 0 | AC44: =IF(ISERROR('14'!AC$72),0,'14'!AC$72) -> 0 | AD44: =IF(ISERROR('14'!AD$72),0,'14'!AD$72) -> 0 | AE44: =IF(ISERROR('14'!AE$72),0,'14'!AE$72) -> 0 | AF44: =IF(ISERROR('14'!AF$72),0,'14'!AF$72) -> 0 | AG44: 0 | AH44: 0 | AI44: =IF(ISERROR('14'!AI$72),0,'14'!AI$72) -> 0 | AJ44: =IF(ISERROR('14'!AJ$72),0,'14'!AJ$72) -> 0 | AK44: =IF(ISERROR('14'!AK$72),0,'14'!AK$72) -> 0 | AL44: =IF(ISERROR('14'!AL$72),0,'14'!AL$72) -> 0 | AM44: =IF(ISERROR('14'!AM$72),0,'14'!AM$72) -> 0 | AN44: =IF(ISERROR('14'!AN$72),0,'14'!AN$72) -> 0 | AO44: =IF(ISERROR('14'!AO$72),0,'14'!AO$72) -> 0 | AP44: 0 | AQ44: 0 | AR44: =IF(ISERROR('14'!AR$72),0,'14'!AR$72) -> 0 | AS44: =IF(ISERROR('14'!AS$72),0,'14'!AS$72) -> 0 | AT44: =IF(ISERROR('14'!AT$72),0,'14'!AT$72) -> 0 | AU44: =IF(ISERROR('14'!AU$72),0,'14'!AU$72) -> 0
A45: 0 | B45: =IF('15'!$F$6<>"",E45,0) -> 0 | C45: 0 | D45: 0 | E45: 15 | G45: =IF(AND(F45="",COUNTA(F45:F$45)>0),"Please fill Subprogrammes from the top","") ->  | I45: =IF(ISERROR('15'!I$72),0,'15'!I$72) -> 0 | J45: =IF(ISERROR('15'!J$72),0,'15'!J$72) -> 0 | K45: =IF(ISERROR('15'!K$72),0,'15'!K$72) -> 0 | L45: =IF(ISERROR('15'!L$72),0,'15'!L$72) -> 0 | M45: =IF(ISERROR('15'!M$72),0,'15'!M$72) -> 0 | N45: =IF(ISERROR('15'!N$72),0,'15'!N$72) -> 0 | O45: =IF(ISERROR('15'!O$72),0,'15'!O$72) -> 0 | P45: =IF(ISERROR('15'!P$72),0,'15'!P$72) -> 0 | Q45: =IF(ISERROR('15'!Q$72),0,'15'!Q$72) -> 0 | R45: =IF(ISERROR('15'!R$72),0,'15'!R$72) -> 0 | S45: =IF(ISERROR('15'!S$72),0,'15'!S$72) -> 0 | T45: =IF(ISERROR('15'!T$72),0,'15'!T$72) -> 0 | U45: =IF(ISERROR('15'!U$72),0,'15'!U$72) -> 0 | V45: =IF(ISERROR('15'!V$72),0,'15'!V$72) -> 0 | W45: =IF(ISERROR('15'!W$72),0,'15'!W$72) -> 0 | X45: 0 | Y45: 0 | Z45: =IF(ISERROR('15'!Z$72),0,'15'!Z$72) -> 0 | AA45: =IF(ISERROR('15'!AA$72),0,'15'!AA$72) -> 0 | AB45: =IF(ISERROR('15'!AB$72),0,'15'!AB$72) -> 0 | AC45: =IF(ISERROR('15'!AC$72),0,'15'!AC$72) -> 0 | AD45: =IF(ISERROR('15'!AD$72),0,'15'!AD$72) -> 0 | AE45: =IF(ISERROR('15'!AE$72),0,'15'!AE$72) -> 0 | AF45: =IF(ISERROR('15'!AF$72),0,'15'!AF$72) -> 0 | AG45: 0 | AH45: 0 | AI45: =IF(ISERROR('15'!AI$72),0,'15'!AI$72) -> 0 | AJ45: =IF(ISERROR('15'!AJ$72),0,'15'!AJ$72) -> 0 | AK45: =IF(ISERROR('15'!AK$72),0,'15'!AK$72) -> 0 | AL45: =IF(ISERROR('15'!AL$72),0,'15'!AL$72) -> 0 | AM45: =IF(ISERROR('15'!AM$72),0,'15'!AM$72) -> 0 | AN45: =IF(ISERROR('15'!AN$72),0,'15'!AN$72) -> 0 | AO45: =IF(ISERROR('15'!AO$72),0,'15'!AO$72) -> 0 | AP45: 0 | AQ45: 0 | AR45: =IF(ISERROR('15'!AR$72),0,'15'!AR$72) -> 0 | AS45: =IF(ISERROR('15'!AS$72),0,'15'!AS$72) -> 0 | AT45: =IF(ISERROR('15'!AT$72),0,'15'!AT$72) -> 0 | AU45: =IF(ISERROR('15'!AU$72),0,'15'!AU$72) -> 0
A46: 1 | B46: =IF(Direct_charges!$F$6<>"",E46,0) -> 0 | C46: 1 | D46: 1 | F46: Total for Programmes | I46: =SUM(I31:I45) -> 8143524 | J46: 8401679 | K46: 9047439 | L46: 9047424 | M46: 8339704 | N46: 0 | O46: 0 | P46: 0 | Q46: 1188000 | R46: 9527704 | S46: =SUM(S31:S45) -> 0 | T46: 9527704 | U46: =SUM(U31:U45) -> 8743497 | V46: =IFERROR(SUM('1:15'!V72),0) -> 0 | W46: =IFERROR(SUM('1:15'!W72),0) -> 0 | X46: =SUM(V46:W46) -> 0 | Y46: =U46+X46 -> 8743497 | Z46: =SUM(Z31:Z45) -> 0 | AA46: 0 | AB46: 8743497 | AC46: 0 | AD46: =SUM(AD31:AD45) -> 9612736 | AE46: =IFERROR(SUM('1:15'!AE72),0) -> 0 | AF46: =IFERROR(SUM('1:15'!AF72),0) -> 0 | AG46: =SUM(AE46:AF46) -> 0 | AH46: 9612736 | AI46: 0 | AJ46: 0 | AK46: 9612736 | AL46: 0 | AM46: 9973858 | AN46: =IFERROR(SUM('1:15'!AN72),0) -> 0 | AO46: =IFERROR(SUM('1:15'!AO72),0) -> 0 | AP46: =SUM(AN46:AO46) -> 0 | AQ46: 9973858 | AR46: 0 | AS46: 0 | AT46: 9973858 | AU46: 0
A47: 1 | F47: Direct charge against the National Revenue Fund | I47: =SUM(I48:I52) -> 0 | J47: =SUM(J48:J52) -> 0 | K47: =SUM(K48:K52) -> 0 | L47: 0 | M47: 0 | N47: 0 | O47: 0 | P47: 0 | Q47: 0 | R47: 0 | S47: 0 | T47: 0 | U47: 0 | V47: =IF(AND(Settings!$A$3=1,Settings!$A$5="TRUE"),Direct_charges!V72,SUM(V48:V52)) -> 0 | W47: =IF(AND(Settings!$A$3=1,Settings!$A$5="TRUE"),Direct_charges!W72,SUM(W48:W52)) -> 0 | X47: =SUM(V47:W47) -> 0 | Y47: =U47+X47 -> 0 | Z47: =SUM(Z48:Z52) -> 0 | AA47: 0 | AB47: 0 | AC47: 0 | AD47: 0 | AE47: =IF(AND(Settings!$A$3=1,Settings!$A$5="TRUE"),Direct_charges!AE72,SUM(AE48:AE52)) -> 0 | AF47: =IF(AND(Settings!$A$3=1,Settings!$A$5="TRUE"),Direct_charges!AF72,SUM(AF48:AF52)) -> 0 | AG47: =SUM(AE47:AF47) -> 0 | AH47: =AD47+AG47 -> 0 | AI47: 0 | AJ47: 0 | AK47: 0 | AL47: 0 | AM47: 0 | AN47: =IF(AND(Settings!$A$3=1,Settings!$A$5="TRUE"),Direct_charges!AN72,SUM(AN48:AN52)) -> 0 | AO47: =IF(AND(Settings!$A$3=1,Settings!$A$5="TRUE"),Direct_charges!AO72,SUM(AO48:AO52)) -> 0 | AP47: =SUM(AN47:AO47) -> 0 | AQ47: =AM47+AP47 -> 0 | AR47: 0 | AS47: 0 | AT47: 0 | AU47: 0
A48: 1 | F48: =IFERROR(IF(LEN(Direct_charges!$F47)<3,"", Direct_charges!$F47),"") ->  | I48: =IFERROR(Direct_charges!I47,0) -> 0 | J48: =IFERROR(Direct_charges!J47,0) -> 0 | K48: =IFERROR(Direct_charges!K47,0) -> 0 | L48: =IFERROR(Direct_charges!L47,0) -> 0 | M48: =IFERROR(Direct_charges!M47,0) -> 0 | N48: =IFERROR(Direct_charges!N47,0) -> 0 | O48: =IFERROR(Direct_charges!O47,0) -> 0 | P48: =IFERROR(Direct_charges!P47,0) -> 0 | Q48: =IFERROR(Direct_charges!Q47,0) -> 0 | R48: =IFERROR(Direct_charges!R47,0) -> 0 | S48: =IFERROR(Direct_charges!S47,0) -> 0 | T48: =IFERROR(Direct_charges!T47,0) -> 0 | U48: =IFERROR(Direct_charges!U47,0) -> 0 | V48: =IF(AND(Settings!$A$3=1,Settings!A5="TRUE"),0,(IFERROR(Direct_charges!V47,0))) -> 0 | W48: =IF(AND(Settings!$A$3=1,Settings!B5="TRUE"),0,(IFERROR(Direct_charges!W47,0))) -> 0 | X48: =SUM(V48:W48) -> 0 | Y48: =U48+X48 -> 0 | Z48: =IFERROR(Direct_charges!Z47,0) -> 0 | AA48: =IFERROR(Direct_charges!AA47,0) -> 0 | AB48: =IFERROR(Direct_charges!AB47,0) -> 0 | AC48: =IFERROR(Direct_charges!AC47,0) -> 0 | AD48: =IFERROR(Direct_charges!AD47,0) -> 0 | AE48: =IF(AND(Settings!$A$3=1,Settings!J5="TRUE"),0,(IFERROR(Direct_charges!AE47,0))) -> 0 | AF48: =IF(AND(Settings!$A$3=1,Settings!K5="TRUE"),0,(IFERROR(Direct_charges!AF47,0))) -> 0 | AG48: =SUM(AE48:AF48) -> 0 | AH48: =AD48+AG48 -> 0 | AI48: =IFERROR(Direct_charges!AI47,0) -> 0 | AJ48: =IFERROR(Direct_charges!AJ47,0) -> 0 | AK48: =IFERROR(Direct_charges!AK47,0) -> 0 | AL48: =IFERROR(Direct_charges!AL47,0) -> 0 | AM48: =IFERROR(Direct_charges!AM47,0) -> 0 | AN48: =IF(AND(Settings!$A$3=1,Settings!S5="TRUE"),0,(IFERROR(Direct_charges!AN47,0))) -> 0 | AO48: =IF(AND(Settings!$A$3=1,Settings!T5="TRUE"),0,(IFERROR(Direct_charges!AO47,0))) -> 0 | AP48: =SUM(AN48:AO48) -> 0 | AQ48: =AM48+AP48 -> 0 | AR48: =IFERROR(Direct_charges!AR47,0) -> 0 | AS48: =IFERROR(Direct_charges!AS47,0) -> 0 | AT48: =IFERROR(Direct_charges!AT47,0) -> 0 | AU48: =IFERROR(Direct_charges!AU47,0) -> 0
A49: =COUNTIF(I49:AU49,"<>0")+IF(LEN(F49)>2,1,0) -> 0 | F49: =IFERROR(IF(LEN(Direct_charges!$F48)<3,"", Direct_charges!$F48),"") ->  | I49: =IFERROR(Direct_charges!I48,0) -> 0 | J49: =IFERROR(Direct_charges!J48,0) -> 0 | K49: =IFERROR(Direct_charges!K48,0) -> 0 | L49: =IFERROR(Direct_charges!L48,0) -> 0 | M49: =IFERROR(Direct_charges!M48,0) -> 0 | N49: =IFERROR(Direct_charges!N48,0) -> 0 | O49: =IFERROR(Direct_charges!O48,0) -> 0 | P49: =IFERROR(Direct_charges!P48,0) -> 0 | Q49: =IFERROR(Direct_charges!Q48,0) -> 0 | R49: =IFERROR(Direct_charges!R48,0) -> 0 | S49: =IFERROR(Direct_charges!S48,0) -> 0 | T49: =IFERROR(Direct_charges!T48,0) -> 0 | U49: =IFERROR(Direct_charges!U48,0) -> 0 | V49: =IF(AND(Settings!$A$3=1,Settings!A6="TRUE"),0,(IFERROR(Direct_charges!V48,0))) -> 0 | W49: =IF(AND(Settings!$A$3=1,Settings!B6="TRUE"),0,(IFERROR(Direct_charges!W48,0))) -> 0 | X49: 0 | Y49: 0 | Z49: =IFERROR(Direct_charges!Z48,0) -> 0 | AA49: =IFERROR(Direct_charges!AA48,0) -> 0 | AB49: =IFERROR(Direct_charges!AB48,0) -> 0 | AC49: =IFERROR(Direct_charges!AC48,0) -> 0 | AD49: =IFERROR(Direct_charges!AD48,0) -> 0 | AE49: =IF(AND(Settings!$A$3=1,Settings!J6="TRUE"),0,(IFERROR(Direct_charges!AE48,0))) -> 0 | AF49: =IF(AND(Settings!$A$3=1,Settings!K6="TRUE"),0,(IFERROR(Direct_charges!AF48,0))) -> 0 | AG49: 0 | AH49: 0 | AI49: =IFERROR(Direct_charges!AI48,0) -> 0 | AJ49: =IFERROR(Direct_charges!AJ48,0) -> 0 | AK49: =IFERROR(Direct_charges!AK48,0) -> 0 | AL49: =IFERROR(Direct_charges!AL48,0) -> 0 | AM49: =IFERROR(Direct_charges!AM48,0) -> 0 | AN49: =IF(AND(Settings!$A$3=1,Settings!S6="TRUE"),0,(IFERROR(Direct_charges!AN48,0))) -> 0 | AO49: =IF(AND(Settings!$A$3=1,Settings!T6="TRUE"),0,(IFERROR(Direct_charges!AO48,0))) -> 0 | AP49: 0 | AQ49: 0 | AR49: =IFERROR(Direct_charges!AR48,0) -> 0 | AS49: =IFERROR(Direct_charges!AS48,0) -> 0 | AT49: =IFERROR(Direct_charges!AT48,0) -> 0 | AU49: =IFERROR(Direct_charges!AU48,0) -> 0
A50: =COUNTIF(I50:AU50,"<>0")+IF(LEN(F50)>2,1,0) -> 0 | F50: =IFERROR(IF(LEN(Direct_charges!$F49)<3,"", Direct_charges!$F49),"") ->  | I50: =IFERROR(Direct_charges!I49,0) -> 0 | J50: =IFERROR(Direct_charges!J49,0) -> 0 | K50: =IFERROR(Direct_charges!K49,0) -> 0 | L50: =IFERROR(Direct_charges!L49,0) -> 0 | M50: =IFERROR(Direct_charges!M49,0) -> 0 | N50: =IFERROR(Direct_charges!N49,0) -> 0 | O50: =IFERROR(Direct_charges!O49,0) -> 0 | P50: =IFERROR(Direct_charges!P49,0) -> 0 | Q50: =IFERROR(Direct_charges!Q49,0) -> 0 | R50: =IFERROR(Direct_charges!R49,0) -> 0 | S50: =IFERROR(Direct_charges!S49,0) -> 0 | T50: =IFERROR(Direct_charges!T49,0) -> 0 | U50: =IFERROR(Direct_charges!U49,0) -> 0 | V50: =IF(AND(Settings!$A$3=1,Settings!A7="TRUE"),0,(IFERROR(Direct_charges!V49,0))) -> 0 | W50: =IF(AND(Settings!$A$3=1,Settings!B7="TRUE"),0,(IFERROR(Direct_charges!W49,0))) -> 0 | X50: 0 | Y50: 0 | Z50: =IFERROR(Direct_charges!Z49,0) -> 0 | AA50: =IFERROR(Direct_charges!AA49,0) -> 0 | AB50: =IFERROR(Direct_charges!AB49,0) -> 0 | AC50: =IFERROR(Direct_charges!AC49,0) -> 0 | AD50: =IFERROR(Direct_charges!AD49,0) -> 0 | AE50: =IF(AND(Settings!$A$3=1,Settings!J7="TRUE"),0,(IFERROR(Direct_charges!AE49,0))) -> 0 | AF50: =IF(AND(Settings!$A$3=1,Settings!K7="TRUE"),0,(IFERROR(Direct_charges!AF49,0))) -> 0 | AG50: 0 | AH50: 0 | AI50: =IFERROR(Direct_charges!AI49,0) -> 0 | AJ50: =IFERROR(Direct_charges!AJ49,0) -> 0 | AK50: =IFERROR(Direct_charges!AK49,0) -> 0 | AL50: =IFERROR(Direct_charges!AL49,0) -> 0 | AM50: =IFERROR(Direct_charges!AM49,0) -> 0 | AN50: =IF(AND(Settings!$A$3=1,Settings!S7="TRUE"),0,(IFERROR(Direct_charges!AN49,0))) -> 0 | AO50: =IF(AND(Settings!$A$3=1,Settings!T7="TRUE"),0,(IFERROR(Direct_charges!AO49,0))) -> 0 | AP50: 0 | AQ50: 0 | AR50: =IFERROR(Direct_charges!AR49,0) -> 0 | AS50: =IFERROR(Direct_charges!AS49,0) -> 0 | AT50: =IFERROR(Direct_charges!AT49,0) -> 0 | AU50: =IFERROR(Direct_charges!AU49,0) -> 0
A51: =COUNTIF(I51:AU51,"<>0")+IF(LEN(F51)>2,1,0) -> 0 | F51: =IFERROR(IF(LEN(Direct_charges!$F50)<3,"", Direct_charges!$F50),"") ->  | I51: =IFERROR(Direct_charges!I50,0) -> 0 | J51: =IFERROR(Direct_charges!J50,0) -> 0 | K51: =IFERROR(Direct_charges!K50,0) -> 0 | L51: =IFERROR(Direct_charges!L50,0) -> 0 | M51: =IFERROR(Direct_charges!M50,0) -> 0 | N51: =IFERROR(Direct_charges!N50,0) -> 0 | O51: =IFERROR(Direct_charges!O50,0) -> 0 | P51: =IFERROR(Direct_charges!P50,0) -> 0 | Q51: =IFERROR(Direct_charges!Q50,0) -> 0 | R51: =IFERROR(Direct_charges!R50,0) -> 0 | S51: =IFERROR(Direct_charges!S50,0) -> 0 | T51: =IFERROR(Direct_charges!T50,0) -> 0 | U51: =IFERROR(Direct_charges!U50,0) -> 0 | V51: =IF(AND(Settings!$A$3=1,Settings!A8="TRUE"),0,(IFERROR(Direct_charges!V50,0))) -> 0 | W51: =IF(AND(Settings!$A$3=1,Settings!B8="TRUE"),0,(IFERROR(Direct_charges!W50,0))) -> 0 | X51: 0 | Y51: 0 | Z51: =IFERROR(Direct_charges!Z50,0) -> 0 | AA51: =IFERROR(Direct_charges!AA50,0) -> 0 | AB51: =IFERROR(Direct_charges!AB50,0) -> 0 | AC51: =IFERROR(Direct_charges!AC50,0) -> 0 | AD51: =IFERROR(Direct_charges!AD50,0) -> 0 | AE51: =IF(AND(Settings!$A$3=1,Settings!J8="TRUE"),0,(IFERROR(Direct_charges!AE50,0))) -> 0 | AF51: =IF(AND(Settings!$A$3=1,Settings!K8="TRUE"),0,(IFERROR(Direct_charges!AF50,0))) -> 0 | AG51: 0 | AH51: 0 | AI51: =IFERROR(Direct_charges!AI50,0) -> 0 | AJ51: =IFERROR(Direct_charges!AJ50,0) -> 0 | AK51: =IFERROR(Direct_charges!AK50,0) -> 0 | AL51: =IFERROR(Direct_charges!AL50,0) -> 0 | AM51: =IFERROR(Direct_charges!AM50,0) -> 0 | AN51: =IF(AND(Settings!$A$3=1,Settings!S8="TRUE"),0,(IFERROR(Direct_charges!AN50,0))) -> 0 | AO51: =IF(AND(Settings!$A$3=1,Settings!T8="TRUE"),0,(IFERROR(Direct_charges!AO50,0))) -> 0 | AP51: 0 | AQ51: 0 | AR51: =IFERROR(Direct_charges!AR50,0) -> 0 | AS51: =IFERROR(Direct_charges!AS50,0) -> 0 | AT51: =IFERROR(Direct_charges!AT50,0) -> 0 | AU51: =IFERROR(Direct_charges!AU50,0) -> 0
A52: =COUNTIF(I52:AU52,"<>0")+IF(LEN(F52)>2,1,0) -> 0 | F52: =IFERROR(IF(LEN(Direct_charges!$F51)<3,"", Direct_charges!$F51),"") ->  | I52: =IFERROR(Direct_charges!I51,0) -> 0 | J52: =IFERROR(Direct_charges!J51,0) -> 0 | K52: =IFERROR(Direct_charges!K51,0) -> 0 | L52: =IFERROR(Direct_charges!L51,0) -> 0 | M52: =IFERROR(Direct_charges!M51,0) -> 0 | N52: =IFERROR(Direct_charges!N51,0) -> 0 | O52: =IFERROR(Direct_charges!O51,0) -> 0 | P52: =IFERROR(Direct_charges!P51,0) -> 0 | Q52: =IFERROR(Direct_charges!Q51,0) -> 0 | R52: =IFERROR(Direct_charges!R51,0) -> 0 | S52: =IFERROR(Direct_charges!S51,0) -> 0 | T52: =IFERROR(Direct_charges!T51,0) -> 0 | U52: =IFERROR(Direct_charges!U51,0) -> 0 | V52: =IF(OR(Settings!$A$3<3,Settings!$A$4<>TRUE),0,IFERROR(Direct_charges!V51,0)) -> 0 | W52: =IF(OR(Settings!$A$3<3,Settings!$A$4<>TRUE),0,IFERROR(Direct_charges!W51,0)) -> 0 | X52: 0 | Y52: 0 | Z52: =IFERROR(Direct_charges!Z51,0) -> 0 | AA52: =IFERROR(Direct_charges!AA51,0) -> 0 | AB52: =IFERROR(Direct_charges!AB51,0) -> 0 | AC52: =IFERROR(Direct_charges!AC51,0) -> 0 | AD52: =IFERROR(Direct_charges!AD51,0) -> 0 | AE52: =IF(OR(Settings!$A$3<3,Settings!$A$4<>TRUE),0,IFERROR(Direct_charges!AE51,0)) -> 0 | AF52: =IF(OR(Settings!$A$3<3,Settings!$A$4<>TRUE),0,IFERROR(Direct_charges!AF51,0)) -> 0 | AG52: 0 | AH52: 0 | AI52: =IFERROR(Direct_charges!AI51,0) -> 0 | AJ52: =IFERROR(Direct_charges!AJ51,0) -> 0 | AK52: =IFERROR(Direct_charges!AK51,0) -> 0 | AL52: =IFERROR(Direct_charges!AL51,0) -> 0 | AM52: =IFERROR(Direct_charges!AM51,0) -> 0 | AN52: =IF(OR(Settings!$A$3<3,Settings!$A$4<>TRUE),0,IFERROR(Direct_charges!AN51,0)) -> 0 | AO52: =IF(OR(Settings!$A$3<3,Settings!$A$4<>TRUE),0,IFERROR(Direct_charges!AO51,0)) -> 0 | AP52: 0 | AQ52: 0 | AR52: =IFERROR(Direct_charges!AR51,0) -> 0 | AS52: =IFERROR(Direct_charges!AS51,0) -> 0 | AT52: =IFERROR(Direct_charges!AT51,0) -> 0 | AU52: =IFERROR(Direct_charges!AU51,0) -> 0
A54: 1 | F54: Total | I54: =SUM(I46,I47) -> 8143524 | J54: 8401679 | K54: =SUM(K46,K47) -> 9047439 | L54: 9047424 | M54: 8339704 | N54: 0 | O54: 0 | P54: 0 | Q54: 1188000 | R54: 9527704 | S54: 0 | T54: 9527704 | U54: 8743497 | V54: =SUM(V46,V47) -> 0 | W54: =SUM(W46,W47) -> 0 | X54: 0 | Y54: =SUM(Y46,Y47) -> 8743497 | Z54: =SUM(Z46,Z47) -> 0 | AA54: 0 | AB54: 8743497 | AC54: 0 | AD54: =SUM(AD46,AD47) -> 9612736 | AE54: 0 | AF54: 0 | AG54: 0 | AH54: 9612736 | AI54: 0 | AJ54: 0 | AK54: 9612736 | AL54: 0 | AM54: 9973858 | AN54: 0 | AO54: 0 | AP54: 0 | AQ54: 9973858 | AR54: 0 | AS54: 0 | AT54: =SUM(AT46,AT47) -> 9973858 | AU54: 0
A55: 1 | F55: Change to 2019 Budget Estimate | T55: =M54-T54 -> -1188000 | AB55: =U54-AB54 -> 0 | AK55: =AD54-AK54 -> 0 | AT55: =AM54-AT54 -> 0
A56: 1
A57: 1
A58: 1 | F58: Economic classification
